Workbook

Sheet Accueil
B11: Tremplin pour la transition écologique des PME
B13: Le présent tableur excel est la base pour remplir votre dossier d’aide dans le cadre du guichet « Tremplin pour la transition écologique des PME ».
B15: Le changement d'onglet lance des programmes qui peuvent durer quelques secondes.
B17: Pour le remplir, veuillez suivre les étapes suivantes :
B19: 1. Avant de commencer
A21: ? | B21: Le guichet d'aides "Tremplin pour la transition écologique des PME" permet d’accompagner les premiers pas d’une transition écologique en de bénéficiant rapidement d’aides forfaitaires. Avez-vous fait votre climatomètre? en 15 minutes vous pouvez auto-évaluer votre niveau de maturité vis-à-vis de la transition écologique et de l'économie circulaire, et entamer ainsi votre démarche de transition https://climatometre.bpifrance.fr/#/home Avant de solliciter ces aides, nous vous incitons à bénéficier de conseils et accompagnement personnalisés, par exemple en vous tournant vers votre CCI ou votre CMA ou via le Diag' éco-flux de Bpifrance. Par ailleurs, si vous souhaitez engager des projets plus ambitieux, vous pouvez sans doute bénéficier des autres aides de l'ADEME, présentées sur la plateforme agirpourlatransition.ademe.fr
B23: Important : avant de commencer à remplir ce tableur !
B24: Activez les macros du fichier excel si un message d’alerte apparaît.
B25: Ensuite, toutes les cellules à remplir sont indiquées sur fond bleu :
B27: 2. Renseignez d’abord l’onglet « 1- J’identifie mon entreprise »
B29: Secteur d’activité et localisation
B30: Il vous faudra renseigner :
C31: - votre code APE (ou code NAF), qui détermine votre secteur d’activité (menu déroulant) ;
C32: - déclarer si vous êtes un autoentrepreneur ou que vous avez choisi le régime microentreprise ;
C33: - votre localisation dans les listes déroulantes (le département puis la commune).
B35: Suivant votre situation des questions complémentaires peuvent apparaître, s’il existe des dispositifs spécifiques de l’ADEME pour votre secteur d’activité.
B37: Déclaration des aides d’Etat dans le cadre de la crise du COVID-19
B38: Nous vous demandons de déclarer toutes les aides publiques (de l’Etat, des régions, départements, communes, etc.) que vous avez déjà sollicité dans le cadre du régime cadre temporaire français pour le soutien aux entreprises dans le cadre de la crise du COVID-19 (SA 56985). Cette référence doit apparaître dans les dossiers d’aide que vous avez déjà remplis. Renseignez une ligne par aide sollicitée, ainsi que la colonne « Montant obtenu » si vous avez déjà reçu le financement. Cette information nous permet de calculer l’aide maximale à laquelle vous pourriez avoir droit.
B40: 3. Renseignez ensuite l’onglet « 2- Je choisis mes actions »
B42: Seules les actions auxquelles vous avez droit, selon votre secteur d’activité et votre localisation géographique, apparaissent.
B43: Parmi toutes les études et investissements proposés, vous pouvez choisir les actions que vous comptez engager.
B44: Pour plus d’informations sur les actions proposées, vous pouvez passer votre souris sur l’icône « ? » en début de ligne. C'est cette définition détaillée qui sert de base ensuite aux relations contractuelles entre vous et l'ADEME.
B46: Pour chaque ligne que vous choisirez, vous devez :
B47: 1/ Renseigner la quantité | C47: Renseigner la quantité
C48: - Pour les études ou les gros investissements, le choix de l'action sera oui ou non, choix matérialisé dans le tableau par une liste déroulante vous permettant de choisir entre 0 et 1.
C49: - Pour les autres investissements nous vous demandons des renseignements spécifiques suivant le type d’opération (par exemple la surface de votre bâtiment pour les études thermique, le nombre de vélo-cargos électriques dont vous souhaitez vous équiper, etc.)
B50: 2/ Renseigner le coût total de cette opération, tel que vous l’estimez. Il s’agit d’un coût hors taxes récupérables (HTR), c'est-à-dire le montant d'achat, déduction faite de la TVA qui sera récupérée auprès du trésor public.
B51: Par exemple, une entreprise assujettis à la TVA achète 3 vélo-cargos électrique, le coût total HT de cette acquisition devra ici être renseigné.
B52: Des devis vous seront demandés pour justifier votre estimation de ce coût total, à l'exception des montants les plus faibles.
B54: Sur cette base, un montant prévisionnel de l’aide ADEME s’affiche automatiquement, ainsi que l’information si un devis vous sera demandé au moment du dépôt du dossier.
B55: Vous pourrez ainsi décider de vous engager ou non à réaliser les actions, en fonction de l’aide apportée.
B57: 4. Finalisez votre demande
B59: L’onglet « Synthèse de votre demande » résume les éléments que vous devrez transmettre à l’ADEME :
B61: Le montant total de l’opération, sur la base des coûts prévisionnel que vous avez déclarés.
B63: Le montant prévisionnel de l’aide ADEME, qui tient compte des actions sélectionnées mais aussi des contraintes juridiques.
B64: En tout état de cause, cette aide ne peut être inférieure à 5 000 € ou supérieure à 200 000 €.
B65: Le plafond des aides d’Etat dans le cadre du régime cadre temporaire français pour le soutien aux entreprises dans le cadre de la crise du COVID-19 est de 800 000 €.
B67: Le rappel des actions que vous avez sélectionnées et pour chacune d’elles si un devis devra être transmis à l’ADEME.
B69: Enregistrez le fichier sous le nom « [votre numéro de siret]_Tremplin transition écologique.xls »
B71: Poursuivez ensuite votre demande d’aide en créant un compte sur la plateforme dématérialisée de l’ADEME.
B72: https://agirpourlatransition.ademe.fr/entreprises/dispositif-aide/tremplin-transition-ecologique-pme
B74: Il vous faudra en particulier renseigner sur ce site, outre les éléments d’information sur votre entreprise, le montant total de l’opération et le montant prévisionnel de l’aide ADEME issus du tableur excel. Il faudra également télécharger le présent tableur excel, enregistré sous le nom précisé-ci-dessus, ainsi que les devis requis (en un seul document pdf les regroupant tous) ainsi que votre RIB.
B76: Version du | C76: 2021-02-17

Sheet 1-J'identifie mon entreprise
G2: ="list_"&IF(C19<10,TEXT(C19,"00"),$C$19) -> list_00 | I2: Cadré réservé à l'ADEME
A3: SECTEUR D'ACTIVITE ET LOCALISATION | G3: =IF(H11="",0,1)+IF(H19="",0,1)+IF(H28="",0,1)+IF(H68="",0,1)+IF(H15="",0,1)+IF(H36="",0,1)+IF(H37="",0,1)+IF(H38="",0,1)+IF(H39="",0,1)+IF(H40="",0,1)+IF(H41="",0,1)+IF(H42="",0,1)+IF(H43="",0,1) -> 5
B5: Secteur d'activité
B7: =IFERROR(VLOOKUP(C11,List!A:G,7,FALSE),"") ->  | C7: =IFERROR(VLOOKUP(B7,List!C:D,2,FALSE),"") ->  | G7: =VLOOKUP(IF(OR(C19="2A",C19="2B"),C19,IF(C19<10,TEXT(C19,"00"),C19))&"-"&E19,List!$N:$P,2,FALSE) -> 
C8: =IFERROR(VLOOKUP(C11,List!A:H,8,FALSE),"") ->  | G8: =VLOOKUP(C19&"-"&E19,List!$N:$P,3,FALSE) -> 
C9: =IFERROR(VLOOKUP(C11,List!A:I,9,FALSE),"") -> 
B11: Code Naf : | D11: =IFERROR(VLOOKUP(code_naf,List!A:D,4,FALSE),"") ->  | G11: Secteur tourisme durable | H11: =IF(C11="","Veuillez renseigner votre code NAF","") -> Veuillez renseigner votre code NAF
G12: =IF(OR($C$11=List!$A$1416,$C$11=List!$A$1420,$C$11=List!$A$1434,$C$11=List!$A$1440),"Oui","Non") -> Non
C13: Quel est votre secteur d'activité spécifique :
C15: Êtes-vous au régime micro-entreprise : | H15: =IF(D15="","Veuillez indiquer si vous êtes au régime micro-entreprise","") -> Veuillez indiquer si vous êtes au régime micro-entreprise
B17: Code postal | G17: =IF(OR($C$19=List!$R$105,$C$19=List!$R$108,$C$19=List!$R$98,$C$19=List!$R$99,$C$19=List!$R$100,$C$19=List!R101,$C$19=List!R102,$C$19=List!R103,$C$19=List!R104,$C$19=List!R106,$C$19=List!R107),1,0) -> 0
B19: Département : | D19: Ville : | G19: Zone rural : | H19: =IF(C19="","Veuillez sélectionner le département du site d'implantation de la structure utilisatrice",IF(E19="","Veuillez sélectionner la ville du site d'implantation de la structure utilisatrice",IF(ISERROR(G7),"Incompatibilité entre le numéro de département et la ville",""))) -> Veuillez sélectionner le département du site d'implantation de la structure utilisatrice
G20: =IF(ISERROR(VLOOKUP(C19&"-"&E19,List!N:Q,4,FALSE)),"Non",IF(VLOOKUP(C19&"-"&E19,List!N:Q,4,FALSE)="Non","Non","Oui")) -> Non
B21: Partenariat | G21: =IF(AND(OR(code_naf=List!$A$1416,code_naf=List!$A$1420,code_naf=List!$A$1434,code_naf=List!$A$1440),zone_rural="Oui"),1,0) -> 0
G22: Partenaire :
E23: Si vous avez un code partenaire fonds tourisme durable, veuillez l'indiquer ici : | G23: =IF(F23="","Non",IF(ISERROR(VLOOKUP(F23,List!$AB:$AB,1,FALSE)),"Non","Oui")) -> Non
F24: Si vous n'êtes pas accompagné par un partenaire, nous vous engageons fortement à contacter l'ADEME pour bénéficier des financements spécifiques fonds tourisme durable
A26: DECLARATION DES AIDES D'ETAT DANS LE CADRE DE LA CRISE DU COVID-19
A27: 2
B28: Je soussigné, | D28: représentant légal ou dûment habilité de | H28: =IF(C28="","Veuillez indiquer le nom du représentant légal de la structure",IF(E28="","Veuillez indiquer le nom de la structure","")) -> Veuillez indiquer le nom du représentant légal de la structure
B29: entreprise unique au sens de la définition figurant à l'article 2.2 du règlement (UE) n°1407/2013 de la Commission du 18 décembre 2013 relatif à l'application des articles 107 et 108 sur le fonctionnement de l'Union européenne aux aides de minimis (1), certifie :
B30: n'avoir reçu ou demandé aucune aide d'Etat relevant du régime SA.56985 modifié (voir encadré) à la date de la présente déclaration,
B31: avoir reçu ou demandé une aide d'Etat relevant du régime SA.56985 modifié (voir encadré) à la date de la présente déclaration,
B33: Consignes pour le remplissage : Lister dans le tableau l'ensemble des aides reçues ou demandées par l’entreprise, au sens de la notion européenne d’entreprise unique, au titre du régime SA. 56985 modifié jusqu'au 30 juin 2021.
B35: Date d'octroi ou de demande | C35: Organisme financeur | D35: Forme de l'aide (subvention, apports de fonds propres, avantages fiscaux et sociaux, prêts, avances remboursables, garanties, etc.) | E35: Montant sollicité | F35: Montant obtenu
G36: =IF(OR(F36=0,F36=""),IF(OR(E36=0,E36=""),0,E36),F36) -> 0 | H36: =IF(aide_covid=2,IF(OR(B36<>"",C36<>"",D36<>"",E36+F36>0),IF(B36="","Veuillez indiquer la date d'octroi ou de demande",IF(C36="","Veuillez indiquer l'organisme financeur",IF(D36="","Veuillez indiquer la forme de l'aide",IF(E36+F36>0,"","Veuillez indiquer le montant sollicité ou obtenu")))),""),"") -> 
G37: =IF(OR(F37=0,F37=""),IF(OR(E37=0,E37=""),0,E37),F37) -> 0
G38: 0
G39: 0
G40: 0
G41: 0
G42: 0
G43: 0
D44: TOTAL | E44: =SUM(E36:E43) -> 0 | F44: =SUM(F36:F43) -> 0 | G44: =SUM(G36:G43) -> 0
B46: Le régime cadre temporaire français notifié pour le soutien aux entreprises dans le cadre de la crise du COVID-19 SA. 56985 (modifié en SA. 57299, puis SA.58137) permet notamment l'octroi d'aides jusqu'au 30 juin 2021 sous diverses formes (subventions directes, apports de fonds propres, avantages fiscaux et sociaux sélectifs, prêts et avances remboursables) pour un montant nominal jusqu'à 800 000 € par entreprise unique ne relevant pas du secteur agricole primaire ou du secteur de la pêche et de l'aquaculture afin de leur permettre de faire face à des besoins de liquidités urgents et préserver la continuité de l'activité économique en leur permettant d'accéder à des financements. Les aides ne doivent pas excéder 120 000 € par entreprise unique du secteur de la pêche et de l'aquaculture ou 100 000 € par entreprise unique du secteur de la production primaire de produits agricoles.
A48: DECLARATION SUR LA SANTÉ FINANCIÈRE | G48: =IF(A52=TRUE,0,IF(A56="VRAI",0,IF(A60=TRUE,0,1))) -> 0
B50: Je soussigné, | C50: =C28 -> 0 | D50: représentant légal ou dûment habilité de | E50: =E28 -> 0
B51: certifie que ma structure :
A52: TRUE | B52: n'est pas une entreprise en difficulté au sens de la réglementation communautaire (voir encadré)
B54: Pour une structure répondant à la définition d'entreprise en difficulté, précisez :
A56: =IF(A52=TRUE,"VRAI",IF(B56="est une entreprise devenue en difficulté au sens de la réglementation communautaire avant le 31/12/2019","FAUX","VRAI")) -> VRAI | B56: est une entreprise devenue en difficulté au sens de la réglementation communautaire après le 01/01/2020 et avant le 30/06/2021 | F56: Liste déroulante
B58: Si micro ou petite entreprise, précisez :
A60: FALSE | B60: ne fait pas l'objet d'une procédure collective d'insolvabilité en vertu du droit national (sauvegarde, redressement ou liquidation judiciaires) ET n'a pas bénéficié d'une aide au sauvetage ou d'une aide à la restructuration
B62: La notion d'entreprise en difficulté est définie à l'article 2, point 18, du règlement (UE) n°651/2014 de la Commission du 17 juin 2014 déclarant certaines catégories d'aides compatibles avec le marché intérieur en application des articles 107 et 108 du traité (JO L 187 du 26/06/2014). «entreprise en difficulté»: une entreprise remplissant au moins une des conditions suivantes: a) s'il s'agit d'une société à responsabilité limitée (autre qu'une PME en existence depuis moins de trois ans ou, aux fins de l'admissibilité au bénéfice des aides au financement des risques, une PME exerçant ses activités depuis moins de sept ans après sa première vente commerciale et qui peut bénéficier d'investissements en faveur du financement des risques au terme du contrôle préalable effectué par l'intermédiaire financier sélectionné), lorsque plus de la moitié de son capital social souscrit a disparu en raison des pertes accumulées. Tel est le cas lorsque la déduction des pertes accumulées des réserves (et de tous les autres éléments généralement considérés comme relevant des fonds propres de la société) conduit à un montant cumulé négatif qui excède la moitié du capital social souscrit. Aux fins de la présente disposition, on entend par «société à responsabilité limitée» notamment les types d'entreprises mentionnés à l'annexe I de la directive 2013/34/UE du Parlement européen et du Conseil (37) et le «capital social» comprend, le cas échéant, les primes d'émission, b) s'il s'agit d'une société dont certains associés au moins ont une responsabilité illimitée pour les dettes de la société (autre qu'une PME en existence depuis moins de trois ans ou, aux fins de l'admissibilité au bénéfice des aides au financement des risques, une PME exerçant ses activités depuis moins de sept ans après sa première vente commerciale et qui peut bénéficier d'investissements en faveur du financement des risques au terme du contrôle préalable effectué par l'intermédiaire financier sélectionné), lorsque plus de la moitié des fonds propres, tels qu'ils sont inscrits dans les comptes de la société, a disparu en raison des pertes accumulées. Aux fins de la présente disposition, on entend par «société dont certains associés au moins ont une responsabilité illimitée pour les dettes de la société» en particulier les types de sociétés mentionnés à l'annexe II de la directive 2013/34/UE, c) lorsque l'entreprise fait l'objet d'une procédure collective d'insolvabilité ou remplit, selon le droit national qui lui est applicable, les conditions de soumission à une procédure collective d'insolvabilité à la demande de ses créanciers, d) lorsque l'entreprise a bénéficié d'une aide au sauvetage et n'a pas encore remboursé le prêt ou mis fin à la garantie, ou a bénéficié d'une aide à la restructuration et est toujours soumise à un plan de restructuration, e) dans le cas d'une entreprise autre qu'une PME, lorsque depuis les deux exercices précédents: 1) le ratio emprunts/capitaux propres de l'entreprise est supérieur à 7,5; et 2) le ratio de couverture des intérêts de l'entreprise, calculé sur la base de l'EBITDA, est inférieur à 1,0;
A64: Certification
A65: 1
D66: Sur la base de ces déclarations, le montant maximal de l'aide apporté par l'ADEME pourrait être de : | E66: =MIN(IF(G48=1,0,IF($C$8=List!$D$5,100000,IF($C$8=List!$D$101,120000,200000))),IF($C$8=List!$D$5,100000,IF($C$8=List!$D$101,120000,800000))-IF(aide_covid=2,G44,0)) -> 200000
B68: Fait à : | D68: Le : | H68: =IF(C68="","Veuillez indiquer le lieu de réalisation de cette déclaration",IF(E68>=44197,"","Veuillez indiquer la date à laquelle vous faite la déclaration")) -> Veuillez indiquer le lieu de réalisation de cette déclaration

Sheet 2-Je choisis mes actions
B1: Les cellules à compléter sont sur fond bleu | L1: Thématique | M1: SA | R1: Sous-programme
B2: LES ACTIONS QUE JE SOUHAITE METTRE EN PLACE | I2: aff | J2: Bénéficiaires | K2: Codes NAF | L2: Thématique | M2: SA | O2: Activité | P2: Poste de dépense | Q2: Précision
B4: Mes actions spécifiques à mon activité de restauration | I4: =IF(AND(OR('1-J''identifie mon entreprise'!$C$11=List!$A$1434,'1-J''identifie mon entreprise'!$C$11=List!$A$1440),zone_rural="Oui",partenaire="Oui"),IF(List!$AI$1=1,1,0),0) -> 0
B5: Nom de l'action | C5: Quantité | D5: Type d'unité | E5: Coût prévisionnel total HT | F5: Montant prévisionnel de l'aide ADEME | G5: Devis à joindre à la demande d'aide ? | I5: =IF(AND(OR('1-J''identifie mon entreprise'!$C$11=List!$A$1434,'1-J''identifie mon entreprise'!$C$11=List!$A$1440),zone_rural="Oui",partenaire="Oui"),IF(List!$AI$1=1,1,0),0) -> 0
B6: r1 | F6: =ROUND(IF(E6="",0,MIN(C6*H6*I6,tx_max*E6)),0) -> 0 | H6: 500 | I6: =IF(AND(OR('1-J''identifie mon entreprise'!$C$11=List!$A$1434,'1-J''identifie mon entreprise'!$C$11=List!$A$1440),zone_rural="Oui",partenaire="Oui"),IF(List!$AI$1=1,1,0),0) -> 0 | J6: Restaurant en zone rurale | K6: 5610A | L6: Tourisme durable | M6: Aide à la décision + l'investissement | P6: a | Q6: b | R6: L.ET
B7: r2 | F7: 0 | I7: =IF(AND(OR('1-J''identifie mon entreprise'!$C$11=List!$A$1434,'1-J''identifie mon entreprise'!$C$11=List!$A$1440),zone_rural="Oui",partenaire="Oui"),IF(List!$AI$1=1,1,0),0) -> 0 | J7: Restaurant en zone rurale | K7: 5610A | P7: a | Q7: b | R7: L.ET
B8: r3 | F8: 0 | I8: =IF(AND(OR('1-J''identifie mon entreprise'!$C$11=List!$A$1434,'1-J''identifie mon entreprise'!$C$11=List!$A$1440),zone_rural="Oui",partenaire="Oui"),IF(List!$AI$1=1,1,0),0) -> 0 | J8: Restaurant en zone rurale | K8: 5610A | P8: a | Q8: b | R8: L.ET
B9: r4 | F9: 0 | I9: =IF(AND(OR('1-J''identifie mon entreprise'!$C$11=List!$A$1434,'1-J''identifie mon entreprise'!$C$11=List!$A$1440),zone_rural="Oui",partenaire="Oui"),IF(List!$AI$1=1,1,0),0) -> 0 | J9: Restaurant en zone rurale | K9: 5610A | P9: a | Q9: b | R9: L.ET
B10: r5 | F10: 0 | I10: =IF(AND(OR('1-J''identifie mon entreprise'!$C$11=List!$A$1434,'1-J''identifie mon entreprise'!$C$11=List!$A$1440),zone_rural="Oui",partenaire="Oui"),IF(List!$AI$1=1,1,0),0) -> 0 | J10: Restaurant en zone rurale | K10: 5610A | P10: a | Q10: b | R10: L.ET
B11: r6 | F11: 0 | I11: =IF(AND(OR('1-J''identifie mon entreprise'!$C$11=List!$A$1434,'1-J''identifie mon entreprise'!$C$11=List!$A$1440),zone_rural="Oui",partenaire="Oui"),IF(List!$AI$1=1,1,0),0) -> 0 | J11: Restaurant en zone rurale | K11: 5610A | P11: a | Q11: b | R11: L.ET
B12: r7 | F12: 0 | I12: =IF(AND(OR('1-J''identifie mon entreprise'!$C$11=List!$A$1434,'1-J''identifie mon entreprise'!$C$11=List!$A$1440),zone_rural="Oui",partenaire="Oui"),IF(List!$AI$1=1,1,0),0) -> 0 | J12: Restaurant en zone rurale | K12: 5610A | P12: a | Q12: b | R12: L.ET
B13: r8 | F13: 0 | I13: =IF(AND(OR('1-J''identifie mon entreprise'!$C$11=List!$A$1434,'1-J''identifie mon entreprise'!$C$11=List!$A$1440),zone_rural="Oui",partenaire="Oui"),IF(List!$AI$1=1,1,0),0) -> 0 | J13: Restaurant en zone rurale | K13: 5610A | P13: a | Q13: b | R13: L.ET
B14: r9 | F14: =ROUND(IF(E14="",0,MIN(C14*H14*I14,tx_max*E14)),0) -> 0 | I14: =IF(AND(OR('1-J''identifie mon entreprise'!$C$11=List!$A$1434,'1-J''identifie mon entreprise'!$C$11=List!$A$1440),zone_rural="Oui",partenaire="Oui"),IF(List!$AI$1=1,1,0),0) -> 0 | J14: Restaurant en zone rurale | K14: 5610A | P14: a | Q14: b | R14: L.ET
B15: r10 | F15: 0 | I15: =IF(AND(OR('1-J''identifie mon entreprise'!$C$11=List!$A$1434,'1-J''identifie mon entreprise'!$C$11=List!$A$1440),zone_rural="Oui",partenaire="Oui"),IF(List!$AI$1=1,1,0),0) -> 0 | J15: Restaurant en zone rurale | K15: 5610A | P15: a | Q15: b | R15: L.ET
B16: r11 | F16: =ROUND(IF(E16="",0,MIN(C16*H16*I16,tx_max*E16)),0) -> 0 | I16: =IF(AND(OR('1-J''identifie mon entreprise'!$C$11=List!$A$1434,'1-J''identifie mon entreprise'!$C$11=List!$A$1440),zone_rural="Oui",partenaire="Oui"),IF(List!$AI$1=1,1,0),0) -> 0 | J16: Restaurant en zone rurale | K16: 5610A | P16: a | Q16: b | R16: L.ET
B17: r12 | F17: 0 | I17: =IF(AND(OR('1-J''identifie mon entreprise'!$C$11=List!$A$1434,'1-J''identifie mon entreprise'!$C$11=List!$A$1440),zone_rural="Oui",partenaire="Oui"),IF(List!$AI$1=1,1,0),0) -> 0 | J17: Restaurant en zone rurale | K17: 5610A | P17: a | Q17: b | R17: L.ET
B18: r13 | F18: =ROUND(IF(E18="",0,MIN(C18*H18*I18,tx_max*E18)),0) -> 0 | I18: =IF(AND(OR('1-J''identifie mon entreprise'!$C$11=List!$A$1434,'1-J''identifie mon entreprise'!$C$11=List!$A$1440),zone_rural="Oui",partenaire="Oui"),IF(List!$AI$1=1,1,0),0) -> 0 | J18: Restaurant en zone rurale | K18: 5610A | P18: a | Q18: b | R18: L.ET
B19: r14 | F19: 0 | I19: =IF(AND(OR('1-J''identifie mon entreprise'!$C$11=List!$A$1434,'1-J''identifie mon entreprise'!$C$11=List!$A$1440),zone_rural="Oui",partenaire="Oui"),IF(List!$AI$1=1,1,0),0) -> 0 | J19: Restaurant en zone rurale | K19: 5610A | P19: a | Q19: b | R19: L.ET
B20: r15 | F20: =ROUND(IF(E20="",0,MIN(C20*H20*I20,tx_max*E20)),0) -> 0 | I20: =IF(AND(OR('1-J''identifie mon entreprise'!$C$11=List!$A$1434,'1-J''identifie mon entreprise'!$C$11=List!$A$1440),zone_rural="Oui",partenaire="Oui"),IF(List!$AI$1=1,1,0),0) -> 0 | J20: Restaurant en zone rurale | K20: 5610A | P20: a | Q20: b | R20: L.ET
B21: r16 | F21: 0 | I21: =IF(AND(OR('1-J''identifie mon entreprise'!$C$11=List!$A$1434,'1-J''identifie mon entreprise'!$C$11=List!$A$1440),zone_rural="Oui",partenaire="Oui"),IF(List!$AI$1=1,1,0),0) -> 0 | J21: Restaurant en zone rurale | K21: 5610A | P21: a | Q21: b | R21: L.ET
B22: r17 | F22: =ROUND(IF(E22="",0,MIN(C22*H22*I22,tx_max*E22)),0) -> 0 | I22: =IF(AND(OR('1-J''identifie mon entreprise'!$C$11=List!$A$1434,'1-J''identifie mon entreprise'!$C$11=List!$A$1440),zone_rural="Oui",partenaire="Oui"),IF(List!$AI$1=1,1,0),0) -> 0 | J22: Restaurant en zone rurale | K22: 5610A | P22: a | Q22: b | R22: L.ET
B23: r18 | F23: =ROUND(IF(E23="",0,MIN(C23*H23*I23,tx_max*E23)),0) -> 0 | I23: =IF(AND(OR('1-J''identifie mon entreprise'!$C$11=List!$A$1434,'1-J''identifie mon entreprise'!$C$11=List!$A$1440),zone_rural="Oui",partenaire="Oui"),IF(List!$AI$1=1,1,0),0) -> 0 | J23: Restaurant en zone rurale | K23: 5610A | P23: a | Q23: b | R23: L.ET
B24: r19 | F24: 0 | I24: =IF(AND(OR('1-J''identifie mon entreprise'!$C$11=List!$A$1434,'1-J''identifie mon entreprise'!$C$11=List!$A$1440),zone_rural="Oui",partenaire="Oui"),IF(List!$AI$1=1,1,0),0) -> 0 | J24: Restaurant en zone rurale | K24: 5610A | P24: a | Q24: b | R24: L.ET
B25: r20 | F25: 0 | I25: =IF(AND(OR('1-J''identifie mon entreprise'!$C$11=List!$A$1434,'1-J''identifie mon entreprise'!$C$11=List!$A$1440),zone_rural="Oui",partenaire="Oui"),IF(List!$AI$1=1,1,0),0) -> 0 | J25: Restaurant en zone rurale | K25: 5610A | P25: a | Q25: b | R25: L.ET
I26: =IF(AND(OR('1-J''identifie mon entreprise'!$C$11=List!$A$1434,'1-J''identifie mon entreprise'!$C$11=List!$A$1440),zone_rural="Oui",partenaire="Oui"),IF(List!$AI$1=1,1,0),0) -> 0
B27: Mes actions spécifiques liées à mon activité d'hébergement touristique | I27: =IF(AND(OR('1-J''identifie mon entreprise'!$C$11=List!$A$1416,'1-J''identifie mon entreprise'!$C$11=List!$A$1420),zone_rural="Oui",partenaire="Oui"),IF(List!$AI$1=1,1,0),0) -> 0
B28: Nom de l'action | C28: Quantité | D28: Type d'unité | E28: Coût prévisionnel total HT | F28: Montant prévisionnel de l'aide ADEME | G28: Devis à joindre à la demande d'aide ? | I28: =IF(AND(OR('1-J''identifie mon entreprise'!$C$11=List!$A$1416,'1-J''identifie mon entreprise'!$C$11=List!$A$1420),zone_rural="Oui",partenaire="Oui"),IF(List!$AI$1=1,1,0),0) -> 0
A29: ? | B29: Maîtriser les besoins de chauffage : thermostats radiateur, détection d'ouverture de fenêtre, programmateur horaire | D29: Nombre de chambres équipées | F29: =ROUND(IF(E29="",0,MIN(C29*H29*I29,tx_max*E29)),0) -> 0 | G29: =IF(F29=0,"",IF(F29>2000,"Oui","Non")) ->  | H29: =60*(1+(bonus_om*bonus_om_tx)) -> 60 | I29: =IF(AND(OR('1-J''identifie mon entreprise'!$C$11=List!$A$1416,'1-J''identifie mon entreprise'!$C$11=List!$A$1420),zone_rural="Oui",partenaire="Oui"),IF(List!$AI$1=1,1,0),0) -> 0 | J29: Hébergement en zone rurale | K29: Section I, division 55 | L29: Tourisme durable | M29: Aide à la décision + l'investissement | P29: Autres équipements | Q29: Maitrise chauffage | R29: L.ET
B30: Efficacité énergétique des sèche-linge de forte capacité : poids de linge >9kg, performance A+++ ou à énergie de séchage <2,6kWh/cycle | D30: Capacité de séchage en kg | F30: 0 | H30: =50*(1+(bonus_om*bonus_om_tx)) -> 50 | I30: =IF(AND(OR('1-J''identifie mon entreprise'!$C$11=List!$A$1416,'1-J''identifie mon entreprise'!$C$11=List!$A$1420),zone_rural="Oui",partenaire="Oui"),IF(List!$AI$1=1,1,0),0) -> 0 | J30: Hébergement en zone rurale | K30: Section I, division 55 | P30: Autres équipements | Q30: Sèche-linge | R30: L.ET
A31: ? | B31: Economie d'eau : limitation de débit de robinet de lavabo | D31: Nombre de chambres équipées | F31: 0 | H31: =10*(1+(bonus_om*bonus_om_tx)) -> 10 | I31: =IF(AND(OR('1-J''identifie mon entreprise'!$C$11=List!$A$1416,'1-J''identifie mon entreprise'!$C$11=List!$A$1420),zone_rural="Oui",partenaire="Oui"),IF(List!$AI$1=1,1,0),0) -> 0 | J31: Hébergement en zone rurale | K31: Section I, division 55 | P31: Autres équipements | Q31: Débit lavabo | R31: L.ET
A32: ? | B32: Economie d'eau : Robinetterie douche : mitigeurs thermostatiques, pommeau à débit réduit | D32: Nombre de chambres équipées | F32: 0 | H32: =150*(1+(bonus_om*bonus_om_tx)) -> 150 | I32: =IF(AND(OR('1-J''identifie mon entreprise'!$C$11=List!$A$1416,'1-J''identifie mon entreprise'!$C$11=List!$A$1420),zone_rural="Oui",partenaire="Oui"),IF(List!$AI$1=1,1,0),0) -> 0 | J32: Hébergement en zone rurale | K32: Section I, division 55 | P32: Autres équipements | Q32: mitigeurs thermostatiques | R32: L.ET
A33: ? | B33: Economie d'eau : Limitation de consommation WC (plaquettes, chasse double position) | D33: Nombre de chambres équipées | F33: 0 | H33: =10*(1+(bonus_om*bonus_om_tx)) -> 10 | I33: =IF(AND(OR('1-J''identifie mon entreprise'!$C$11=List!$A$1416,'1-J''identifie mon entreprise'!$C$11=List!$A$1420),zone_rural="Oui",partenaire="Oui"),IF(List!$AI$1=1,1,0),0) -> 0 | J33: Hébergement en zone rurale | K33: Section I, division 55 | P33: Autres équipements | Q33: Conso WC | R33: L.ET
B34: Toilettes sèches | D34: Nombre de toilettes | F34: 0 | H34: =100*(1+(bonus_om*bonus_om_tx)) -> 100 | I34: =IF(AND(OR('1-J''identifie mon entreprise'!$C$11=List!$A$1416,'1-J''identifie mon entreprise'!$C$11=List!$A$1420),zone_rural="Oui",partenaire="Oui"),IF(List!$AI$1=1,1,0),0) -> 0 | J34: Hébergement en zone rurale | K34: Section I, division 55 | P34: Autres équipements | Q34: Toilettes sèches | R34: L.ET
A35: ? | B35: Couverture pour piscine et bains à remous extérieurs chauffés | D35: Nombre de piscines et de bains couverts | F35: 0 | G35: =IF(F35=0,"","Oui") ->  | H35: =5000*(1+(bonus_om*bonus_om_tx)) -> 5000 | I35: =IF(AND(OR('1-J''identifie mon entreprise'!$C$11=List!$A$1416,'1-J''identifie mon entreprise'!$C$11=List!$A$1420),zone_rural="Oui",partenaire="Oui"),IF(List!$AI$1=1,1,0),0) -> 0 | J35: Hébergement en zone rurale | K35: Section I, division 55 | P35: Autres équipements | Q35: Couverture piscine | R35: L.ET
A36: ? | B36: Frais d'adaptation du site internet pour valoriser le modèle d'affaire "tourisme durable", y compris la formation du personnel pour rapatrier la gestion du site internet en interne. | D36: ? | F36: 0 | G36: =IF(F36=0,"","Oui") ->  | H36: =1000*(1+(bonus_om*bonus_om_tx)) -> 1000 | I36: =IF(AND(OR('1-J''identifie mon entreprise'!$C$11=List!$A$1416,'1-J''identifie mon entreprise'!$C$11=List!$A$1420),zone_rural="Oui",partenaire="Oui"),IF(List!$AI$1=1,1,0),0) -> 0 | J36: Hébergement en zone rurale | K36: Section I, division 55 | P36: Prestations extérieurs - Autres dépenses de sous-traitance (études, honoraires, etc.) | Q36: Adaptation site internet | R36: L.ET
A37: ? | B37: Frais d’édition de supports de communications : tableau (craie) pour menus du jour ; carte durable (mise en avant de produits bios, valorisation des menus végétariens, affichage carbone….), visuels et animations mettant en valeur les producteurs/fournisseurs locaux etc… mettant en valeur les écogestes dans l’hôtel restaurant pour les salarié.e.s et pour les client.e.s | D37: ? | F37: 0 | G37: =IF(F37=0,"",IF(F37>2000,"Oui","Non")) ->  | H37: =1000*(1+(bonus_om*bonus_om_tx)) -> 1000 | I37: =IF(AND(OR('1-J''identifie mon entreprise'!$C$11=List!$A$1416,'1-J''identifie mon entreprise'!$C$11=List!$A$1420),zone_rural="Oui",partenaire="Oui"),IF(List!$AI$1=1,1,0),0) -> 0 | J37: Hébergement en zone rurale | K37: Section I, division 55 | L37: Tourisme durable | M37: Aide à la décision + l'investissement | P37: Prestations extérieurs de formation / communication / animation | Q37: Communication éco-gestes hôtels | R37: L.ET
A38: ? | B38: Formation aux éco-gestes, formation à la cuisine végétale/alternative/cuisson douce ; formation aux enjeux environnementaux de l'alimentation | D38: Nombre de jours de formation par personne | F38: 0 | G38: =IF(F38=0,"","Non") ->  | H38: =150*(1+(bonus_om*bonus_om_tx)) -> 150 | I38: =IF(AND(OR('1-J''identifie mon entreprise'!$C$11=List!$A$1416,'1-J''identifie mon entreprise'!$C$11=List!$A$1420),zone_rural="Oui",partenaire="Oui"),IF(List!$AI$1=1,1,0),0) -> 0 | J38: Hébergement en zone rurale | K38: Section I, division 55 | P38: Prestations extérieurs de formation / communication / animation | Q38: Formation éco-gestes | R38: L.ET
A39: ? | B39: AMO pour rénovation globale : complément pour établissement du plan de financement et aide à la complétion des dossiers de demande d'aide | D39: Nombre d'AMO | F39: 0 | G39: =IF(F39=0,"","Oui") ->  | H39: =3000*(1+(bonus_om*bonus_om_tx)) -> 3000 | I39: =IF(AND(OR('1-J''identifie mon entreprise'!$C$11=List!$A$1416,'1-J''identifie mon entreprise'!$C$11=List!$A$1420),zone_rural="Oui",partenaire="Oui"),IF(List!$AI$1=1,1,0),0) -> 0 | J39: Hébergement en zone rurale | K39: Section I, division 55 | P39: Prestations extérieurs - Autres dépenses de sous-traitance (études, honoraires, etc.) | Q39: AMO rénovation globale | R39: L.ET
A40: ? | B40: Accompagnement à l’élaboration d’un modèle d’affaires tourisme durable | D40: ? | F40: 0 | G40: =IF(F40=0,"","Oui") ->  | H40: =2100*(1+(bonus_om*bonus_om_tx)) -> 2100 | I40: =IF(AND(OR('1-J''identifie mon entreprise'!$C$11=List!$A$1416,'1-J''identifie mon entreprise'!$C$11=List!$A$1420),zone_rural="Oui",partenaire="Oui"),IF(List!$AI$1=1,1,0),0) -> 0 | J40: Hébergement en zone rurale | K40: Section I, division 55 | P40: Prestations extérieurs - Autres dépenses de sous-traitance (études, honoraires, etc.) | Q40: Accompagnement tourisme durable | R40: L.ET
B41: h5 | F41: =ROUND(IF(E41="",0,MIN(C41*H41*I41,tx_max*E41)),0) -> 0 | I41: =IF(AND(OR('1-J''identifie mon entreprise'!$C$11=List!$A$1416,'1-J''identifie mon entreprise'!$C$11=List!$A$1420),zone_rural="Oui",partenaire="Oui"),IF(List!$AI$1=1,1,0),0) -> 0 | J41: Hébergement en zone rurale | K41: Section I, division 55 | P41: a | Q41: b | R41: L.ET
B42: h6 | F42: 0 | I42: =IF(AND(OR('1-J''identifie mon entreprise'!$C$11=List!$A$1416,'1-J''identifie mon entreprise'!$C$11=List!$A$1420),zone_rural="Oui",partenaire="Oui"),IF(List!$AI$1=1,1,0),0) -> 0 | J42: Hébergement en zone rurale | K42: Section I, division 55 | P42: a | Q42: b | R42: L.ET
B43: h7 | F43: 0 | I43: =IF(AND(OR('1-J''identifie mon entreprise'!$C$11=List!$A$1416,'1-J''identifie mon entreprise'!$C$11=List!$A$1420),zone_rural="Oui",partenaire="Oui"),IF(List!$AI$1=1,1,0),0) -> 0 | J43: Hébergement en zone rurale | K43: Section I, division 55 | P43: a | Q43: b | R43: L.ET
B44: h8 | F44: 0 | I44: =IF(AND(OR('1-J''identifie mon entreprise'!$C$11=List!$A$1416,'1-J''identifie mon entreprise'!$C$11=List!$A$1420),zone_rural="Oui",partenaire="Oui"),IF(List!$AI$1=1,1,0),0) -> 0 | J44: Hébergement en zone rurale | K44: Section I, division 55 | P44: c | Q44: x | R44: L.ET
B45: h5 | F45: 0 | I45: =IF(AND(OR('1-J''identifie mon entreprise'!$C$11=List!$A$1416,'1-J''identifie mon entreprise'!$C$11=List!$A$1420),zone_rural="Oui",partenaire="Oui"),IF(List!$AI$1=1,1,0),0) -> 0 | J45: Hébergement en zone rurale | K45: Section I, division 55 | P45: a | Q45: b | R45: L.ET
B46: h6 | F46: 0 | I46: =IF(AND(OR('1-J''identifie mon entreprise'!$C$11=List!$A$1416,'1-J''identifie mon entreprise'!$C$11=List!$A$1420),zone_rural="Oui",partenaire="Oui"),IF(List!$AI$1=1,1,0),0) -> 0 | J46: Hébergement en zone rurale | K46: Section I, division 55 | P46: a | Q46: b | R46: L.ET
B47: h7 | F47: 0 | I47: =IF(AND(OR('1-J''identifie mon entreprise'!$C$11=List!$A$1416,'1-J''identifie mon entreprise'!$C$11=List!$A$1420),zone_rural="Oui",partenaire="Oui"),IF(List!$AI$1=1,1,0),0) -> 0 | J47: Hébergement en zone rurale | K47: Section I, division 55 | P47: a | Q47: b | R47: L.ET
B48: h8 | F48: 0 | I48: =IF(AND(OR('1-J''identifie mon entreprise'!$C$11=List!$A$1416,'1-J''identifie mon entreprise'!$C$11=List!$A$1420),zone_rural="Oui",partenaire="Oui"),IF(List!$AI$1=1,1,0),0) -> 0 | J48: Hébergement en zone rurale | K48: Section I, division 55 | P48: c | Q48: x | R48: L.ET
I49: =IF(AND(OR('1-J''identifie mon entreprise'!$C$11=List!$A$1416,'1-J''identifie mon entreprise'!$C$11=List!$A$1420),zone_rural="Oui",partenaire="Oui"),IF(List!$AI$1=1,1,0),0) -> 0
B50: Mes actions pour la lutte contre le changement climatique | I50: =IF(OR(naf_section="Section A",naf_section="Section O",'1-J''identifie mon entreprise'!$G$48=1),0,IF(micro_entreprise="Oui",IF(AND(secteur_tourisme="Oui",zone_rural="Oui",partenaire="Oui"),1,0),1)) -> 1
B51: Nom de l'action | C51: Quantité | D51: Type d'unité | E51: Coût prévisionnel total HT | F51: Montant prévisionnel de l'aide ADEME | G51: Devis à joindre à la demande d'aide ? | H51: Mt forfait | I51: =IF(OR(naf_section="Section A",naf_section="Section O",'1-J''identifie mon entreprise'!$G$48=1),0,IF(micro_entreprise="Oui",IF(AND(secteur_tourisme="Oui",zone_rural="Oui",partenaire="Oui"),1,0),1)) -> 1 | J51: Bénéficiaires | K51: Codes NAF | L51: sous-thématique | M51: SA
A52: ? | B52: Bilan d’émission de gaz à effet de serre (bilan GES scope 1, 2 et 3) et plan d'actions | D52: Oui/Non | F52: =ROUND(IF(E52="",0,MIN(C52*H52*I52,tx_max*E52)),0) -> 0 | G52: =IF(F52=0,"","Oui") ->  | H52: =5000*(1+(bonus_om*bonus_om_tx)) -> 5000 | I52: =IF(OR(naf_section="Section A",naf_section="Section O",'1-J''identifie mon entreprise'!$G$48=1),0,IF(micro_entreprise="Oui",IF(AND(secteur_tourisme="Oui",zone_rural="Oui",partenaire="Oui"),1,0),1)) -> 1 | J52: Toutes PME | K52: tous sauf A | L52: 1CL.04.01 | M52: SA2.04.01 | N52: =LEFT(L52,3) -> 1CL | P52: Prestations extérieurs - Autres dépenses de sous-traitance (études, honoraires, etc.) | Q52: Bilan GES | R52: L.EY
A53: ? | B53: Vous organiser pour réduire les émissions de gaz à effet de serre : élaborer une stratégie (démarche ACT® pas à pas) | D53: Oui/Non | F53: =ROUND(IF(E53="",0,MIN(C53*H53*I53,tx_max*E53)),0) -> 0 | G53: =IF(F53=0,"","Oui") ->  | H53: =25000*(1+(bonus_om*bonus_om_tx)) -> 25000 | I53: =IF(OR(naf_section="Section A",naf_section="Section O",'1-J''identifie mon entreprise'!$G$48=1),0,IF(micro_entreprise="Oui",IF(AND(secteur_tourisme="Oui",zone_rural="Oui",partenaire="Oui"),1,0),1)) -> 1 | J53: Toutes PME | K53: tous sauf A | L53: 1CL.05.01 | M53: SA2.04.01 | N53: =LEFT(L53,3) -> 1CL | P53: Prestations extérieurs - Autres dépenses de sous-traitance (études, honoraires, etc.) | Q53: Etude ACT | R53: L.EY
A54: ? | B54: Evaluer votre stratégie de réduction des émissions de gaz à effet de serre (Evaluation ACT®) | D54: Oui/Non | F54: =ROUND(IF(E54="",0,MIN(C54*H54*I54,tx_max*E54)),0) -> 0 | G54: =IF(F54=0,"","Oui") ->  | H54: =4000*(1+(bonus_om*bonus_om_tx)) -> 4000 | I54: =IF(OR(naf_section="Section A",naf_section="Section O",'1-J''identifie mon entreprise'!$G$48=1),0,IF(micro_entreprise="Oui",IF(AND(secteur_tourisme="Oui",zone_rural="Oui",partenaire="Oui"),1,0),1)) -> 1 | J54: Toutes PME | K54: tous sauf A | L54: 1CL.05.01 | M54: SA2.04.01 | N54: =LEFT(L54,3) -> 1CL | P54: Prestations extérieurs - Autres dépenses de sous-traitance (études, honoraires, etc.) | Q54: Evaluation ACT | R54: L.EY
I55: =IF(OR(naf_section="Section A",naf_section="Section O",'1-J''identifie mon entreprise'!$G$48=1),0,IF(micro_entreprise="Oui",IF(AND(secteur_tourisme="Oui",zone_rural="Oui",partenaire="Oui"),1,0),1)) -> 1
B56: Mes actions de rénovation globale des bâtiments et de qualité de l'air | I56: =IF(OR(naf_section="Section O",'1-J''identifie mon entreprise'!$G$48=1),0,IF(micro_entreprise="Oui",IF(AND(secteur_tourisme="Oui",zone_rural="Oui",partenaire="Oui"),1,0),1)) -> 1
B57: Nom de l'action | C57: Quantité | D57: Type d'unité | E57: Coût prévisionnel total HT | F57: Montant prévisionnel de l'aide ADEME | G57: Devis à joindre à la demande d'aide ? | I57: =IF(OR(naf_section="Section O",'1-J''identifie mon entreprise'!$G$48=1),0,IF(micro_entreprise="Oui",IF(AND(secteur_tourisme="Oui",zone_rural="Oui",partenaire="Oui"),1,0),1)) -> 1
A58: ? | B58: Accompagnement à la baisse des consommations d’énergie des bâtiments imposée par le « décret tertiaire » : audit énergétique | D58: Surface du bâtiment en m² | F58: =ROUND(IF(E58="",0,MIN(H58*I58,tx_max*E58)),0) -> 0 | G58: =IF(F58=0,"","Oui") ->  | H58: =IF(C58="",0,IF(C58<500,1100,IF(C58<1000,1000+0.5*C58,1.5*C58)))*(1+(bonus_om*bonus_om_tx)) -> 0 | I58: =IF(OR(naf_section="Section O",'1-J''identifie mon entreprise'!$G$48=1),0,IF(micro_entreprise="Oui",IF(AND(secteur_tourisme="Oui",zone_rural="Oui",partenaire="Oui"),1,0),1)) -> 1 | J58: Toutes PME | K58: tous sauf A | L58: 1BA.01 | M58: SA2.04.01 | N58: =LEFT(L58,3) -> 1BA | P58: Prestations extérieurs - Autres dépenses de sous-traitance (études, honoraires, etc.) | Q58: Audit énergétique | R58: =IF(AND(secteur_tourisme="Oui",zone_rural="Oui",partenaire="Oui"),"L.ET","L.EY") -> L.EY
A59: ? | B59: Maîtrise d'œuvre (MOE) pour rénovation globale d’un ou plusieurs bâtiments pour viser un objectif de 50% d’économie d’énergie | D59: Oui/Non | F59: =ROUND(IF(E59="",0,MIN(C59*H59*I59,tx_max*E59)),0) -> 0 | G59: =IF(F59=0,"","Oui") ->  | H59: =5000*(1+(bonus_om*bonus_om_tx)) -> 5000 | I59: =IF(OR(naf_section="Section O",'1-J''identifie mon entreprise'!$G$48=1),0,IF(micro_entreprise="Oui",IF(AND(secteur_tourisme="Oui",zone_rural="Oui",partenaire="Oui"),1,0),1)) -> 1 | J59: Toutes PME | K59: tous sauf A | L59: 1BA.01 | M59: SA2.04.03 | N59: =LEFT(L59,3) -> 1BA | P59: Prestations extérieurs - Autres dépenses de sous-traitance (études, honoraires, etc.) | Q59: AMO rénovation glabale | R59: =IF(AND(secteur_tourisme="Oui",zone_rural="Oui",partenaire="Oui"),"L.ET","L.EY") -> L.EY
A60: ? | B60: Diagnostic sur la qualité de l'air (intérieur et extérieur) de l’entreprise | D60: Oui/Non | F60: =ROUND(IF(E60="",0,MIN(C60*H60*I60,tx_max*E60)),0) -> 0 | G60: =IF(F60=0,"","Oui") ->  | H60: =2000*(1+(bonus_om*bonus_om_tx)) -> 2000 | I60: =IF(OR(naf_section="Section O",'1-J''identifie mon entreprise'!$G$48=1),0,IF(micro_entreprise="Oui",IF(AND(secteur_tourisme="Oui",zone_rural="Oui",partenaire="Oui"),1,0),1)) -> 1 | J60: Toutes PME | K60: tous sauf A | L60: 1QA | M60: SA2.04.01 | N60: =LEFT(L60,3) -> 1QA | P60: Prestations extérieurs - Autres dépenses de sous-traitance (études, honoraires, etc.) | Q60: Diagnostic Air | R60: =IF(AND(secteur_tourisme="Oui",zone_rural="Oui",partenaire="Oui"),"L.ET","L.EY") -> L.EY
I61: =IF(OR(naf_section="Section O",'1-J''identifie mon entreprise'!$G$48=1),0,IF(micro_entreprise="Oui",IF(AND(secteur_tourisme="Oui",zone_rural="Oui",partenaire="Oui"),1,0),1)) -> 1
B62: Mes actions liées à l'éclairage | I62: =IF(OR(naf_section="Section O",'1-J''identifie mon entreprise'!$G$48=1),0,IF(micro_entreprise="Oui",IF(AND(secteur_tourisme="Oui",zone_rural="Oui",partenaire="Oui"),1,0),1)) -> 1
B63: Nom de l'action | C63: Quantité | D63: Type d'unité | E63: Coût prévisionnel total HT | F63: Montant prévisionnel de l'aide ADEME | G63: Devis à joindre à la demande d'aide ? | I63: =IF(OR(naf_section="Section O",'1-J''identifie mon entreprise'!$G$48=1),0,IF(micro_entreprise="Oui",IF(AND(secteur_tourisme="Oui",zone_rural="Oui",partenaire="Oui"),1,0),1)) -> 1
A64: ? | B64: Luminaire d’éclairage à modules LED | D64: Nombre de luminaires | F64: =ROUND(IF(E64="",0,MIN(C64*H64*I64,tx_max*E64)),0) -> 0 | G64: =IF(F64=0,"",IF(F64>2000,"Oui","Non")) ->  | H64: =50*(1+(bonus_om*bonus_om_tx)) -> 50 | I64: =IF(OR(naf_section="Section O",'1-J''identifie mon entreprise'!$G$48=1),0,IF(micro_entreprise="Oui",IF(AND(secteur_tourisme="Oui",zone_rural="Oui",partenaire="Oui"),1,0),1)) -> 1 | J64: Toutes PME | K64: tous sauf A | L64: 1EE.03 | M64: SA2.01 | N64: =LEFT(L64,3) -> 1EE | P64: Autres équipements | Q64: Modules LED | R64: =IF(AND(secteur_tourisme="Oui",zone_rural="Oui",partenaire="Oui"),"L.ET","L.EY") -> L.EY
A65: ? | B65: Augmenter l’éclairage naturel grâce à des lanterneaux d'éclairage zénithal | D65: Nombre de lanterneaux | F65: =ROUND(IF(E65="",0,MIN(C65*H65*I65,tx_max*E65)),0) -> 0 | G65: =IF(F65=0,"",IF(F65>2000,"Oui","Non")) ->  | H65: =100*(1+(bonus_om*bonus_om_tx)) -> 100 | I65: =IF(OR(naf_section="Section O",'1-J''identifie mon entreprise'!$G$48=1),0,IF(micro_entreprise="Oui",IF(AND(secteur_tourisme="Oui",zone_rural="Oui",partenaire="Oui"),1,0),1)) -> 1 | J65: Toutes PME | K65: tous sauf A | L65: 1EE.03 | M65: SA2.01 | N65: =LEFT(L65,3) -> 1EE | P65: Autres équipements | Q65: Lanterneaux zénithal | R65: =IF(AND(secteur_tourisme="Oui",zone_rural="Oui",partenaire="Oui"),"L.ET","L.EY") -> L.EY
A66: ? | B66: Augmenter l’éclairage naturel grâce à des conduits de lumière naturelle | D66: Nombre de conduits | F66: =ROUND(IF(E66="",0,MIN(C66*H66*I66,tx_max*E66)),0) -> 0 | G66: =IF(F66=0,"",IF(F66>2000,"Oui","Non")) ->  | H66: =100*(1+(bonus_om*bonus_om_tx)) -> 100 | I66: =IF(OR(naf_section="Section O",'1-J''identifie mon entreprise'!$G$48=1),0,IF(micro_entreprise="Oui",IF(AND(secteur_tourisme="Oui",zone_rural="Oui",partenaire="Oui"),1,0),1)) -> 1 | J66: Toutes PME | K66: tous sauf A | L66: 1EE.03 | M66: SA2.01 | N66: =LEFT(L66,3) -> 1EE | P66: Aménagements et constructions | Q66: Conduits de lumière | R66: =IF(AND(secteur_tourisme="Oui",zone_rural="Oui",partenaire="Oui"),"L.ET","L.EY") -> L.EY
A67: ? | B67: Eclairage extérieur par luminaires LED | D67: Nombre de luminaires | F67: =ROUND(IF(E67="",0,MIN(C67*H67*I67,tx_max*E67)),0) -> 0 | G67: =IF(F67=0,"",IF(F67>2000,"Oui","Non")) ->  | H67: =50*(1+(bonus_om*bonus_om_tx)) -> 50 | I67: =IF(OR(naf_section="Section O",'1-J''identifie mon entreprise'!$G$48=1),0,IF(micro_entreprise="Oui",IF(AND(secteur_tourisme="Oui",zone_rural="Oui",partenaire="Oui"),1,0),1)) -> 1 | J67: Toutes PME | K67: tous sauf A | L67: 1EE.03 | M67: SA2.01 | N67: =LEFT(L67,3) -> 1EE | P67: Autres équipements | Q67: Luminaires LED extérieurs | R67: =IF(AND(secteur_tourisme="Oui",zone_rural="Oui",partenaire="Oui"),"L.ET","L.EY") -> L.EY
A68: ? | B68: Etude de dimensionnement de l'éclairage | D68: Oui/Non | F68: =ROUND(IF(E68="",0,MIN(H68*(F64*I64+F65*I65+F66*I66+F67*I67)*I68,E68*C68*tx_max)),0) -> 0 | G68: =IF(F68=0,"",IF(F68>2000,"Oui","Non")) ->  | H68: =IF(SUM(E64:E67)<25000,0,15%) -> 0 | I68: =IF(OR(naf_section="Section O",'1-J''identifie mon entreprise'!$G$48=1),0,IF(micro_entreprise="Oui",IF(AND(secteur_tourisme="Oui",zone_rural="Oui",partenaire="Oui"),1,0),1)) -> 1 | J68: Toutes PME | K68: tous sauf A | L68: 1EE.03 | M68: SA2.04.01 | N68: =LEFT(L68,3) -> 1EE | P68: Prestations extérieurs - Autres dépenses de sous-traitance (études, honoraires, etc.) | Q68: Etude dimensionnement éclairage | R68: =IF(AND(secteur_tourisme="Oui",zone_rural="Oui",partenaire="Oui"),"L.ET","L.EY") -> L.EY
I69: =IF(OR(naf_section="Section O",'1-J''identifie mon entreprise'!$G$48=1),0,IF(micro_entreprise="Oui",IF(AND(secteur_tourisme="Oui",zone_rural="Oui",partenaire="Oui"),1,0),1)) -> 1
B70: Mes actions liées à l'efficacité énergétique des équipements de froid commercial | I70: =IF(OR(naf_section="Section O",'1-J''identifie mon entreprise'!$G$48=1),0,IF(micro_entreprise="Oui",IF(AND(secteur_tourisme="Oui",zone_rural="Oui",partenaire="Oui"),1,0),1)) -> 1
B71: Nom de l'action | C71: Quantité | D71: Type d'unité | E71: Coût prévisionnel total HT | F71: Montant prévisionnel de l'aide ADEME | G71: Devis à joindre à la demande d'aide ? | I71: =IF(OR(naf_section="Section O",'1-J''identifie mon entreprise'!$G$48=1),0,IF(micro_entreprise="Oui",IF(AND(secteur_tourisme="Oui",zone_rural="Oui",partenaire="Oui"),1,0),1)) -> 1
A72: ? | B72: Isolation des meubles de vente réfrigérés et/ou des chambres froides | D72: Nombre de meubles réfrigérés et de chambres isolées | F72: =ROUND(IF(E72="",0,MIN(C72*H72*I72,tx_max*E72)),0) -> 0 | G72: =IF(F72=0,"",IF(F72>2000,"Oui","Non")) ->  | H72: =500*(1+(bonus_om*bonus_om_tx)) -> 500 | I72: =IF(OR(naf_section="Section O",'1-J''identifie mon entreprise'!$G$48=1),0,IF(micro_entreprise="Oui",IF(AND(secteur_tourisme="Oui",zone_rural="Oui",partenaire="Oui"),1,0),1)) -> 1 | J72: Toutes PME | K72: tous sauf A | L72: 1EE.03 | M72: SA2.01 | N72: =LEFT(L72,3) -> 1EE | P72: Autres équipements | Q72: Isolation frigo | R72: =IF(AND(secteur_tourisme="Oui",zone_rural="Oui",partenaire="Oui"),"L.ET","L.EY") -> L.EY
A73: ? | B73: Remplacement de fluides dans les équipements frigorifiques commerciaux pour utiliser des fluides frigorigènes ayant moins d’impact sur le changement climatique | D73: Nombre d'équipements frigorifiques retrofiés | F73: =ROUND(IF(E73="",0,MIN(C73*H73*I73,tx_max*E73)),0) -> 0 | G73: =IF(F73=0,"",IF(F73>2000,"Oui","Non")) ->  | H73: =500*(1+(bonus_om*bonus_om_tx)) -> 500 | I73: =IF(OR(naf_section="Section O",'1-J''identifie mon entreprise'!$G$48=1),0,IF(micro_entreprise="Oui",IF(AND(secteur_tourisme="Oui",zone_rural="Oui",partenaire="Oui"),1,0),1)) -> 1 | J73: Toutes PME | K73: tous sauf A | L73: 1EE.03 | M73: SA2.01 | N73: =LEFT(L73,3) -> 1EE | P73: Autres équipements | Q73: Retrofit frigo | R73: =IF(AND(secteur_tourisme="Oui",zone_rural="Oui",partenaire="Oui"),"L.ET","L.EY") -> L.EY
A74: ? | B74: Remplacement d’armoires frigorifiques positives ou de tours réfrigérées par de nouveaux équipements neufs à fluides frigorigènes ayant moins d’impact sur le changement climatique | D74: Nombre de meubles remplacés | F74: =ROUND(IF(E74="",0,MIN(C74*H74*I74,tx_max*E74)),0) -> 0 | G74: =IF(F74=0,"",IF(F74>2000,"Oui","Non")) ->  | H74: =1000*(1+(bonus_om*bonus_om_tx)) -> 1000 | I74: =IF(OR(naf_section="Section O",'1-J''identifie mon entreprise'!$G$48=1),0,IF(micro_entreprise="Oui",IF(AND(secteur_tourisme="Oui",zone_rural="Oui",partenaire="Oui"),1,0),1)) -> 1 | J74: Toutes PME | K74: tous sauf A | L74: 1EE.03 | M74: SA2.01 | N74: =LEFT(L74,3) -> 1EE | P74: Autres équipements | Q74: Remplacement petit frigo | R74: =IF(AND(secteur_tourisme="Oui",zone_rural="Oui",partenaire="Oui"),"L.ET","L.EY") -> L.EY
A75: ? | B75: Remplacement d’équipements frigorifiques commerciaux peu performants par des équipements neufs à fluides frigorigènes ayant moins d’impact sur le changement climatique | D75: Nombre d'équipements remplacés | F75: =ROUND(IF(E75="",0,MIN(C75*H75*I75,tx_max*E75)),0) -> 0 | G75: =IF(F75=0,"",IF(F75>2000,"Oui","Non")) ->  | H75: =5000*(1+(bonus_om*bonus_om_tx)) -> 5000 | I75: =IF(OR(naf_section="Section O",'1-J''identifie mon entreprise'!$G$48=1),0,IF(micro_entreprise="Oui",IF(AND(secteur_tourisme="Oui",zone_rural="Oui",partenaire="Oui"),1,0),1)) -> 1 | J75: Toutes PME | K75: tous sauf A | L75: 1EE.03 | M75: SA2.01 | N75: =LEFT(L75,3) -> 1EE | P75: Autres équipements | Q75: Remplacement présentoir frigo | R75: =IF(AND(secteur_tourisme="Oui",zone_rural="Oui",partenaire="Oui"),"L.ET","L.EY") -> L.EY
A76: ? | B76: Installation de froid commercial centralisée au CO2 avec récupération de chaleur | D76: Oui/Non | F76: =ROUND(IF(E76="",0,MIN(C76*H76*I76,tx_max*E76)),0) -> 0 | G76: =IF(F76=0,"",IF(F76>2000,"Oui","Non")) ->  | H76: =20000*(1+(bonus_om*bonus_om_tx)) -> 20000 | I76: =IF(OR(naf_section="Section O",'1-J''identifie mon entreprise'!$G$48=1),0,IF(micro_entreprise="Oui",IF(AND(secteur_tourisme="Oui",zone_rural="Oui",partenaire="Oui"),1,0),1)) -> 1 | J76: Toutes PME | K76: tous sauf A | L76: 1EE.03 | M76: SA2.01 | N76: =LEFT(L76,3) -> 1EE | P76: Autres équipements | Q76: Froid centralisé | R76: L.EY
I77: =IF(OR(naf_section="Section O",'1-J''identifie mon entreprise'!$G$48=1),0,IF(micro_entreprise="Oui",IF(AND(secteur_tourisme="Oui",zone_rural="Oui",partenaire="Oui"),1,0),1)) -> 1
B78: Mes actions liées à l'isolation et la ventilation de mon bâtiment industriel existant | I78: =IF('1-J''identifie mon entreprise'!$G$48=1,0,IF(OR(naf_section="Section B",naf_section="Section C",naf_section="Section D",naf_section="Section E"),IF(micro_entreprise="Oui",0,1),0)) -> 0
B79: Nom de l'action | C79: Quantité | D79: Type d'unité | E79: Coût prévisionnel total HT | F79: Montant prévisionnel de l'aide ADEME | G79: Devis à joindre à la demande d'aide ? | I79: =IF('1-J''identifie mon entreprise'!$G$48=1,0,IF(OR(naf_section="Section B",naf_section="Section C",naf_section="Section D",naf_section="Section E"),IF(micro_entreprise="Oui",0,1),0)) -> 0
A80: ? | B80: Isolation de combles perdus | D80: Surface isolée en m² | F80: =ROUND(IF(E80="",0,MIN(C80*H80*I80,tx_max*E80)),0) -> 0 | G80: =IF(F80=0,"",IF(F80>2000,"Oui","Non")) ->  | H80: 10 | I80: =IF('1-J''identifie mon entreprise'!$G$48=1,0,IF(OR(naf_section="Section B",naf_section="Section C",naf_section="Section D",naf_section="Section E"),IF(micro_entreprise="Oui",0,1),0)) -> 0 | J80: PME industrielles | K80: Sections BCDE | L80: 1BA.01 | M80: SA2.01 | N80: =LEFT(L80,3) -> 1BA | P80: Aménagements et construction | Q80: Isolation combles | R80: L.EY
A81: ? | B81: Isolation des rampants de toiture et plafonds de combles | D81: Surface isolée en m² | F81: 0 | H81: 15 | I81: =IF('1-J''identifie mon entreprise'!$G$48=1,0,IF(OR(naf_section="Section B",naf_section="Section C",naf_section="Section D",naf_section="Section E"),IF(micro_entreprise="Oui",0,1),0)) -> 0 | J81: PME industrielles | K81: Sections BCDE | L81: 1BA.01 | M81: SA2.01 | N81: 1BA | P81: Aménagements et construction | Q81: Isolation rampants | R81: L.EY
A82: ? | B82: Isolation des murs par l'intérieur | D82: Surface isolée en m² | F82: 0 | H82: 15 | I82: =IF('1-J''identifie mon entreprise'!$G$48=1,0,IF(OR(naf_section="Section B",naf_section="Section C",naf_section="Section D",naf_section="Section E"),IF(micro_entreprise="Oui",0,1),0)) -> 0 | J82: PME industrielles | K82: Sections BCDE | L82: 1BA.01 | M82: SA2.01 | N82: 1BA | P82: Aménagements et construction | Q82: Isolation intérieure murs | R82: L.EY
A83: ? | B83: Isolation des murs par l'extérieur | D83: Surface isolée en m² | F83: 0 | H83: 40 | I83: =IF('1-J''identifie mon entreprise'!$G$48=1,0,IF(OR(naf_section="Section B",naf_section="Section C",naf_section="Section D",naf_section="Section E"),IF(micro_entreprise="Oui",0,1),0)) -> 0 | J83: PME industrielles | K83: Sections BCDE | L83: 1BA.01 | M83: SA2.01 | N83: 1BA | P83: Aménagements et construction | Q83: Isolation extérieure murs | R83: L.EY
A84: ? | B84: Isolation des toitures-terrasses | D84: Surface isolée en m² | F84: 0 | H84: 40 | I84: =IF('1-J''identifie mon entreprise'!$G$48=1,0,IF(OR(naf_section="Section B",naf_section="Section C",naf_section="Section D",naf_section="Section E"),IF(micro_entreprise="Oui",0,1),0)) -> 0 | J84: PME industrielles | K84: Sections BCDE | L84: 1BA.01 | M84: SA2.01 | N84: 1BA | P84: Aménagements et construction | Q84: Isolation terras | R84: L.EY
A85: ? | B85: Ventilation mécanique double flux | D85: Nombre de VMC | F85: 0 | H85: =2000*(1+(bonus_om*bonus_om_tx)) -> 2000 | I85: =IF('1-J''identifie mon entreprise'!$G$48=1,0,IF(OR(naf_section="Section B",naf_section="Section C",naf_section="Section D",naf_section="Section E"),IF(VLOOKUP('1-J''identifie mon entreprise'!$C$19,List!$R:$S,2,FALSE)="BF - Bourgogne Franche Comté",0,IF(micro_entreprise="Oui",0,1)),0)) -> 0 | J85: PME industrielles | K85: Sections BCDE | L85: 1BA.01 | M85: SA2.01 | N85: 1BA | P85: Aménagements et construction | Q85: VMC double flux | R85: L.EY
A86: ? | B86: Mise en place d’un système de gestion technique du bâtiment (GTB) de classe B ou A | D86: Surface du bâtiment en m² | F86: 0 | H86: =10*(1+(bonus_om*bonus_om_tx)) -> 10 | I86: =IF('1-J''identifie mon entreprise'!$G$48=1,0,IF(OR(naf_section="Section B",naf_section="Section C",naf_section="Section D",naf_section="Section E"),IF(micro_entreprise="Oui",0,1),0)) -> 0 | J86: PME industrielles | K86: Sections BCDE | L86: 1BA.01 | M86: SA2.01 | N86: 1BA | P86: Aménagements et construction | Q86: GTB | R86: L.EY
I87: =IF('1-J''identifie mon entreprise'!$G$48=1,0,IF(OR(naf_section="Section B",naf_section="Section C",naf_section="Section D",naf_section="Section E"),IF(micro_entreprise="Oui",0,1),0)) -> 0
B88: Mes actions liées à la production de chaleur et de froid pour mon bâtiment industriel ou agricole existant | I88: =IF('1-J''identifie mon entreprise'!$G$48=1,0,IF(OR(naf_section="Section A",naf_section="Section B",naf_section="Section C",naf_section="Section D",naf_section="Section E"),IF(OR(VLOOKUP('1-J''identifie mon entreprise'!$C$19,List!$R:$S,2,FALSE)="GE - Grand Est",VLOOKUP('1-J''identifie mon entreprise'!$C$19,List!$R:$S,2,FALSE)="PL - Pays de la Loire"),0,IF(micro_entreprise="Oui",0,1)),0)) -> 0
B89: Nom de l'action | C89: Quantité | D89: Type d'unité | E89: Coût prévisionnel total HT | F89: Montant prévisionnel de l'aide ADEME | G89: Devis à joindre à la demande d'aide ? | I89: =IF('1-J''identifie mon entreprise'!$G$48=1,0,IF(OR(naf_section="Section A",naf_section="Section B",naf_section="Section C",naf_section="Section D",naf_section="Section E"),IF(OR(VLOOKUP('1-J''identifie mon entreprise'!$C$19,List!$R:$S,2,FALSE)="GE - Grand Est",VLOOKUP('1-J''identifie mon entreprise'!$C$19,List!$R:$S,2,FALSE)="PL - Pays de la Loire"),0,IF(micro_entreprise="Oui",0,1)),0)) -> 0
A90: ? | B90: Géothermie sur champ de sondes et géostructures énergétiques | D90: Production énergétique prévisionnelle en MWh/an | F90: =ROUND(IF(E90="",0,MIN(C90*H90*I90,tx_max*E90)),0) -> 0 | G90: =IF(F90=0,"",IF(F90>2000,"Oui","Non")) ->  | H90: 440 | I90: =IF('1-J''identifie mon entreprise'!$G$48=1,0,IF(OR(naf_section="Section A",naf_section="Section B",naf_section="Section C",naf_section="Section D",naf_section="Section E"),IF(OR(VLOOKUP('1-J''identifie mon entreprise'!$C$19,List!$R:$S,2,FALSE)="GE - Grand Est",VLOOKUP('1-J''identifie mon entreprise'!$C$19,List!$R:$S,2,FALSE)="PL - Pays de la Loire"),0,IF(micro_entreprise="Oui",0,1)),0)) -> 0 | J90: PME industrielles | K90: Sections BCDE | L90: 1ER.15.03 | M90: SA2.01 | N90: =LEFT(L90,3) -> 1ER | P90: Aménagements et construction | Q90: Géothermie champ de sondes | R90: =IF(List!$AI$2=1,"I.FF","L.EY") -> I.FF | S90: 25
A91: ? | B91: Géothermie sur eau de nappe, sur eau de mer et sur eaux usées | D91: Production énergétique prévisionnelle en MWh/an | F91: 0 | H91: 220 | I91: =IF('1-J''identifie mon entreprise'!$G$48=1,0,IF(OR(naf_section="Section A",naf_section="Section B",naf_section="Section C",naf_section="Section D",naf_section="Section E"),IF(OR(VLOOKUP('1-J''identifie mon entreprise'!$C$19,List!$R:$S,2,FALSE)="GE - Grand Est",VLOOKUP('1-J''identifie mon entreprise'!$C$19,List!$R:$S,2,FALSE)="PL - Pays de la Loire"),0,IF(micro_entreprise="Oui",0,1)),0)) -> 0 | J91: PME industrielles | K91: Sections BCDE | L91: 1ER.15.03 | M91: SA2.01 | N91: 1ER | P91: Aménagements et construction | Q91: Géothermie sur eau | R91: =IF(List!$AI$2=1,"I.FF","L.EY") -> I.FF | S91: 25
A92: ? | B92: Géocooling | D92: Production énergétique prévisionnelle en MWh/an | F92: 0 | H92: 100 | I92: =IF('1-J''identifie mon entreprise'!$G$48=1,0,IF(OR(naf_section="Section A",naf_section="Section B",naf_section="Section C",naf_section="Section D",naf_section="Section E"),IF(OR(VLOOKUP('1-J''identifie mon entreprise'!$C$19,List!$R:$S,2,FALSE)="GE - Grand Est",VLOOKUP('1-J''identifie mon entreprise'!$C$19,List!$R:$S,2,FALSE)="PL - Pays de la Loire"),0,IF(micro_entreprise="Oui",0,1)),0)) -> 0 | J92: PME industrielles | K92: Sections BCDE | L92: 1ER.15.03 | M92: SA2.01 | N92: 1ER | P92: Aménagements et construction | Q92: Géocooling | R92: =IF(List!$AI$2=1,"I.FF","L.EY") -> I.FF | S92: 25
A93: ? | B93: Pompe à chaleur (PAC) solarothermique | D93: Production énergétique prévisionnelle en MWh/an | F93: 0 | H93: =20*IF(OR(bonus_om=1,VLOOKUP('1-J''identifie mon entreprise'!$C$19,List!$R:$T,3,FALSE)="Med",ISERROR(VLOOKUP('1-J''identifie mon entreprise'!$C$19,List!$R:$T,3,FALSE))),6,IF(VLOOKUP('1-J''identifie mon entreprise'!$C$19,List!$R:$T,3,FALSE)="Sud",8,IF(VLOOKUP('1-J''identifie mon entreprise'!$C$19,List!$R:$T,3,FALSE)="Nord",12,6))) ->  | I93: =IF('1-J''identifie mon entreprise'!$G$48=1,0,IF(OR(naf_section="Section A",naf_section="Section B",naf_section="Section C",naf_section="Section D",naf_section="Section E"),IF(OR(VLOOKUP('1-J''identifie mon entreprise'!$C$19,List!$R:$S,2,FALSE)="GE - Grand Est",VLOOKUP('1-J''identifie mon entreprise'!$C$19,List!$R:$S,2,FALSE)="PL - Pays de la Loire"),0,IF(micro_entreprise="Oui",0,1)),0)) -> 0 | J93: PME industrielles | K93: Sections BCDE | L93: 1ER.15.03 | M93: SA2.01 | N93: 1ER | P93: Aménagements et construction | Q93: PAC solarothermique | R93: =IF(List!$AI$2=1,"I.FF","L.EY") -> I.FF | S93: 13
A94: ? | B94: Solaire thermique | D94: Production énergétique prévisionnelle en MWh solaire utile /an | F94: 0 | H94: =20*IF(OR(bonus_om=1,VLOOKUP('1-J''identifie mon entreprise'!$C$19,List!$R:$T,3,FALSE)="Sud"),45,IF(VLOOKUP('1-J''identifie mon entreprise'!$C$19,List!$R:$T,3,FALSE)="Nord",50,40)) ->  | I94: =IF('1-J''identifie mon entreprise'!$G$48=1,0,IF(OR(naf_section="Section A",naf_section="Section B",naf_section="Section C",naf_section="Section D",naf_section="Section E"),IF(OR(VLOOKUP('1-J''identifie mon entreprise'!$C$19,List!$R:$S,2,FALSE)="GE - Grand Est",VLOOKUP('1-J''identifie mon entreprise'!$C$19,List!$R:$S,2,FALSE)="PL - Pays de la Loire"),0,IF(micro_entreprise="Oui",0,1)),0)) -> 0 | J94: PME industrielles | K94: Sections BCDE | L94: 1ER.15.03 | M94: SA2.01 | N94: 1ER | P94: Aménagements et construction | Q94: Solaire thermique | R94: =IF(List!$AI$2=1,"I.FF","L.EY") -> I.FF | S94: 13
A95: ? | B95: Raccordement à un réseau de chaleur ou à un réseau de froid | D95: Longueur de tranché en mètres linéaires | F95: 0 | H95: 340 | I95: =IF('1-J''identifie mon entreprise'!$G$48=1,0,IF(OR(naf_section="Section A",naf_section="Section B",naf_section="Section C",naf_section="Section D",naf_section="Section E"),IF(OR(VLOOKUP('1-J''identifie mon entreprise'!$C$19,List!$R:$S,2,FALSE)="GE - Grand Est",VLOOKUP('1-J''identifie mon entreprise'!$C$19,List!$R:$S,2,FALSE)="PL - Pays de la Loire"),0,IF(micro_entreprise="Oui",0,1)),0)) -> 0 | J95: PME industrielles | K95: Sections BCDE | L95: 1ER.15.03 | M95: SA2.01 | N95: 1ER | P95: Aménagements et construction | Q95: Raccordement réseau chaleur | R95: =IF(List!$AI$2=1,"I.FF","L.EY") -> I.FF
A96: ? | B96: Chaudière biomasse inférieure à 600 MWh par an | D96: Production énergétique prévisionnelle en MWh/an | F96: 0 | H96: =9*20 -> 180 | I96: =IF('1-J''identifie mon entreprise'!$G$48=1,0,IF(OR(naf_section="Section A",naf_section="Section B",naf_section="Section C",naf_section="Section D",naf_section="Section E"),IF(OR(VLOOKUP('1-J''identifie mon entreprise'!$C$19,List!$R:$S,2,FALSE)="GE - Grand Est",VLOOKUP('1-J''identifie mon entreprise'!$C$19,List!$R:$S,2,FALSE)="PL - Pays de la Loire"),0,IF(micro_entreprise="Oui",0,1)),0)) -> 0 | J96: PME industrielles | K96: Sections BCDE | L96: 1ER.15.03 | M96: SA2.01 | N96: 1ER | P96: Aménagements et construction | Q96: Chaudière biomasse | R96: =IF(List!$AI$2=1,"I.FF","L.EY") -> I.FF | S96: 600
I97: =IF('1-J''identifie mon entreprise'!$G$48=1,0,IF(OR(naf_section="Section A",naf_section="Section B",naf_section="Section C",naf_section="Section D",naf_section="Section E"),IF(OR(VLOOKUP('1-J''identifie mon entreprise'!$C$19,List!$R:$S,2,FALSE)="GE - Grand Est",VLOOKUP('1-J''identifie mon entreprise'!$C$19,List!$R:$S,2,FALSE)="PL - Pays de la Loire"),0,IF(micro_entreprise="Oui",0,1)),0)) -> 0
B98: Mes actions liées à la mobilité | I98: =IF(OR(naf_section="Section O",'1-J''identifie mon entreprise'!$G$48=1),0,IF(micro_entreprise="Oui",IF(AND(secteur_tourisme="Oui",zone_rural="Oui",partenaire="Oui"),1,0),1)) -> 1
B99: Nom de l'action | C99: Quantité | D99: Type d'unité | E99: Coût prévisionnel total HT | F99: Montant prévisionnel de l'aide ADEME | G99: Devis à joindre à la demande d'aide ? | I99: =IF(OR(naf_section="Section O",'1-J''identifie mon entreprise'!$G$48=1),0,IF(micro_entreprise="Oui",IF(AND(secteur_tourisme="Oui",zone_rural="Oui",partenaire="Oui"),1,0),1)) -> 1
A100: ? | B100: Mise en place d’un Plan Déplacement Entreprise | D100: Oui/Non | F100: =ROUND(IF(E100="",0,MIN(C100*H100*I100,tx_max*E100)),0) -> 0 | G100: =IF(F100=0,"","Oui") ->  | H100: =12000*(1+(bonus_om*bonus_om_tx)) -> 12000 | I100: =IF(OR(naf_section="Section O",'1-J''identifie mon entreprise'!$G$48=1),0,IF(micro_entreprise="Oui",IF(AND(secteur_tourisme="Oui",zone_rural="Oui",partenaire="Oui"),1,0),1)) -> 1 | J100: Toutes PME | K100: tous sauf A | L100: 1MT | M100: SA2.04.01 | N100: =LEFT(L100,3) -> 1MT | P100: Prestations extérieurs - Autres dépenses de sous-traitance (études, honoraires, etc.) | Q100: Diagnostic déplacement | R100: L.EY
A101: ? | B101: Diagnostic Mobilipro sur les flottes de véhicules d’entreprises | D101: Oui/Non | F101: 0 | H101: =20000*(1+(bonus_om*bonus_om_tx)) -> 20000 | I101: =IF(OR(naf_section="Section O",'1-J''identifie mon entreprise'!$G$48=1),0,IF(micro_entreprise="Oui",IF(AND(secteur_tourisme="Oui",zone_rural="Oui",partenaire="Oui"),1,0),1)) -> 1 | J101: Toutes PME | K101: tous sauf A | L101: 1MT | M101: SA2.04.01 | N101: 1MT | P101: Prestations extérieurs - Autres dépenses de sous-traitance (études, honoraires, etc.) | Q101: Diagnostic mobilité | R101: L.EY
A102: ? | B102: Remplacement d'un véhicule thermique par un véhicule électrique Véhicule léger | D102: Nombre de véhicules remplacés | F102: 0 | G102: =IF(F102=0,"",IF(F102>2000,"Oui","Non")) ->  | H102: =4000*(1+(bonus_om*bonus_om_tx)) -> 4000 | I102: =IF(OR(naf_section="Section O",'1-J''identifie mon entreprise'!$G$48=1),0,IF(micro_entreprise="Oui",IF(AND(secteur_tourisme="Oui",zone_rural="Oui",partenaire="Oui"),1,0),1)) -> 1 | J102: Toutes PME | K102: tous sauf A | L102: 1MT | M102: SA2.01 | N102: 1MT | P102: Equipements de transport | Q102: VL électrique | R102: L.EY
A103: ? | B103: Remplacement d'un véhicule thermique par un véhicule électrique Fourgonnette | D103: Nombre de véhicules remplacés | F103: 0 | H103: =7000*(1+(bonus_om*bonus_om_tx)) -> 7000 | I103: =IF(OR(naf_section="Section O",'1-J''identifie mon entreprise'!$G$48=1),0,IF(micro_entreprise="Oui",IF(AND(secteur_tourisme="Oui",zone_rural="Oui",partenaire="Oui"),1,0),1)) -> 1 | J103: Toutes PME | K103: tous sauf A | L103: 1MT | M103: SA2.01 | N103: 1MT | P103: Equipements de transport | Q103: Fourgonnette électrique | R103: L.EY
A104: ? | B104: Remplacement d'un véhicule thermique par un véhicule électrique Fourgon | D104: Nombre de véhicules remplacés | F104: 0 | H104: =16000*(1+(bonus_om*bonus_om_tx)) -> 16000 | I104: =IF(OR(naf_section="Section O",'1-J''identifie mon entreprise'!$G$48=1),0,IF(micro_entreprise="Oui",IF(AND(secteur_tourisme="Oui",zone_rural="Oui",partenaire="Oui"),1,0),1)) -> 1 | J104: Toutes PME | K104: tous sauf A | L104: 1MT | M104: SA2.01 | N104: 1MT | P104: Equipements de transport | Q104: Petit fourgon électrique | R104: L.EY
A105: ? | B105: Remplacement d'un véhicule thermique par un véhicule GNV Fourgon | D105: Nombre de véhicules remplacés | F105: 0 | H105: 4000 | I105: =IF(OR(naf_section="Section O",'1-J''identifie mon entreprise'!$G$48=1),0,IF(micro_entreprise="Oui",IF(AND(secteur_tourisme="Oui",zone_rural="Oui",partenaire="Oui"),1,0),1)) -> 1 | J105: Toutes PME | K105: tous sauf A | L105: 1MT | M105: SA2.01 | N105: 1MT | P105: Equipements de transport | Q105: Petit fourgon GNV | R105: L.EY
H106: 0 | I106: 0 | J106: Toutes PME | K106: tous sauf A | L106: 1MT | M106: SA2.01 | N106: 1MT | P106: Equipements de transport | Q106: Gros fourgon GNV | R106: L.EY
A107: ? | B107: Transformation de fourgonnette à motorisation thermique en motorisation électrique (retrofit) | D107: Nombre de véhicules retrofiés | F107: 0 | H107: =10000*(1+(bonus_om*bonus_om_tx)) -> 10000 | I107: =IF(OR(naf_section="Section O",'1-J''identifie mon entreprise'!$G$48=1),0,IF(micro_entreprise="Oui",IF(AND(secteur_tourisme="Oui",zone_rural="Oui",partenaire="Oui"),1,0),1)) -> 1 | J107: Toutes PME | K107: tous sauf A | L107: 1MT | M107: SA2.01 | N107: 1MT | P107: Equipements de transport | Q107: Retrofit fourgonnette | R107: L.EY
A108: ? | B108: Transformation des fourgon à motorisation thermique en motorisation électrique (retrofit) | D108: Nombre de véhicules retrofiés | F108: 0 | H108: =16000*(1+(bonus_om*bonus_om_tx)) -> 16000 | I108: =IF(OR(naf_section="Section O",'1-J''identifie mon entreprise'!$G$48=1),0,IF(micro_entreprise="Oui",IF(AND(secteur_tourisme="Oui",zone_rural="Oui",partenaire="Oui"),1,0),1)) -> 1 | J108: Toutes PME | K108: tous sauf A | L108: 1MT | M108: SA2.01 | N108: 1MT | P108: Equipements de transport | Q108: Retrofit petit fourgon | R108: L.EY
A109: ? | B109: Transformation des poids lourds à motorisation thermique en motorisation électrique (retrofit) | D109: Nombre de véhicules retrofiés | F109: 0 | H109: =24000*(1+(bonus_om*bonus_om_tx)) -> 24000 | I109: =IF(OR(naf_section="Section O",'1-J''identifie mon entreprise'!$G$48=1),0,IF(micro_entreprise="Oui",IF(AND(secteur_tourisme="Oui",zone_rural="Oui",partenaire="Oui"),1,0),1)) -> 1 | J109: Toutes PME | K109: tous sauf A | L109: 1MT | M109: SA2.01 | N109: 1MT | P109: Equipements de transport | Q109: Retrofit grand fourgon | R109: L.EY
A110: ? | B110: Véhicule utilitaire léger frigorifique neuf : achat d’un groupe frigorifique électrique | D110: Nombre de véhicules concernés | F110: 0 | H110: =5000*(1+(bonus_om*bonus_om_tx)) -> 5000 | I110: =IF(OR(naf_section="Section O",'1-J''identifie mon entreprise'!$G$48=1),0,IF(micro_entreprise="Oui",IF(AND(secteur_tourisme="Oui",zone_rural="Oui",partenaire="Oui"),1,0),1)) -> 1 | J110: Toutes PME | K110: tous sauf A | L110: 1MT | M110: SA2.01 | N110: 1MT | P110: Equipements de transport | Q110: Groupe frigo VUL | R110: L.EY
A111: ? | B111: Porteur ou semi-remorque frigorifique neuf : achat d’un groupe frigorifique complet (hors groupes frigorifiques autonomes Diesel) | D111: Nombre de véhicules concernés | F111: 0 | H111: =15000*(1+(bonus_om*bonus_om_tx)) -> 15000 | I111: =IF(OR(naf_section="Section O",'1-J''identifie mon entreprise'!$G$48=1),0,IF(micro_entreprise="Oui",IF(AND(secteur_tourisme="Oui",zone_rural="Oui",partenaire="Oui"),1,0),1)) -> 1 | J111: Toutes PME | K111: tous sauf A | L111: 1MT | M111: SA2.01 | N111: 1MT | P111: Autres équipements | Q111: Groupe frigo PL | R111: L.EY
A112: ? | B112: Amélioration d’un système frigorifique sur un véhicule neuf ou existant | D112: Nombre de véhicules concernés | F112: 0 | G112: =IF(F112=0,"",IF(F112>2000,"Oui","Non")) ->  | H112: =1000*(1+(bonus_om*bonus_om_tx)) -> 1000 | I112: =IF(OR(naf_section="Section O",'1-J''identifie mon entreprise'!$G$48=1),0,IF(micro_entreprise="Oui",IF(AND(secteur_tourisme="Oui",zone_rural="Oui",partenaire="Oui"),1,0),1)) -> 1 | J112: Toutes PME | K112: tous sauf A | L112: 1MT | M112: SA2.01 | N112: 1MT | P112: Autres équipements | Q112: Amélioration frigo véhicule | R112: L.EY
A113: ? | B113: Vélo de service à assistance électrique : vélo de service ou flotte de vélo | D113: Nombre de vélos électrique | F113: 0 | G113: =IF(F113=0,"",IF(F113>2000,"Oui","Non")) ->  | H113: =800*(1+(bonus_om*bonus_om_tx)) -> 800 | I113: 0 | J113: Toutes PME | K113: tous sauf A | L113: 1MT | M113: SA2.01 | N113: 1MT | P113: Equipements de transport | Q113: Vélo électrique | R113: L.EY
A114: ? | B114: Vélo cargo électrique pour un usage professionnel | D114: Nombre de vélos cargos | F114: 0 | G114: =IF(F114=0,"",IF(F114>2000,"Oui","Non")) ->  | H114: =3000*(1+(bonus_om*bonus_om_tx)) -> 3000 | I114: =IF(OR(naf_section="Section O",'1-J''identifie mon entreprise'!$G$48=1),0,IF(micro_entreprise="Oui",IF(AND(secteur_tourisme="Oui",zone_rural="Oui",partenaire="Oui"),1,0),1)) -> 1 | J114: Toutes PME | K114: tous sauf A | L114: 1MT | M114: SA2.01 | N114: 1MT | P114: Equipements de transport | Q114: Vélo cargo électrique | R114: =IF(AND(secteur_tourisme="Oui",zone_rural="Oui",partenaire="Oui"),"L.ET","L.EY") -> L.EY
A115: ? | B115: Abris à vélo avec toit | D115: Capacité d'accueil de l'abris en nombre de vélos | F115: 0 | G115: =IF(F115=0,"",IF(F115>2000,"Oui","Non")) ->  | H115: =250*(1+(bonus_om*bonus_om_tx)) -> 250 | I115: =IF(OR(naf_section="Section O",'1-J''identifie mon entreprise'!$G$48=1),0,IF(micro_entreprise="Oui",IF(AND(secteur_tourisme="Oui",zone_rural="Oui",partenaire="Oui"),1,0),1)) -> 1 | J115: Toutes PME | K115: tous sauf A | L115: 1MT | M115: SA2.01 | N115: 1MT | P115: Aménagements et construction | Q115: Abris à vélo | R115: =IF(AND(secteur_tourisme="Oui",zone_rural="Oui",partenaire="Oui"),"L.ET","L.EY") -> L.EY
A116: ? | B116: Etude de dimensionnement transport durable | D116: Oui/Non | F116: =ROUND(IF(E116="",0,MIN(H116*(F115*I115+F114*I114+F113*I113+F112*I112+F111*I111+F110*I110+F109*I109+F108*I108+F107*I107+F106*I106+F105*I105+F104*I104+F103*I103+F102*I102)*I116*C116,tx_max*E116)),0) -> 0 | G116: =IF(F116=0,"",IF(F116>2000,"Oui","Non")) ->  | H116: =IF(SUM(E100:E115)<25000,0,15%) -> 0 | I116: =IF(OR(naf_section="Section O",'1-J''identifie mon entreprise'!$G$48=1),0,IF(micro_entreprise="Oui",IF(AND(secteur_tourisme="Oui",zone_rural="Oui",partenaire="Oui"),1,0),1)) -> 1 | J116: Toutes PME | K116: tous sauf A | L116: 1MT | M116: SA2.04.01 | N116: =LEFT(L116,3) -> 1MT | P116: Prestations extérieurs - Autres dépenses de sous-traitance (études, honoraires, etc.) | Q116: Etude dimensionnement mobilité | R116: L.EY
I117: =IF(OR(naf_section="Section O",'1-J''identifie mon entreprise'!$G$48=1),0,IF(micro_entreprise="Oui",IF(AND(secteur_tourisme="Oui",zone_rural="Oui",partenaire="Oui"),1,0),1)) -> 1
B118: Mes actions liées à l'économie circulaire et la gestion des déchets | I118: =IF(OR(naf_section="Section O",'1-J''identifie mon entreprise'!$G$48=1),0,IF(micro_entreprise="Oui",IF(AND(secteur_tourisme="Oui",zone_rural="Oui",partenaire="Oui"),1,0),1)) -> 1
B119: Nom de l'action | C119: Quantité | D119: Type d'unité | E119: Coût prévisionnel total HT | F119: Montant prévisionnel de l'aide ADEME | G119: Devis à joindre à la demande d'aide ? | I119: =IF(OR(naf_section="Section O",'1-J''identifie mon entreprise'!$G$48=1),0,IF(micro_entreprise="Oui",IF(AND(secteur_tourisme="Oui",zone_rural="Oui",partenaire="Oui"),1,0),1)) -> 1
A120: ? | B120: Etat des lieux et proposition pour trier les déchets de bois, papier/carton, métaux, verre et plastiques ainsi que les fractions minérales et le plâtre | D120: Oui/Non | F120: =ROUND(IF(E120="",0,MIN(C120*H120*I120,tx_max*E120)),0) -> 0 | G120: =IF(F120=0,"","Oui") ->  | H120: =3000*(1+(bonus_om*bonus_om_tx)) -> 3000 | I120: =IF(OR(naf_section="Section O",'1-J''identifie mon entreprise'!$G$48=1),0,IF(micro_entreprise="Oui",IF(AND(secteur_tourisme="Oui",zone_rural="Oui",partenaire="Oui"),1,0),1)) -> 1 | J120: Toutes PME | K120: tous sauf A | L120: 2DE | M120: SA2.04.01 | N120: =LEFT(L120,3) -> 2DE | P120: Prestations extérieurs - Autres dépenses de sous-traitance (études, honoraires, etc.) | Q120: Diagnostic 5-7 flux | R120: L.EY
A121: ? | B121: Analyse de process pour la prévention des déchets (méthode Comptabilité des flux de matière) | D121: Oui/Non | F121: 0 | H121: =5000*(1+(bonus_om*bonus_om_tx)) -> 5000 | I121: =IF(OR(naf_section="Section O",'1-J''identifie mon entreprise'!$G$48=1),0,IF(micro_entreprise="Oui",IF(AND(secteur_tourisme="Oui",zone_rural="Oui",partenaire="Oui"),1,0),1)) -> 1 | J121: Toutes PME | K121: tous sauf A | L121: 2DE | M121: SA2.04.01 | N121: =LEFT(L121,3) -> 2DE | P121: Prestations extérieurs - Autres dépenses de sous-traitance (études, honoraires, etc.) | Q121: Analyse process déchets | R121: L.EY
A122: ? | B122: Diagnostic pour réduire les emballages ou remplacer des emballages plastiques par d’autres | D122: Oui/Non | F122: 0 | H122: =5000*(1+(bonus_om*bonus_om_tx)) -> 5000 | I122: =IF(OR(naf_section="Section O",'1-J''identifie mon entreprise'!$G$48=1),0,IF(micro_entreprise="Oui",IF(AND(secteur_tourisme="Oui",zone_rural="Oui",partenaire="Oui"),1,0),1)) -> 1 | J122: Toutes PME | K122: tous sauf A | L122: 2DE.01.01 | M122: SA2.04.01 | N122: =LEFT(L122,3) -> 2DE | P122: Prestations extérieurs - Autres dépenses de sous-traitance (études, honoraires, etc.) | Q122: Diagnostic emballage | R122: L.EY
A123: ? | B123: Soutien aux réparateurs : logiciels, progiciels et outils de réparation | D123: Oui/Non | F123: 0 | H123: =2500*(1+(bonus_om*bonus_om_tx)) -> 2500 | I123: =IFERROR(IF('1-J''identifie mon entreprise'!$C$8=List!$D$2048,IF(AND(code_naf="9529Z",'1-J''identifie mon entreprise'!$D$13=List!$AC$6),0,IF(OR(micro_entreprise="Oui",'1-J''identifie mon entreprise'!G48=1),0,1)),0),0) -> 0 | J123: Structures de réparation | K123: Section S, division 95 | L123: 2DE.01.01 | N123: =LEFT(L123,3) -> 2DE | P123: Logiciels et brevets | Q123: Logiciels outils réparation | R123: L.EY
A124: ? | B124: Bilan des matières entrantes dans et sortantes de l’entreprise (méthode Bilan matière) | D124: Oui/Non | F124: 0 | H124: =7000*(1+(bonus_om*bonus_om_tx)) -> 7000 | I124: =IF(OR(naf_section="Section O",'1-J''identifie mon entreprise'!$G$48=1),0,IF(micro_entreprise="Oui",IF(AND(secteur_tourisme="Oui",zone_rural="Oui",partenaire="Oui"),1,0),1)) -> 1 | J124: Toutes PME | K124: tous sauf A | L124: 2PR.05 | M124: SA2.04.01 | N124: =LEFT(L124,3) -> 2PR | P124: Prestations extérieurs - Autres dépenses de sous-traitance (études, honoraires, etc.) | Q124: Bilan matière | R124: L.EY
A125: ? | B125: Récupération des eaux de pluie | D125: Nombre de cuves enterrées de 10 m3 | F125: 0 | G125: =IF(F125=0,"",IF(F125>2000,"Oui","Non")) ->  | H125: =2500*(1+(bonus_om*bonus_om_tx)) -> 2500 | I125: =IF(OR(naf_section="Section O",'1-J''identifie mon entreprise'!$G$48=1),0,IF(micro_entreprise="Oui",IF(AND(secteur_tourisme="Oui",zone_rural="Oui",partenaire="Oui"),1,0),1)) -> 1 | J125: Toutes PME | K125: tous sauf A | L125: 2DE | M125: SA2.01 | N125: 2DE | P125: Autres équipements | Q125: Cuve eau pluie | R125: L.EY
A126: ? | B126: Compacteurs mécanique (cartons…) et/ou compacteur mécanique à balle (plastiques) et/ou broyeurs de végétaux | D126: Nombre de compacteurs | F126: 0 | H126: =5000*(1+(bonus_om*bonus_om_tx)) -> 5000 | I126: =IF(OR(naf_section="Section O",'1-J''identifie mon entreprise'!$G$48=1),0,IF(micro_entreprise="Oui",IF(AND(secteur_tourisme="Oui",zone_rural="Oui",partenaire="Oui"),1,0),1)) -> 1 | J126: Toutes PME | K126: tous sauf A | L126: 2DE.03.03 | M126: SA2.01 | N126: 2DE | P126: Autres équipements | Q126: Compacteur mécanique | R126: L.EY
A127: ? | B127: Concasseur mobile (déchets inertes du BTP) | D127: Nombre de concasseurs | F127: 0 | G127: =IF(F127=0,"",IF(F127>2000,"Oui","Non")) ->  | H127: =15000*(1+(bonus_om*bonus_om_tx)) -> 15000 | I127: =IF(OR(naf_section<>"Section F",'1-J''identifie mon entreprise'!$G$48=1),0,IF(micro_entreprise="Oui",IF(AND(secteur_tourisme="Oui",zone_rural="Oui",partenaire="Oui"),1,0),1)) -> 0 | J127: Toutes PME | K127: tous sauf A | L127: 2DE.03.02 | M127: SA2.01 | N127: 2DE | P127: Autres équipements | Q127: Concasseur mobile | R127: L.EY
A128: ? | B128: Préparation des biodéchets : mise en place du tri, pré-collecte, formation du personnel, signalétique | D128: Oui/Non | F128: 0 | H128: =6000*(1+(bonus_om*bonus_om_tx)) -> 6000 | I128: =IF(OR(naf_section="Section O",'1-J''identifie mon entreprise'!$G$48=1),0,IF(micro_entreprise="Oui",IF(AND(secteur_tourisme="Oui",zone_rural="Oui",partenaire="Oui"),1,0),1)) -> 1 | J128: Toutes PME | K128: tous sauf A | L128: 2DE.02.02 | M128: SA3.01 | N128: 2DE | P128: Autres équipements | Q128: Préparation biodéchets | R128: L.EY
A129: ? | B129: Composteur en bac pour biodéchets | D129: Nombre de composteurs | F129: 0 | H129: =100*(1+(bonus_om*bonus_om_tx)) -> 100 | I129: =IF(OR(naf_section="Section O",'1-J''identifie mon entreprise'!$G$48=1),0,IF(micro_entreprise="Oui",IF(AND(secteur_tourisme="Oui",zone_rural="Oui",partenaire="Oui"),1,0),1)) -> 1 | J129: Toutes PME | K129: tous sauf A | L129: 2DE.02.03 | M129: SA2.01 | N129: 2DE | P129: Autres équipements | Q129: Composteur bacs | R129: L.EY
A130: ? | B130: Pavillon de compostage pour biodéchets | D130: Nombre de composteurs | F130: 0 | H130: =2000*(1+(bonus_om*bonus_om_tx)) -> 2000 | I130: =IF(OR(naf_section="Section O",'1-J''identifie mon entreprise'!$G$48=1),0,IF(micro_entreprise="Oui",IF(AND(secteur_tourisme="Oui",zone_rural="Oui",partenaire="Oui"),1,0),1)) -> 1 | J130: Toutes PME | K130: tous sauf A | L130: 2DE.02.03 | M130: SA2.01 | N130: 2DE | P130: Autres équipements | Q130: Composteur papillon | R130: L.EY
A131: ? | B131: Benne de stockage compartimentée pour le tri des déchets du bâtiment | D131: Nombre de bennes | F131: 0 | H131: =2000*(1+(bonus_om*bonus_om_tx)) -> 2000 | I131: =IF(OR(naf_section<>"Section F",'1-J''identifie mon entreprise'!$G$48=1),0,IF(micro_entreprise="Oui",IF(AND(secteur_tourisme="Oui",zone_rural="Oui",partenaire="Oui"),1,0),1)) -> 0 | J131: Toutes PME | K131: tous sauf A | L131: 2DE.03.03 | M131: SA2.01 | N131: 2DE | P131: Autres équipements | Q131: Benne de stockage | R131: L.EY
A132: ? | B132: Contenants de type caisse-palettes ou futs (par lot de 7) pour les déchets du bâtiment | D132: Nombre de lot de 7 caisse-palettes | F132: 0 | H132: =1500*(1+(bonus_om*bonus_om_tx)) -> 1500 | I132: =IF(OR(naf_section<>"Section F",'1-J''identifie mon entreprise'!$G$48=1),0,IF(micro_entreprise="Oui",IF(AND(secteur_tourisme="Oui",zone_rural="Oui",partenaire="Oui"),1,0),1)) -> 0 | J132: Toutes PME | K132: tous sauf A | L132: 2DE.03.03 | M132: SA2.01 | N132: 2DE | P132: Autres équipements | Q132: Caisse palette | R132: L.EY
A133: ? | B133: Contenants de type bacs à roulettes (par lot de 7) pour les déchets du bâtiment | D133: Nombre de lots de 7 bacs | F133: 0 | H133: =500*(1+(bonus_om*bonus_om_tx)) -> 500 | I133: =IF(OR(naf_section<>"Section F",'1-J''identifie mon entreprise'!$G$48=1),0,IF(micro_entreprise="Oui",IF(AND(secteur_tourisme="Oui",zone_rural="Oui",partenaire="Oui"),1,0),1)) -> 0 | J133: Toutes PME | K133: tous sauf A | L133: 2DE.03.03 | M133: SA2.01 | N133: 2DE | P133: Autres équipements | Q133: Bac à roulette | R133: L.EY
A134: ? | B134: Contenants souples de type big-bags réutilisables (lot de 7) et portants pour maintien big-bags ouverts pour les déchets du bâtiment | D134: Nombre de lots de 7 big-bags | F134: 0 | H134: =800*(1+(bonus_om*bonus_om_tx)) -> 800 | I134: =IF(OR(naf_section<>"Section F",'1-J''identifie mon entreprise'!$G$48=1),0,IF(micro_entreprise="Oui",IF(AND(secteur_tourisme="Oui",zone_rural="Oui",partenaire="Oui"),1,0),1)) -> 0 | J134: Toutes PME | K134: tous sauf A | L134: 2DE.03.03 | M134: SA2.01 | N134: 2DE | P134: Autres équipements | Q134: Big Bag | R134: L.EY
A135: ? | B135: Etude de dimensionnement économie circulaire | D135: Oui/Non | F135: =ROUND(IF(E135="",0,MIN(C135*H135*I135*SUM(F125:F134),tx_max*E135)),0) -> 0 | H135: =IF(SUM(E125:E134)<25000,0,15%) -> 0 | I135: =IF(OR(naf_section="Section O",'1-J''identifie mon entreprise'!$G$48=1),0,IF(micro_entreprise="Oui",IF(AND(secteur_tourisme="Oui",zone_rural="Oui",partenaire="Oui"),1,0),1)) -> 1 | J135: Toutes PME | K135: tous sauf A | L135: 2PR | M135: SA2.04.03 | N135: =LEFT(L135,3) -> 2PR | P135: Prestations extérieurs - Autres dépenses de sous-traitance (études, honoraires, etc.) | Q135: Etude dimensionnement EC | R135: L.EY
I136: =IF(OR(naf_section="Section O",'1-J''identifie mon entreprise'!$G$48=1),0,IF(micro_entreprise="Oui",IF(AND(secteur_tourisme="Oui",zone_rural="Oui",partenaire="Oui"),1,0),1)) -> 1
B137: Mes actions liées à l'écoconception et aux labélisations | I137: =IF(OR(naf_section="Section O",'1-J''identifie mon entreprise'!$G$48=1),0,IF(micro_entreprise="Oui",IF(AND(secteur_tourisme="Oui",zone_rural="Oui",partenaire="Oui"),1,0),1)) -> 1
B138: Nom de l'action | C138: Quantité | D138: Type d'unité | E138: Coût prévisionnel total HT | F138: Montant prévisionnel de l'aide ADEME | G138: Devis à joindre à la demande d'aide ? | I138: =IF(OR(naf_section="Section O",'1-J''identifie mon entreprise'!$G$48=1),0,IF(micro_entreprise="Oui",IF(AND(secteur_tourisme="Oui",zone_rural="Oui",partenaire="Oui"),1,0),1)) -> 1
A139: ? | B139: Premiers pas éco-conception | D139: Oui/Non | F139: =ROUND(IF(E139="",0,MIN(C139*H139*I139,tx_max*E139)),0) -> 0 | G139: =IF(F139=0,"","Oui") ->  | H139: =5000*(1+(bonus_om*bonus_om_tx)) -> 5000 | I139: =IF(OR(naf_section="Section O",'1-J''identifie mon entreprise'!$G$48=1),0,IF(micro_entreprise="Oui",IF(AND(secteur_tourisme="Oui",zone_rural="Oui",partenaire="Oui"),1,0),1)) -> 1 | J139: Toutes PME | K139: tous sauf A | L139: 2PR.01 | M139: SA2.04.01 | N139: =LEFT(L139,3) -> 2PR | P139: Prestations extérieurs - Autres dépenses de sous-traitance (études, honoraires, etc.) | Q139: Diagnostic écoconception | R139: L.EE
A140: ? | B140: Mise en œuvre d'un affichage environnemental pour les produits de l'entreprise | D140: Oui/Non | F140: 0 | G140: =IF(F140=0,"","Non") ->  | H140: =8000*(1+(bonus_om*bonus_om_tx)) -> 8000 | I140: =IF(OR(naf_section="Section O",'1-J''identifie mon entreprise'!$G$48=1),0,IF(micro_entreprise="Oui",IF(AND(secteur_tourisme="Oui",zone_rural="Oui",partenaire="Oui"),1,0),1)) -> 1 | J140: Toutes PME | K140: tous sauf A | L140: 2PR.01 | M140: SA2.04.03 | N140: 2PR | P140: Prestations extérieurs - Autres dépenses de sous-traitance (études, honoraires, etc.) | Q140: Mise en œuvre affichage environnemental | R140: L.EE
A141: ? | B141: Dispositif de vérification externe de l'affichage environnemental | D141: Nombre de produits et services concernés | F141: 0 | G141: =IF(F141=0,"",IF(F141>2000,"Oui","Non")) ->  | H141: =100*(1+(bonus_om*bonus_om_tx)) -> 100 | I141: =IF(OR(naf_section="Section O",'1-J''identifie mon entreprise'!$G$48=1),0,IF(micro_entreprise="Oui",IF(AND(secteur_tourisme="Oui",zone_rural="Oui",partenaire="Oui"),1,0),1)) -> 1 | J141: Toutes PME | K141: tous sauf A | L141: 2PR.01 | M141: SA2.04.03 | N141: 2PR | P141: Prestations extérieurs - Autres dépenses de sous-traitance (études, honoraires, etc.) | Q141: Vérification affichage environnemental | R141: L.EE
A142: ? | B142: Mise en œuvre de l’Ecolabel Européen sur les produits ou les services de l'entreprise | D142: Oui/Non | F142: 0 | G142: =IF(F142=0,"","Non") ->  | H142: =12000*(1+(bonus_om*bonus_om_tx)) -> 12000 | I142: =IF(OR(naf_section="Section O",'1-J''identifie mon entreprise'!$G$48=1),0,IF(micro_entreprise="Oui",IF(AND(secteur_tourisme="Oui",zone_rural="Oui",partenaire="Oui"),1,0),1)) -> 1 | J142: Toutes PME | K142: tous sauf A | L142: 2PR.03 | M142: SA2.04.03 | N142: 2PR | P142: Prestations extérieurs - Autres dépenses de sous-traitance (études, honoraires, etc.) | Q142: Mise en œuvre écolabel | R142: L.EE
A143: ? | B143: Certification écolabel européen de produits ou service | D143: Nombre de produits et services concernés | F143: 0 | G143: =IF(F143=0,"",IF(F143>2000,"Oui","Non")) ->  | H143: =2000*(1+(bonus_om*bonus_om_tx)) -> 2000 | I143: =IF(OR(naf_section="Section O",'1-J''identifie mon entreprise'!$G$48=1),0,IF(micro_entreprise="Oui",IF(AND(secteur_tourisme="Oui",zone_rural="Oui",partenaire="Oui"),1,0),1)) -> 1 | J143: Toutes PME | K143: tous sauf A | L143: 2PR.03 | M143: SA2.04.01 | N143: 2PR | P143: Prestations extérieurs - Autres dépenses de sous-traitance (études, honoraires, etc.) | Q143: Certification écolabel | R143: L.EE
A144: ? | B144: Accompagnement à la labellisation "Numérique responsable" | D144: Oui/Non | F144: 0 | G144: =IF(F144=0,"","Non") ->  | H144: =3000*(1+(bonus_om*bonus_om_tx)) -> 3000 | I144: =IF(OR(naf_section="Section A",naf_section="Section O",'1-J''identifie mon entreprise'!$G$48=1),0,IF(micro_entreprise="Oui",IF(AND(secteur_tourisme="Oui",zone_rural="Oui",partenaire="Oui"),1,0),1)) -> 1 | J144: Toutes PME | K144: tous sauf A | L144: 2PR.03 | M144: SA2.04.03 | N144: 2PR | P144: Prestations extérieurs - Autres dépenses de sous-traitance (études, honoraires, etc.) | Q144: Label numérique responsable | R144: L.EE
I145: =IF(OR(naf_section="Section O",'1-J''identifie mon entreprise'!$G$48=1),0,IF(micro_entreprise="Oui",IF(AND(secteur_tourisme="Oui",zone_rural="Oui",partenaire="Oui"),1,0),1)) -> 1
B146: PLAN DE FINANCEMENT DE MES ACTIONS | I146: 0
I147: 0
B148: Type | C148: Mode de financement | F148: Montant (HTR) | I148: 0
B149: Aides publiques | C149: Aide ADEME maximum avant analyse | F149: =F172 -> 0 | I149: 0
C150: Région | I150: 0
C151: Etat | I151: 0
C152: FEDER | I152: 0
C153: A préciser | I153: 0
C154: A préciser | I154: 0
C155: A préciser | I155: 0
C156: Sous-total des aides publiques | F156: =SUM(F149:G155) -> 0 | I156: 0
B157: Aides privées | C157: Certificats d'économie d'énergie | I157: 0
C158: A préciser | I158: 0
C159: A préciser | I159: 0
C160: Sous-total des aides privées | F160: =SUM(F157:G159) -> 0 | I160: 0
B161: Auto-financement | C161: Fonds propres | F161: =F166-F156-F160-F162-F163-F164 -> 0 | I161: 0
C162: Emprunt | I162: 0
C163: Crédit-Bail | I163: 0
C164: A préciser | I164: 0
C165: Sous-total de l'auto-financement | F165: =SUM(F161:G164) -> 0 | I165: 0
B166: TOTAL DE L'OPERATION | F166: =F170 -> 0 | I166: 0
I167: 0
B168: SYNTHESE | I168: =I170 -> 1
I169: =I170 -> 1
E170: Le coût total estimé de mon opération est de : | F170: =SUMPRODUCT(E29:E48,I29:I48)+SUMPRODUCT(E6:E25,I6:I25)+SUMPRODUCT(E124:E135,I124:I135)+SUMPRODUCT(E139:E144,I139:I144)+SUMPRODUCT(E120:E123,I120:I123)+SUMPRODUCT(E100:E116,I100:I116)+SUMPRODUCT(E90:E96,I90:I96)+SUMPRODUCT(E80:E86,I80:I86)+SUMPRODUCT(E72:E76,I72:I76)+SUMPRODUCT(E64:E68,I64:I68)+SUMPRODUCT(E58:E60,I58:I60)+SUMPRODUCT(E52:E54,I52:I54) -> 0 | I170: =IF(OR(naf_section="Section O",'1-J''identifie mon entreprise'!$G$48=1),0,IF(micro_entreprise="Oui",IF(AND(secteur_tourisme="Oui",zone_rural="Oui",partenaire="Oui"),1,0),1)) -> 1
E171: Le montant total de l'aide demandée à l'ADEME : | F171: =SUMPRODUCT(F29:F48,I29:I48)+SUMPRODUCT(F6:F25,I6:I25)+SUMPRODUCT(F124:F135,I124:I135)+SUMPRODUCT(F139:F144,I139:I144)+SUMPRODUCT(F120:F123,I120:I123)+SUMPRODUCT(F100:F116,I100:I116)+SUMPRODUCT(F90:F96,I90:I96)+SUMPRODUCT(F80:F86,I80:I86)+SUMPRODUCT(F72:F76,I72:I76)+SUMPRODUCT(F64:F68,I64:I68)+SUMPRODUCT(F58:F60,I58:I60)+SUMPRODUCT(F52:F54,I52:I54) -> 0 | I171: =IF(OR(naf_section="Section O",'1-J''identifie mon entreprise'!$G$48=1),0,IF(micro_entreprise="Oui",IF(AND(secteur_tourisme="Oui",zone_rural="Oui",partenaire="Oui"),1,0),1)) -> 1
E172: Le montant maximum prévisionnel de l'aide ADEME (avant analyse) est de : | F172: =ROUNDDOWN(IF(F171<IF(I123=1,2500,5000),0,MIN('1-J''identifie mon entreprise'!E66,F171)),0) -> 0 | I172: =IF(OR(naf_section="Section O",'1-J''identifie mon entreprise'!$G$48=1),0,IF(micro_entreprise="Oui",IF(AND(secteur_tourisme="Oui",zone_rural="Oui",partenaire="Oui"),1,0),1)) -> 1 | S172: =IFERROR(MIN(100%,F172/F171),0) -> 0
I173: =IF(I172=1,0,1) -> 0
B174: Les micro-entreprises ne sont pas éligibles à ce programme. | I174: =IF(OR(naf_section="Section A",naf_section="Section O"),0,IF(micro_entreprise="Oui",IF(AND(secteur_tourisme="Oui",zone_rural="Oui",partenaire="Oui"),0,1),0)) -> 0
B175: Les administrations publiques ne sont en principe pas éligibles à ce programme. | I175: =IF(naf_section="Section O",1,0) -> 0
B176: Aucune aide ne peut être accordée aux entreprises en difficulté avant le 31/12/2019. | I176: =IF('1-J''identifie mon entreprise'!G48=1,1,0) -> 0
B177: Si vous avez une activité supplémentaire d’hébergement/restauration, vous pouvez contactez la direction régionale de l'ADEME. | I177: 0
B178: https://www.ademe.fr/lademe/presentation-lademe/liste-implantations-lademe | I178: =IF(naf_section="Section A",1,0) -> 0

Sheet 3-Synthese de votre demande
B11: Tremplin pour la transition écologique des PME
B13: SYNTHESE
B16: Coût total estimé du projet : | L16: ='2-Je choisis mes actions'!F170 -> 0 | O16: 1
C17: =AF!A16 -> r1 | L17: =AF!D16 -> 0 | M17: =IF(P17="Oui","Devis à joindre","Pas besoin de devis") -> Pas besoin de devis | O17: =AF!G16 -> 0 | P17: ='2-Je choisis mes actions'!G6 -> 0
C18: =AF!A17 -> r2 | L18: =AF!D17 -> 0 | M18: Pas besoin de devis | O18: =AF!G17 -> 0 | P18: ='2-Je choisis mes actions'!G7 -> 0
C19: =AF!A18 -> r3 | L19: =AF!D18 -> 0 | M19: Pas besoin de devis | O19: =AF!G18 -> 0 | P19: ='2-Je choisis mes actions'!G8 -> 0
C20: =AF!A19 -> r4 | L20: =AF!D19 -> 0 | M20: Pas besoin de devis | O20: =AF!G19 -> 0 | P20: ='2-Je choisis mes actions'!G9 -> 0
C21: =AF!A20 -> r5 | L21: =AF!D20 -> 0 | M21: Pas besoin de devis | O21: =AF!G20 -> 0 | P21: ='2-Je choisis mes actions'!G10 -> 0
C22: =AF!A21 -> r6 | L22: =AF!D21 -> 0 | M22: Pas besoin de devis | O22: =AF!G21 -> 0 | P22: ='2-Je choisis mes actions'!G11 -> 0
C23: =AF!A22 -> r7 | L23: =AF!D22 -> 0 | M23: Pas besoin de devis | O23: =AF!G22 -> 0 | P23: ='2-Je choisis mes actions'!G12 -> 0
C24: =AF!A23 -> r8 | L24: =AF!D23 -> 0 | M24: =IF(P24="Oui","Devis à joindre","Pas besoin de devis") -> Pas besoin de devis | O24: =AF!G23 -> 0 | P24: ='2-Je choisis mes actions'!G13 -> 0
C25: =AF!A24 -> r9 | L25: =AF!D24 -> 0 | M25: =IF(P25="Oui","Devis à joindre","Pas besoin de devis") -> Pas besoin de devis | O25: =AF!G24 -> 0 | P25: ='2-Je choisis mes actions'!G14 -> 0
C26: =AF!A25 -> r10 | L26: =AF!D25 -> 0 | M26: =IF(P26="Oui","Devis à joindre","Pas besoin de devis") -> Pas besoin de devis | O26: =AF!G25 -> 0 | P26: ='2-Je choisis mes actions'!G15 -> 0
C27: =AF!A26 -> r11 | L27: =AF!D26 -> 0 | M27: =IF(P27="Oui","Devis à joindre","Pas besoin de devis") -> Pas besoin de devis | O27: =AF!G26 -> 0 | P27: ='2-Je choisis mes actions'!G16 -> 0
C28: =AF!A27 -> r12 | L28: =AF!D27 -> 0 | M28: =IF(P28="Oui","Devis à joindre","Pas besoin de devis") -> Pas besoin de devis | O28: =AF!G27 -> 0 | P28: ='2-Je choisis mes actions'!G17 -> 0
C29: =AF!A28 -> r13 | L29: =AF!D28 -> 0 | M29: =IF(P29="Oui","Devis à joindre","Pas besoin de devis") -> Pas besoin de devis | O29: =AF!G28 -> 0 | P29: ='2-Je choisis mes actions'!G18 -> 0
C30: =AF!A29 -> r14 | L30: =AF!D29 -> 0 | M30: Pas besoin de devis | O30: =AF!G29 -> 0 | P30: ='2-Je choisis mes actions'!G19 -> 0
C31: =AF!A30 -> r15 | L31: =AF!D30 -> 0 | M31: Pas besoin de devis | O31: =AF!G30 -> 0 | P31: ='2-Je choisis mes actions'!G20 -> 0
C32: =AF!A31 -> r16 | L32: =AF!D31 -> 0 | M32: Pas besoin de devis | O32: =AF!G31 -> 0 | P32: ='2-Je choisis mes actions'!G21 -> 0
C33: =AF!A32 -> r17 | L33: =AF!D32 -> 0 | M33: =IF(P33="Oui","Devis à joindre","Pas besoin de devis") -> Pas besoin de devis | O33: =AF!G32 -> 0 | P33: ='2-Je choisis mes actions'!G22 -> 0
C34: =AF!A33 -> r18 | L34: =AF!D33 -> 0 | M34: =IF(P34="Oui","Devis à joindre","Pas besoin de devis") -> Pas besoin de devis | O34: =AF!G33 -> 0 | P34: ='2-Je choisis mes actions'!G23 -> 0
C35: =AF!A34 -> r19 | L35: =AF!D34 -> 0 | M35: =IF(P35="Oui","Devis à joindre","Pas besoin de devis") -> Pas besoin de devis | O35: =AF!G34 -> 0 | P35: ='2-Je choisis mes actions'!G24 -> 0
C36: =AF!A35 -> r20 | L36: =AF!D35 -> 0 | M36: =IF(P36="Oui","Devis à joindre","Pas besoin de devis") -> Pas besoin de devis | O36: =AF!G35 -> 0 | P36: ='2-Je choisis mes actions'!G25 -> 0
C37: =AF!A36 -> Maîtriser les besoins de chauffage : thermostats radiateur, détection d'ouverture de fenêtre, programmateur horaire | L37: =AF!D36 -> 0 | M37: Pas besoin de devis | O37: =AF!G36 -> 0 | P37: ='2-Je choisis mes actions'!G29 -> 
C38: =AF!A37 -> Efficacité énergétique des sèche-linge de forte capacité : poids de linge >9kg, performance A+++ ou à énergie de séchage <2,6kWh/cycle | L38: =AF!D37 -> 0 | M38: Pas besoin de devis | O38: =AF!G37 -> 0 | P38: ='2-Je choisis mes actions'!G30 -> 
C39: =AF!A38 -> Economie d'eau : limitation de débit de robinet de lavabo | L39: =AF!D38 -> 0 | M39: Pas besoin de devis | O39: =AF!G38 -> 0 | P39: ='2-Je choisis mes actions'!G31 -> 
C40: =AF!A39 -> Economie d'eau : Robinetterie douche : mitigeurs thermostatiques, pommeau à débit réduit | L40: =AF!D39 -> 0 | M40: Pas besoin de devis | O40: =AF!G39 -> 0 | P40: ='2-Je choisis mes actions'!G32 -> 
C41: =AF!A40 -> Economie d'eau : Limitation de consommation WC (plaquettes, chasse double position) | L41: =AF!D40 -> 0 | M41: Pas besoin de devis | O41: =AF!G40 -> 0 | P41: ='2-Je choisis mes actions'!G33 -> 
C42: =AF!A41 -> Toilettes sèches | L42: =AF!D41 -> 0 | M42: Pas besoin de devis | O42: =AF!G41 -> 0 | P42: ='2-Je choisis mes actions'!G34 -> 
C43: =AF!A42 -> Couverture pour piscine et bains à remous extérieurs chauffés | L43: =AF!D42 -> 0 | M43: Pas besoin de devis | O43: =AF!G42 -> 0 | P43: ='2-Je choisis mes actions'!G35 -> 
C44: =AF!A43 -> Frais d'adaptation du site internet pour valoriser le modèle d'affaire "tourisme durable", y compris la formation du personnel pour rapatrier la gestion du site internet en interne. | L44: =AF!D43 -> 0 | M44: Pas besoin de devis | O44: =AF!G43 -> 0 | P44: ='2-Je choisis mes actions'!G36 -> 
C45: =AF!A44 -> Frais d’édition de supports de communications : tableau (craie) pour menus du jour ; carte durable (mise en avant de produits bios, valorisation des menus végétariens, affichage carbone….), visuels et animations mettant en valeur les producteurs/fournisseurs locaux etc… mettant en valeur les écogestes dans l’hôtel restaurant pour les salarié.e.s et pour les client.e.s | L45: =AF!D44 -> 0 | M45: Pas besoin de devis | O45: =AF!G44 -> 0 | P45: ='2-Je choisis mes actions'!G37 -> 
C46: =AF!A45 -> Formation aux éco-gestes, formation à la cuisine végétale/alternative/cuisson douce ; formation aux enjeux environnementaux de l'alimentation | L46: =AF!D45 -> 0 | M46: Pas besoin de devis | O46: =AF!G45 -> 0 | P46: ='2-Je choisis mes actions'!G38 -> 
C47: =AF!A46 -> AMO pour rénovation globale : complément pour établissement du plan de financement et aide à la complétion des dossiers de demande d'aide | L47: =AF!D46 -> 0 | M47: Pas besoin de devis | O47: =AF!G46 -> 0 | P47: ='2-Je choisis mes actions'!G39 -> 
C48: =AF!A47 -> Accompagnement à l’élaboration d’un modèle d’affaires tourisme durable | L48: =AF!D47 -> 0 | M48: Pas besoin de devis | O48: =AF!G47 -> 0 | P48: ='2-Je choisis mes actions'!G40 -> 
C49: =AF!A48 -> h5 | L49: =AF!D48 -> 0 | M49: =IF(P49="Oui","Devis à joindre","Pas besoin de devis") -> Pas besoin de devis | O49: =AF!G48 -> 0 | P49: ='2-Je choisis mes actions'!G41 -> 0
C50: =AF!A49 -> h6 | L50: =AF!D49 -> 0 | M50: Pas besoin de devis | O50: =AF!G49 -> 0 | P50: ='2-Je choisis mes actions'!G42 -> 0
C51: =AF!A50 -> h7 | L51: =AF!D50 -> 0 | M51: Pas besoin de devis | O51: =AF!G50 -> 0 | P51: ='2-Je choisis mes actions'!G43 -> 0
C52: =AF!A51 -> h8 | L52: =AF!D51 -> 0 | M52: Pas besoin de devis | O52: =AF!G51 -> 0 | P52: ='2-Je choisis mes actions'!G44 -> 0
C53: =AF!A52 -> h5 | L53: =AF!D52 -> 0 | M53: =IF(P53="Oui","Devis à joindre","Pas besoin de devis") -> Pas besoin de devis | O53: =AF!G52 -> 0 | P53: ='2-Je choisis mes actions'!G45 -> 0
C54: =AF!A53 -> h6 | L54: =AF!D53 -> 0 | M54: =IF(P54="Oui","Devis à joindre","Pas besoin de devis") -> Pas besoin de devis | O54: =AF!G53 -> 0 | P54: ='2-Je choisis mes actions'!G46 -> 0
C55: =AF!A54 -> h7 | L55: =AF!D54 -> 0 | M55: =IF(P55="Oui","Devis à joindre","Pas besoin de devis") -> Pas besoin de devis | O55: =AF!G54 -> 0 | P55: ='2-Je choisis mes actions'!G47 -> 0
C56: =AF!A55 -> h8 | L56: =AF!D55 -> 0 | M56: =IF(P56="Oui","Devis à joindre","Pas besoin de devis") -> Pas besoin de devis | O56: =AF!G55 -> 0 | P56: ='2-Je choisis mes actions'!G48 -> 0
C57: =AF!A56 -> Bilan d’émission de gaz à effet de serre (bilan GES scope 1, 2 et 3) et plan d'actions | L57: =AF!D56 -> 0 | M57: =IF(P57="Oui","Devis à joindre","Pas besoin de devis") -> Pas besoin de devis | O57: =AF!G56 -> 0 | P57: ='2-Je choisis mes actions'!G52 -> 
C58: =AF!A57 -> Vous organiser pour réduire les émissions de gaz à effet de serre : élaborer une stratégie (démarche ACT® pas à pas) | L58: =AF!D57 -> 0 | M58: =IF(P58="Oui","Devis à joindre","Pas besoin de devis") -> Pas besoin de devis | O58: =AF!G57 -> 0 | P58: ='2-Je choisis mes actions'!G53 -> 
C59: =AF!A58 -> Evaluer votre stratégie de réduction des émissions de gaz à effet de serre (Evaluation ACT®) | L59: =AF!D58 -> 0 | M59: Pas besoin de devis | O59: =AF!G58 -> 0 | P59: ='2-Je choisis mes actions'!G54 -> 
C60: =AF!A59 -> Accompagnement à la baisse des consommations d’énergie des bâtiments imposée par le « décret tertiaire » : audit énergétique | L60: =AF!D59 -> 0 | M60: Pas besoin de devis | O60: =AF!G59 -> 0 | P60: ='2-Je choisis mes actions'!G58 -> 
C61: =AF!A60 -> Maîtrise d'œuvre (MOE) pour rénovation globale d’un ou plusieurs bâtiments pour viser un objectif de 50% d’économie d’énergie | L61: =AF!D60 -> 0 | M61: Pas besoin de devis | O61: =AF!G60 -> 0 | P61: ='2-Je choisis mes actions'!G59 -> 
C62: =AF!A61 -> Diagnostic sur la qualité de l'air (intérieur et extérieur) de l’entreprise | L62: =AF!D61 -> 0 | M62: Pas besoin de devis | O62: =AF!G61 -> 0 | P62: ='2-Je choisis mes actions'!G60 -> 
C63: =AF!A62 -> Luminaire d’éclairage à modules LED | L63: =AF!D62 -> 0 | M63: Pas besoin de devis | O63: =AF!G62 -> 0 | P63: ='2-Je choisis mes actions'!G64 -> 
C64: =AF!A63 -> Augmenter l’éclairage naturel grâce à des lanterneaux d'éclairage zénithal | L64: =AF!D63 -> 0 | M64: Pas besoin de devis | O64: =AF!G63 -> 0 | P64: ='2-Je choisis mes actions'!G65 -> 
C65: =AF!A64 -> Augmenter l’éclairage naturel grâce à des conduits de lumière naturelle | L65: =AF!D64 -> 0 | M65: Pas besoin de devis | O65: =AF!G64 -> 0 | P65: ='2-Je choisis mes actions'!G66 -> 
C66: =AF!A65 -> Eclairage extérieur par luminaires LED | L66: =AF!D65 -> 0 | M66: Pas besoin de devis | O66: =AF!G65 -> 0 | P66: ='2-Je choisis mes actions'!G67 -> 
C67: =AF!A66 -> Etude de dimensionnement de l'éclairage | L67: =AF!D66 -> 0 | M67: Pas besoin de devis | O67: =AF!G66 -> 0 | P67: ='2-Je choisis mes actions'!G68 -> 
C68: =AF!A67 -> Isolation des meubles de vente réfrigérés et/ou des chambres froides | L68: =AF!D67 -> 0 | M68: Pas besoin de devis | O68: =AF!G67 -> 0 | P68: ='2-Je choisis mes actions'!G72 -> 
C69: =AF!A68 -> Remplacement de fluides dans les équipements frigorifiques commerciaux pour utiliser des fluides frigorigènes ayant moins d’impact sur le changement climatique | L69: =AF!D68 -> 0 | M69: Pas besoin de devis | O69: =AF!G68 -> 0 | P69: ='2-Je choisis mes actions'!G73 -> 
C70: =AF!A69 -> Remplacement d’armoires frigorifiques positives ou de tours réfrigérées par de nouveaux équipements neufs à fluides frigorigènes ayant moins d’impact sur le changement climatique | L70: =AF!D69 -> 0 | M70: Pas besoin de devis | O70: =AF!G69 -> 0 | P70: ='2-Je choisis mes actions'!G74 -> 
C71: =AF!A70 -> Remplacement d’équipements frigorifiques commerciaux peu performants par des équipements neufs à fluides frigorigènes ayant moins d’impact sur le changement climatique | L71: =AF!D70 -> 0 | M71: Pas besoin de devis | O71: =AF!G70 -> 0 | P71: ='2-Je choisis mes actions'!G75 -> 
C72: =AF!A71 -> Installation de froid commercial centralisée au CO2 avec récupération de chaleur | L72: =AF!D71 -> 0 | M72: Pas besoin de devis | O72: =AF!G71 -> 0 | P72: ='2-Je choisis mes actions'!G76 -> 
C73: =AF!A72 -> Isolation de combles perdus | L73: =AF!D72 -> 0 | M73: Pas besoin de devis | O73: =AF!G72 -> 0 | P73: ='2-Je choisis mes actions'!G80 -> 
C74: =AF!A73 -> Isolation des rampants de toiture et plafonds de combles | L74: =AF!D73 -> 0 | M74: Pas besoin de devis | O74: =AF!G73 -> 0 | P74: ='2-Je choisis mes actions'!G81 -> 
C75: =AF!A74 -> Isolation des murs par l'intérieur | L75: =AF!D74 -> 0 | M75: Pas besoin de devis | O75: =AF!G74 -> 0 | P75: ='2-Je choisis mes actions'!G82 -> 
C76: =AF!A75 -> Isolation des murs par l'extérieur | L76: =AF!D75 -> 0 | M76: Pas besoin de devis | O76: =AF!G75 -> 0 | P76: ='2-Je choisis mes actions'!G83 -> 
C77: =AF!A76 -> Isolation des toitures-terrasses | L77: =AF!D76 -> 0 | M77: Pas besoin de devis | O77: =AF!G76 -> 0 | P77: ='2-Je choisis mes actions'!G84 -> 
C78: =AF!A77 -> Ventilation mécanique double flux | L78: =AF!D77 -> 0 | M78: Pas besoin de devis | O78: =AF!G77 -> 0 | P78: ='2-Je choisis mes actions'!G85 -> 
C79: =AF!A78 -> Mise en place d’un système de gestion technique du bâtiment (GTB) de classe B ou A | L79: =AF!D78 -> 0 | M79: Pas besoin de devis | O79: =AF!G78 -> 0 | P79: ='2-Je choisis mes actions'!G86 -> 
C80: =AF!A79 -> Géothermie sur champ de sondes et géostructures énergétiques | L80: =AF!D79+AF!D144 -> 0 | M80: Pas besoin de devis | O80: =AF!G79+AF!G144 -> 0 | P80: ='2-Je choisis mes actions'!G90 -> 
C81: =AF!A80 -> Géothermie sur eau de nappe, sur eau de mer et sur eaux usées | L81: =AF!D80+AF!D145 -> 0 | M81: Pas besoin de devis | O81: =AF!G80+AF!G145 -> 0 | P81: ='2-Je choisis mes actions'!G91 -> 
C82: =AF!A81 -> Géocooling | L82: =AF!D81+AF!D146 -> 0 | M82: Pas besoin de devis | O82: =AF!G81+AF!G146 -> 0 | P82: ='2-Je choisis mes actions'!G92 -> 
C83: =AF!A82 -> Pompe à chaleur (PAC) solarothermique | L83: =AF!D82+AF!D147 -> 0 | M83: Pas besoin de devis | O83: =AF!G82+AF!G147 -> 0 | P83: ='2-Je choisis mes actions'!G93 -> 
C84: =AF!A83 -> Solaire thermique | L84: =AF!D83+AF!D148 -> 0 | M84: Pas besoin de devis | O84: =AF!G83+AF!G148 -> 0 | P84: ='2-Je choisis mes actions'!G94 -> 
C85: =AF!A84 -> Raccordement à un réseau de chaleur ou à un réseau de froid | L85: =AF!D84+AF!D149 -> 0 | M85: Pas besoin de devis | O85: =AF!G84+AF!G149 -> 0 | P85: ='2-Je choisis mes actions'!G95 -> 
C86: =AF!A85 -> Chaudière biomasse inférieure à 600 MWh par an | L86: =AF!D85+AF!D150 -> 0 | M86: Pas besoin de devis | O86: =AF!G85+AF!G150 -> 0 | P86: ='2-Je choisis mes actions'!G96 -> 
C87: =AF!A86 -> Mise en place d’un Plan Déplacement Entreprise | L87: =AF!D86 -> 0 | M87: Pas besoin de devis | O87: =AF!G86 -> 0 | P87: ='2-Je choisis mes actions'!G100 -> 
C88: =AF!A87 -> Diagnostic Mobilipro sur les flottes de véhicules d’entreprises | L88: =AF!D87 -> 0 | M88: Pas besoin de devis | O88: =AF!G87 -> 0 | P88: ='2-Je choisis mes actions'!G101 -> 
C89: =AF!A88 -> Remplacement d'un véhicule thermique par un véhicule électrique Véhicule léger | L89: =AF!D88 -> 0 | M89: Pas besoin de devis | O89: =AF!G88 -> 0 | P89: ='2-Je choisis mes actions'!G102 -> 
C90: =AF!A89 -> Remplacement d'un véhicule thermique par un véhicule électrique Fourgonnette | L90: =AF!D89 -> 0 | M90: Pas besoin de devis | O90: =AF!G89 -> 0 | P90: ='2-Je choisis mes actions'!G103 -> 
C91: =AF!A90 -> Remplacement d'un véhicule thermique par un véhicule électrique Fourgon | L91: =AF!D90 -> 0 | M91: Pas besoin de devis | O91: =AF!G90 -> 0 | P91: ='2-Je choisis mes actions'!G104 -> 
C92: =AF!A91 -> Remplacement d'un véhicule thermique par un véhicule GNV Fourgon | L92: =AF!D91 -> 0 | M92: Pas besoin de devis | O92: =AF!G91 -> 0 | P92: ='2-Je choisis mes actions'!G105 -> 
C93: =AF!A92 -> 0 | L93: =AF!D92 -> 0 | M93: Pas besoin de devis | O93: =AF!G92 -> 0 | P93: ='2-Je choisis mes actions'!G106 -> 0
C94: =AF!A93 -> Transformation de fourgonnette à motorisation thermique en motorisation électrique (retrofit) | L94: =AF!D93 -> 0 | M94: Pas besoin de devis | O94: =AF!G93 -> 0 | P94: ='2-Je choisis mes actions'!G107 -> 
C95: =AF!A94 -> Transformation des fourgon à motorisation thermique en motorisation électrique (retrofit) | L95: =AF!D94 -> 0 | M95: Pas besoin de devis | O95: =AF!G94 -> 0 | P95: ='2-Je choisis mes actions'!G108 -> 
C96: =AF!A95 -> Transformation des poids lourds à motorisation thermique en motorisation électrique (retrofit) | L96: =AF!D95 -> 0 | M96: Pas besoin de devis | O96: =AF!G95 -> 0 | P96: ='2-Je choisis mes actions'!G109 -> 
C97: =AF!A96 -> Véhicule utilitaire léger frigorifique neuf : achat d’un groupe frigorifique électrique | L97: =AF!D96 -> 0 | M97: Pas besoin de devis | O97: =AF!G96 -> 0 | P97: ='2-Je choisis mes actions'!G110 -> 
C98: =AF!A97 -> Porteur ou semi-remorque frigorifique neuf : achat d’un groupe frigorifique complet (hors groupes frigorifiques autonomes Diesel) | L98: =AF!D97 -> 0 | M98: Pas besoin de devis | O98: =AF!G97 -> 0 | P98: ='2-Je choisis mes actions'!G111 -> 
C99: =AF!A98 -> Amélioration d’un système frigorifique sur un véhicule neuf ou existant | L99: =AF!D98 -> 0 | M99: Pas besoin de devis | O99: =AF!G98 -> 0 | P99: ='2-Je choisis mes actions'!G112 -> 
C100: =AF!A99 -> Vélo de service à assistance électrique : vélo de service ou flotte de vélo | L100: =AF!D99 -> 0 | M100: Pas besoin de devis | O100: =AF!G99 -> 0 | P100: ='2-Je choisis mes actions'!G113 -> 
C101: =AF!A100 -> Vélo cargo électrique pour un usage professionnel | L101: =AF!D100 -> 0 | M101: Pas besoin de devis | O101: =AF!G100 -> 0 | P101: ='2-Je choisis mes actions'!G114 -> 
C102: =AF!A101 -> Abris à vélo avec toit | L102: =AF!D101 -> 0 | M102: Pas besoin de devis | O102: =AF!G101 -> 0 | P102: ='2-Je choisis mes actions'!G115 -> 
C103: =AF!A102 -> Etude de dimensionnement transport durable | L103: =AF!D102 -> 0 | M103: Pas besoin de devis | O103: =AF!G102 -> 0 | P103: ='2-Je choisis mes actions'!G116 -> 
C104: =AF!A103 -> Etat des lieux et proposition pour trier les déchets de bois, papier/carton, métaux, verre et plastiques ainsi que les fractions minérales et le plâtre | L104: =AF!D103 -> 0 | M104: Pas besoin de devis | O104: =AF!G103 -> 0 | P104: ='2-Je choisis mes actions'!G120 -> 
C105: =AF!A104 -> Analyse de process pour la prévention des déchets (méthode Comptabilité des flux de matière) | L105: =AF!D104 -> 0 | M105: Pas besoin de devis | O105: =AF!G104 -> 0 | P105: ='2-Je choisis mes actions'!G121 -> 
C106: =AF!A105 -> Diagnostic pour réduire les emballages ou remplacer des emballages plastiques par d’autres | L106: =AF!D105 -> 0 | M106: Pas besoin de devis | O106: =AF!G105 -> 0 | P106: ='2-Je choisis mes actions'!G122 -> 
C107: =AF!A106 -> Soutien aux réparateurs : logiciels, progiciels et outils de réparation | L107: =AF!D106 -> 0 | M107: Pas besoin de devis | O107: =AF!G106 -> 0 | P107: ='2-Je choisis mes actions'!G123 -> 
C108: =AF!A107 -> Bilan des matières entrantes dans et sortantes de l’entreprise (méthode Bilan matière) | L108: =AF!D107 -> 0 | M108: Pas besoin de devis | O108: =AF!G107 -> 0 | P108: ='2-Je choisis mes actions'!G124 -> 
C109: =AF!A108 -> Récupération des eaux de pluie | L109: =AF!D108 -> 0 | M109: Pas besoin de devis | O109: =AF!G108 -> 0 | P109: ='2-Je choisis mes actions'!G125 -> 
C110: =AF!A109 -> Compacteurs mécanique (cartons…) et/ou compacteur mécanique à balle (plastiques) et/ou broyeurs de végétaux | L110: =AF!D109 -> 0 | M110: Pas besoin de devis | O110: =AF!G109 -> 0 | P110: ='2-Je choisis mes actions'!G126 -> 
C111: =AF!A110 -> Concasseur mobile (déchets inertes du BTP) | L111: =AF!D110 -> 0 | M111: Pas besoin de devis | O111: =AF!G110 -> 0 | P111: ='2-Je choisis mes actions'!G127 -> 
C112: =AF!A111 -> Préparation des biodéchets : mise en place du tri, pré-collecte, formation du personnel, signalétique | L112: =AF!D111 -> 0 | M112: =IF(P112="Oui","Devis à joindre","Pas besoin de devis") -> Pas besoin de devis | O112: =AF!G111 -> 0 | P112: ='2-Je choisis mes actions'!G128 -> 
C113: =AF!A112 -> Composteur en bac pour biodéchets | L113: =AF!D112 -> 0 | M113: Pas besoin de devis | O113: =AF!G112 -> 0 | P113: ='2-Je choisis mes actions'!G129 -> 
C114: =AF!A113 -> Pavillon de compostage pour biodéchets | L114: =AF!D113 -> 0 | M114: Pas besoin de devis | O114: =AF!G113 -> 0 | P114: ='2-Je choisis mes actions'!G130 -> 
C115: =AF!A114 -> Benne de stockage compartimentée pour le tri des déchets du bâtiment | L115: =AF!D114 -> 0 | M115: Pas besoin de devis | O115: =AF!G114 -> 0 | P115: ='2-Je choisis mes actions'!G131 -> 
C116: =AF!A115 -> Contenants de type caisse-palettes ou futs (par lot de 7) pour les déchets du bâtiment | L116: =AF!D115 -> 0 | M116: Pas besoin de devis | O116: =AF!G115 -> 0 | P116: ='2-Je choisis mes actions'!G132 -> 
C117: =AF!A116 -> Contenants de type bacs à roulettes (par lot de 7) pour les déchets du bâtiment | L117: =AF!D116 -> 0 | M117: Pas besoin de devis | O117: =AF!G116 -> 0 | P117: ='2-Je choisis mes actions'!G133 -> 
C118: =AF!A117 -> Contenants souples de type big-bags réutilisables (lot de 7) et portants pour maintien big-bags ouverts pour les déchets du bâtiment | L118: =AF!D117 -> 0 | M118: Pas besoin de devis | O118: =AF!G117 -> 0 | P118: ='2-Je choisis mes actions'!G134 -> 
C119: =AF!A118 -> Etude de dimensionnement économie circulaire | L119: =AF!D118 -> 0 | M119: Pas besoin de devis | O119: =AF!G118 -> 0 | P119: ='2-Je choisis mes actions'!G135 -> 
C120: =AF!A119 -> Premiers pas éco-conception | L120: =AF!D119 -> 0 | M120: Pas besoin de devis | O120: =AF!G119 -> 0 | P120: ='2-Je choisis mes actions'!G139 -> 
C121: =AF!A120 -> Mise en œuvre d'un affichage environnemental pour les produits de l'entreprise | L121: =AF!D120 -> 0 | M121: Pas besoin de devis | O121: =AF!G120 -> 0 | P121: ='2-Je choisis mes actions'!G140 -> 
C122: =AF!A121 -> Dispositif de vérification externe de l'affichage environnemental | L122: =AF!D121 -> 0 | M122: Pas besoin de devis | O122: =AF!G121 -> 0 | P122: ='2-Je choisis mes actions'!G141 -> 
C123: =AF!A122 -> Mise en œuvre de l’Ecolabel Européen sur les produits ou les services de l'entreprise | L123: =AF!D122 -> 0 | M123: Pas besoin de devis | O123: =AF!G122 -> 0 | P123: ='2-Je choisis mes actions'!G142 -> 
C124: =AF!A123 -> Certification écolabel européen de produits ou service | L124: =AF!D123 -> 0 | M124: Pas besoin de devis | O124: =AF!G123 -> 0 | P124: ='2-Je choisis mes actions'!G143 -> 
C125: =AF!A124 -> Accompagnement à la labellisation "Numérique responsable" | L125: =AF!D124 -> 0 | M125: Pas besoin de devis | O125: =AF!G124 -> 0 | P125: ='2-Je choisis mes actions'!G144 -> 
O126: 1
B127: Aide à demander à l'ADEME | L127: ='2-Je choisis mes actions'!F172 -> 0 | O127: 1
B129: La définition détaillée des actions retenue est celle inscrite sur l’icône « ? » en début de ligne dans l'onglet "2- Je choisis mes actions". C'est cette définition détaillée qui sert de base ensuite aux relations contractuelles entre vous et l'ADEME.
B131: Reprenez ces données lors du dépôt de votre dossier et n'oubliez pas de joindre votre RIB.

Sheet List (hidden)
A1: Code NAF | B1: ligne | C1: Code | D1: Intitulés de la NAF rév. 2, version finale | E1: Intitulés NAF rév. 2, en 65 caractères | F1: Intitulés NAF rév. 2, en 40 caractères | J1: List_code_NAF | L1: Département | M1: Libelle_d_acheminement | N1: Clé | O1: Degré de Densité de la commune | P1: Population municipale 2017 | Q1: Commune rural | R1: Département | S1: Région | T1: Zone solaire | U1: 1BA | V1: =SUMIFS('2-Je choisis mes actions'!$F:$F,'2-Je choisis mes actions'!$N:$N,U1) -> 0 | W1: 1BA.01 | X1: =SUMIFS('2-Je choisis mes actions'!$F:$F,'2-Je choisis mes actions'!$L:$L,W1) -> 0 | Y1: SA2.04.01 | Z1: =SUMIFS('2-Je choisis mes actions'!$F:$F,'2-Je choisis mes actions'!$M:$M,Y1) -> 0 | AB1: Code partenaires valides | AE1: Bonus OM | AF1: 0.2 | AH1: Affichage FTD | AI1: 0
B2: 1 | J2: 0111Z | L2: 01 | M2: AMBERIEU EN BUGEY | N2: 01-AMBERIEU EN BUGEY | O2: 2 | P2: 14035 | Q2: 01004 | R2: 1 | S2: RA - Auvergne Rhône Alpes | T2: Sud | U2: 1CL | V2: =SUMIFS('2-Je choisis mes actions'!$F:$F,'2-Je choisis mes actions'!$N:$N,U2) -> 0 | W2: 1CL.04.01 | X2: =SUMIFS('2-Je choisis mes actions'!$F:$F,'2-Je choisis mes actions'!$L:$L,W2) -> 0 | Y2: SA2.04.03 | Z2: =SUMIFS('2-Je choisis mes actions'!$F:$F,'2-Je choisis mes actions'!$M:$M,Y2) -> 0 | AB2: FTDNAT01 | AC2: la réparation et la transformation d’articles d’habillement | AH2: Actions EnR sur I.FF | AI2: 1
B3: 2 | C3: SECTION A | D3: AGRICULTURE, SYLVICULTURE ET PÊCHE | E3: AGRICULTURE, SYLVICULTURE ET PÊCHE | F3: AGRICULTURE, SYLVICULTURE ET PÊCHE | G3: =IF(LEFT(C3,7)="SECTION",C3,G2) -> SECTION A | J3: 0112Z | L3: 01 | M3: AMBERIEUX EN DOMBES | N3: 01-AMBERIEUX EN DOMBES | O3: 3 | P3: 1689 | Q3: 01005 | R3: 2 | S3: HF - Hauts de France | T3: Nord | U3: 1EE | V3: =SUMIFS('2-Je choisis mes actions'!$F:$F,'2-Je choisis mes actions'!$N:$N,U3) -> 0 | W3: 1CL.05.01 | X3: =SUMIFS('2-Je choisis mes actions'!$F:$F,'2-Je choisis mes actions'!$L:$L,W3) -> 0 | Y3: SA2.01 | Z3: =SUMIFS('2-Je choisis mes actions'!$F:$F,'2-Je choisis mes actions'!$M:$M,Y3) -> 0 | AB3: FTDNAT02 | AC3: la réparation d’articles de sport (à l’exclusion des fusils pour le tir sportif) et de matériel de camping | AH3: Taux max | AI3: 0.8
B4: 3 | G4: =IF(LEFT(C4,7)="SECTION",C4,G3) -> SECTION A | J4: 0113Z | L4: 01 | M4: AMBLEON | N4: 01-AMBLEON | O4: 4 | P4: 111 | Q4: 01006 | R4: 3 | S4: RA - Auvergne Rhône Alpes | T4: Sud | U4: 1ER | V4: =SUMIFS('2-Je choisis mes actions'!$F:$F,'2-Je choisis mes actions'!$N:$N,U4) -> 0 | W4: 1EE.03 | X4: =SUMIFS('2-Je choisis mes actions'!$F:$F,'2-Je choisis mes actions'!$L:$L,W4) -> 0 | Y4: SA3.01 | Z4: =SUMIFS('2-Je choisis mes actions'!$F:$F,'2-Je choisis mes actions'!$M:$M,Y4) -> 0 | AB4: FTDNAT03 | AC4: la réparation de livres
B5: 4 | C5: 01 | D5: Culture et production animale, chasse et services annexes | E5: Culture et production animale, chasse et services annexes | F5: Cult. & prod. animale, chasse & sce ann. | G5: SECTION A | H5: =IF(LEN(C5)=2,D5,H4) -> Culture et production animale, chasse et services annexes | J5: 0114Z | L5: 01 | M5: AMBRONAY | N5: 01-AMBRONAY | O5: 3 | P5: 2726 | Q5: 01007 | R5: 4 | S5: PA - P.A.C.A. | T5: Sud | U5: 1MT | V5: =SUMIFS('2-Je choisis mes actions'!$F:$F,'2-Je choisis mes actions'!$N:$N,U5) -> 0 | W5: 1ER.15.03 | X5: =SUMIFS('2-Je choisis mes actions'!$F:$F,'2-Je choisis mes actions'!$L:$L,W5) -> 0 | AB5: FTDNAT04 | AC5: la réparation d’instruments de musique (à l’exclusion des orgues et instruments de musique historiques)
B6: 5 | G6: SECTION A | H6: =IF(LEN(C6)=2,D6,H5) -> Culture et production animale, chasse et services annexes | J6: 0115Z | L6: 01 | M6: AMBUTRIX | N6: 01-AMBUTRIX | O6: 2 | P6: 752 | Q6: 01008 | R6: 5 | S6: PA - P.A.C.A. | T6: Sud | U6: 1QA | V6: =SUMIFS('2-Je choisis mes actions'!$F:$F,'2-Je choisis mes actions'!$N:$N,U6) -> 0 | W6: 1MT | X6: =SUMIFS('2-Je choisis mes actions'!$F:$F,'2-Je choisis mes actions'!$L:$L,W6) -> 0 | AB6: FTDNAT05 | AC6: la réparation de cycles
B7: 6 | C7: 01.1 | D7: Cultures non permanentes | E7: Cultures non permanentes | F7: Cultures non permanentes | G7: SECTION A | H7: =IF(LEN(C7)=2,D7,H6) -> Culture et production animale, chasse et services annexes | I7: =IF(LEN(C7)=4,D7,I6) -> Cultures non permanentes | J7: 0116Z | L7: 01 | M7: ANDERT ET CONDON | N7: 01-ANDERT ET CONDON | O7: 3 | P7: 330 | Q7: 01009 | R7: 6 | S7: PA - P.A.C.A. | T7: Med | U7: 2DE | V7: =SUMIFS('2-Je choisis mes actions'!$F:$F,'2-Je choisis mes actions'!$N:$N,U7) -> 0 | W7: 1QA | X7: =SUMIFS('2-Je choisis mes actions'!$F:$F,'2-Je choisis mes actions'!$L:$L,W7) -> 0 | AB7: FTDNAT06 | AC7: la réparation de jouets et articles similaires
B8: 7 | C8: 01.11 | D8: Culture de céréales (à l'exception du riz), de légumineuses et de graines oléagineuses | E8: Culture de céréales (sf riz) légumineuses, graines oléagineuses | F8: Cult céréale, légumineuse, graine oléag. | G8: SECTION A | H8: Culture et production animale, chasse et services annexes | I8: =IF(LEN(C8)=4,D8,I7) -> Cultures non permanentes | J8: 0119Z | L8: 01 | M8: ANGLEFORT | N8: 01-ANGLEFORT | O8: 3 | P8: 1115 | Q8: 01010 | R8: 7 | S8: RA - Auvergne Rhône Alpes | T8: Sud | U8: 2PR | V8: =SUMIFS('2-Je choisis mes actions'!$F:$F,'2-Je choisis mes actions'!$N:$N,U8) -> 0 | W8: 2DE | X8: =SUMIFS('2-Je choisis mes actions'!$F:$F,'2-Je choisis mes actions'!$L:$L,W8) -> 0 | AB8: FTDAURA01 | AC8: la réparation d’autres articles personnels et domestiques
A9: 0111Z | B9: 8 | C9: 01.11Z | D9: Culture de céréales (à l'exception du riz), de légumineuses et de graines oléagineuses | E9: Culture de céréales (sf riz) légumineuses, graines oléagineuses | F9: Cult céréale, légumineuse, graine oléag. | G9: =IF(LEFT(C9,7)="SECTION",C9,G8) -> SECTION A | H9: =IF(LEN(C9)=2,D9,H8) -> Culture et production animale, chasse et services annexes | I9: =IF(LEN(C9)=4,D9,I8) -> Cultures non permanentes | J9: 0121Z | L9: 01 | M9: APREMONT | N9: 01-APREMONT | O9: 3 | P9: 376 | Q9: 01011 | R9: 8 | S9: GE - Grand Est | T9: Nord | W9: 2DE.01.01 | X9: =SUMIFS('2-Je choisis mes actions'!$F:$F,'2-Je choisis mes actions'!$L:$L,W9) -> 0 | AB9: FTDAURA02 | AC9: l’accordage de pianos
B10: 9 | C10: 01.12 | D10: Culture du riz | E10: Culture du riz | F10: Culture du riz | G10: SECTION A | H10: Culture et production animale, chasse et services annexes | I10: Cultures non permanentes | J10: 0122Z | L10: 01 | M10: ARANC | N10: 01-ARANC | O10: 4 | P10: 326 | Q10: 01012 | R10: 9 | S10: OC - Occitanie | T10: Sud | W10: 2DE.01.04 | X10: =SUMIFS('2-Je choisis mes actions'!$F:$F,'2-Je choisis mes actions'!$L:$L,W10) -> 0 | AB10: FTDAURA03 | AC10: autre
A11: 0112Z | B11: 10 | C11: 01.12Z | D11: Culture du riz | E11: Culture du riz | F11: Culture du riz | G11: SECTION A | H11: Culture et production animale, chasse et services annexes | I11: Cultures non permanentes | J11: 0123Z | L11: 01 | M11: ARANDAS | N11: 01-ARANDAS | O11: 4 | P11: 144 | Q11: 01013 | R11: 10 | S11: GE - Grand Est | T11: Nord | W11: 2DE.02.02 | X11: =SUMIFS('2-Je choisis mes actions'!$F:$F,'2-Je choisis mes actions'!$L:$L,W11) -> 0 | AB11: FTDAURA04
B12: 11 | C12: 01.13 | D12: Culture de légumes, de melons, de racines et de tubercules | E12: Culture de légumes, de melons, de racines et de tubercules | F12: Cult. légume, melon, racine & tubercule | G12: SECTION A | H12: Culture et production animale, chasse et services annexes | I12: Cultures non permanentes | J12: 0124Z | L12: 01 | M12: ARBENT | N12: 01-ARBENT | O12: 2 | P12: 3367 | Q12: 01014 | R12: 11 | S12: OC - Occitanie | T12: Med | W12: 2DE.02.03 | X12: =SUMIFS('2-Je choisis mes actions'!$F:$F,'2-Je choisis mes actions'!$L:$L,W12) -> 0 | AB12: FTDAURA05
A13: 0113Z | B13: 12 | C13: 01.13Z | D13: Culture de légumes, de melons, de racines et de tubercules | E13: Culture de légumes, de melons, de racines et de tubercules | F13: Cult. légume, melon, racine & tubercule | G13: SECTION A | H13: Culture et production animale, chasse et services annexes | I13: Cultures non permanentes | J13: 0125Z | L13: 01 | M13: ARBIGNY | N13: 01-ARBIGNY | O13: 3 | P13: 463 | Q13: 01016 | R13: 12 | S13: OC - Occitanie | T13: Sud | W13: 2DE.03.02 | X13: =SUMIFS('2-Je choisis mes actions'!$F:$F,'2-Je choisis mes actions'!$L:$L,W13) -> 0 | AB13: FTDAURA06
B14: 13 | C14: 01.14 | D14: Culture de la canne à sucre | E14: Culture de la canne à sucre | F14: Culture de la canne à sucre | G14: SECTION A | H14: Culture et production animale, chasse et services annexes | I14: Cultures non permanentes | J14: 0126Z | L14: 01 | M14: ARBOYS EN BUGEY | N14: 01-ARBOYS EN BUGEY | O14: 4 | P14: 644 | Q14: 01015 | R14: 13 | S14: PA - P.A.C.A. | T14: Med | W14: 2DE.03.03 | X14: =SUMIFS('2-Je choisis mes actions'!$F:$F,'2-Je choisis mes actions'!$L:$L,W14) -> 0 | AB14: FTDBFC01
A15: 0114Z | B15: 14 | C15: 01.14Z | D15: Culture de la canne à sucre | E15: Culture de la canne à sucre | F15: Culture de la canne à sucre | G15: SECTION A | H15: Culture et production animale, chasse et services annexes | I15: Cultures non permanentes | J15: 0127Z | L15: 01 | M15: ARGIS | N15: 01-ARGIS | O15: 3 | P15: 442 | Q15: 01017 | R15: 14 | S15: NO - Normandie | T15: Nord | W15: 2PR | X15: =SUMIFS('2-Je choisis mes actions'!$F:$F,'2-Je choisis mes actions'!$L:$L,W15) -> 0 | AB15: FTDBFC02
B16: 15 | C16: 01.15 | D16: Culture du tabac | E16: Culture du tabac | F16: Culture du tabac | G16: =IF(LEFT(C16,7)="SECTION",C16,G15) -> SECTION A | H16: =IF(LEN(C16)=2,D16,H15) -> Culture et production animale, chasse et services annexes | I16: =IF(LEN(C16)=4,D16,I15) -> Cultures non permanentes | J16: 0128Z | L16: 01 | M16: ARMIX | N16: 01-ARMIX | O16: 4 | P16: 28 | Q16: 01019 | R16: 15 | S16: RA - Auvergne Rhône Alpes | T16: Sud | W16: 2PR.01 | X16: =SUMIFS('2-Je choisis mes actions'!$F:$F,'2-Je choisis mes actions'!$L:$L,W16) -> 0 | AB16: FTDBFC03
A17: 0115Z | B17: 16 | C17: 01.15Z | D17: Culture du tabac | E17: Culture du tabac | F17: Culture du tabac | G17: SECTION A | H17: Culture et production animale, chasse et services annexes | I17: Cultures non permanentes | J17: 0129Z | L17: 01 | M17: ARS SUR FORMANS | N17: 01-ARS SUR FORMANS | O17: 3 | P17: 1408 | Q17: 01021 | R17: 16 | S17: NA - Nouvelle aquitaine | T17: Sud | W17: 2PR.03 | X17: =SUMIFS('2-Je choisis mes actions'!$F:$F,'2-Je choisis mes actions'!$L:$L,W17) -> 0 | AB17: FTDBFC04
B18: 17 | C18: 01.16 | D18: Culture de plantes à fibres | E18: Culture de plantes à fibres | F18: Culture de plantes à fibres | G18: SECTION A | H18: Culture et production animale, chasse et services annexes | I18: Cultures non permanentes | J18: 0130Z | L18: 01 | M18: ARTEMARE | N18: 01-ARTEMARE | O18: 3 | P18: 1237 | Q18: 01022 | R18: 17 | S18: NA - Nouvelle aquitaine | T18: Sud | W18: 2PR.05 | X18: =SUMIFS('2-Je choisis mes actions'!$F:$F,'2-Je choisis mes actions'!$L:$L,W18) -> 0 | AB18: FTDBFC05
A19: 0116Z | B19: 18 | C19: 01.16Z | D19: Culture de plantes à fibres | E19: Culture de plantes à fibres | F19: Culture de plantes à fibres | G19: SECTION A | H19: Culture et production animale, chasse et services annexes | I19: Cultures non permanentes | J19: 0141Z | L19: 01 | M19: ARVIERE EN VALROMEY | N19: 01-ARVIERE EN VALROMEY | O19: 4 | P19: 713 | Q19: 01453 | R19: 18 | S19: CE - Centre Val de Loire | T19: Nord | AB19: FTDBFC06
B20: 19 | C20: 01.19 | D20: Autres cultures non permanentes | E20: Autres cultures non permanentes | F20: Autres cultures non permanentes | G20: SECTION A | H20: Culture et production animale, chasse et services annexes | I20: Cultures non permanentes | J20: 0142Z | L20: 01 | M20: ASNIERES SUR SAONE | N20: 01-ASNIERES SUR SAONE | O20: 4 | P20: 66 | Q20: 01023 | R20: 19 | S20: NA - Nouvelle aquitaine | T20: Sud | AB20: FTDBRE01
A21: 0119Z | B21: 20 | C21: 01.19Z | D21: Autres cultures non permanentes | E21: Autres cultures non permanentes | F21: Autres cultures non permanentes | G21: SECTION A | H21: Culture et production animale, chasse et services annexes | I21: Cultures non permanentes | J21: 0143Z | L21: 01 | M21: ATTIGNAT | N21: 01-ATTIGNAT | O21: 3 | P21: 3211 | Q21: 01024 | R21: 2A | S21: CO - Corse | T21: Med | AB21: FTDBRE02
B22: 21 | G22: SECTION A | H22: Culture et production animale, chasse et services annexes | I22: Cultures non permanentes | J22: 0144Z | L22: 01 | M22: BAGE DOMMARTIN | N22: 01-BAGE DOMMARTIN | O22: 3 | P22: 4092 | Q22: 01025 | R22: 2B | S22: CO - Corse | T22: Med | AB22: FTDBRE03
B23: 22 | C23: 01.2 | D23: Cultures permanentes | E23: Cultures permanentes | F23: Cultures permanentes | G23: SECTION A | H23: Culture et production animale, chasse et services annexes | I23: Cultures permanentes | J23: 0145Z | L23: 01 | M23: BAGE LE CHATEL | N23: 01-BAGE LE CHATEL | O23: 3 | P23: 923 | Q23: 01026 | R23: 21 | S23: BF - Bourgogne Franche Comté | T23: Nord | V23: =8-COUNTIF(V1:V8,0) -> 0 | X23: =18-COUNTIF(X1:X18,0) -> 0 | Z23: =4-COUNTIF(Z1:Z4,0) -> 0 | AB23: FTDBRE04
B24: 23 | C24: 01.21 | D24: Culture de la vigne | E24: Culture de la vigne | F24: Culture de la vigne | G24: SECTION A | H24: Culture et production animale, chasse et services annexes | I24: Cultures permanentes | J24: 0146Z | L24: 01 | M24: BALAN | N24: 01-BALAN | O24: 3 | P24: 2684 | Q24: 01027 | R24: 22 | S24: BR - Bretagne | T24: Nord | AB24: FTDBRE05
A25: 0121Z | B25: 24 | C25: 01.21Z | D25: Culture de la vigne | E25: Culture de la vigne | F25: Culture de la vigne | G25: SECTION A | H25: Culture et production animale, chasse et services annexes | I25: Cultures permanentes | J25: 0147Z | L25: 01 | M25: BANEINS | N25: 01-BANEINS | O25: 3 | P25: 602 | Q25: 01028 | R25: 23 | S25: NA - Nouvelle aquitaine | T25: Sud | X25: THEME | Z25: SA | AB25: FTDBRE06
B26: 25 | C26: 01.22 | D26: Culture de fruits tropicaux et subtropicaux | E26: Culture de fruits tropicaux et subtropicaux | F26: Culture fruits tropicaux et subtropicaux | G26: SECTION A | H26: Culture et production animale, chasse et services annexes | I26: Cultures permanentes | J26: 0149Z | L26: 01 | M26: BEARD GEOVREISSIAT | N26: 01-BEARD GEOVREISSIAT | O26: 2 | P26: 1051 | Q26: 01170 | R26: 24 | S26: NA - Nouvelle aquitaine | T26: Sud | X26: =IF(X23=1,IF(X1>0,W1,IF(X2>0,W2,IF(X3>0,W3,IF(X4>0,W4,IF(X5>0,W5,IF(X6>0,W6,IF(X7>0,W7,IF(X8>0,W8,IF(X9>0,W9,IF(X10>0,W10,IF(X11>0,W11,IF(X12>0,W12,IF(X13>0,W13,IF(X14>0,W14,IF(X15>0,W15,IF(X16>0,W16,IF(X17>0,W17,IF(X18>0,W18,"3TR")))))))))))))))))),IF(V23=1,IF(V1>0,U1,IF(V2>0,U2,IF(V3>0,U3,IF(V4>0,U4,IF(V5>0,U5,IF(V6>0,U6,IF(V7>0,U7,IF(V8>0,U8,"3TR")))))))),"3TR")) -> 3TR | Z26: =IF(Z23=1,IF(Z1>0,Y1,IF(Z2>0,Y2,IF(Z3>0,Y3,Y4))),IF(AND(Z3=0,Z4=0),Y1,Y3)) -> SA2.04.01 | AB26: FTDCOR01
A27: 0122Z | B27: 26 | C27: 01.22Z | D27: Culture de fruits tropicaux et subtropicaux | E27: Culture de fruits tropicaux et subtropicaux | F27: Culture fruits tropicaux et subtropicaux | G27: SECTION A | H27: Culture et production animale, chasse et services annexes | I27: Cultures permanentes | J27: 0150Z | L27: 01 | M27: BEAUPONT | N27: 01-BEAUPONT | O27: 3 | P27: 689 | Q27: 01029 | R27: 25 | S27: BF - Bourgogne Franche Comté | T27: Nord | AB27: FTDCOR02
B28: 27 | C28: 01.23 | D28: Culture d'agrumes | E28: Culture d'agrumes | F28: Culture d'agrumes | G28: SECTION A | H28: Culture et production animale, chasse et services annexes | I28: Cultures permanentes | J28: 0161Z | L28: 01 | M28: BEAUREGARD | N28: 01-BEAUREGARD | O28: 2 | P28: 866 | Q28: Non | R28: 26 | S28: RA - Auvergne Rhône Alpes | T28: Sud | AB28: FTDCOR03
A29: 0123Z | B29: 28 | C29: 01.23Z | D29: Culture d'agrumes | E29: Culture d'agrumes | F29: Culture d'agrumes | G29: SECTION A | H29: Culture et production animale, chasse et services annexes | I29: Cultures permanentes | J29: 0162Z | L29: 01 | M29: BELIGNEUX | N29: 01-BELIGNEUX | O29: 3 | P29: 3333 | Q29: 01032 | R29: 27 | S29: NO - Normandie | T29: Nord | W29: Plafond tourisme : | Y29: 800000 | AB29: FTDCOR04
B30: 29 | C30: 01.24 | D30: Culture de fruits à pépins et à noyau | E30: Culture de fruits à pépins et à noyau | F30: Culture de fruits à pépins et à noyau | G30: SECTION A | H30: Culture et production animale, chasse et services annexes | I30: Cultures permanentes | J30: 0163Z | L30: 01 | M30: BELLEY | N30: 01-BELLEY | O30: 2 | P30: 9103 | Q30: 01034 | R30: 28 | S30: CE - Centre Val de Loire | T30: Nord | AB30: FTDCOR05
A31: 0124Z | B31: 30 | C31: 01.24Z | D31: Culture de fruits à pépins et à noyau | E31: Culture de fruits à pépins et à noyau | F31: Culture de fruits à pépins et à noyau | G31: SECTION A | H31: Culture et production animale, chasse et services annexes | I31: Cultures permanentes | J31: 0164Z | L31: 01 | M31: BELLEYDOUX | N31: 01-BELLEYDOUX | O31: 4 | P31: 314 | Q31: 01035 | R31: 29 | S31: BR - Bretagne | T31: Nord | AB31: FTDCOR06
B32: 31 | C32: 01.25 | D32: Culture d'autres fruits d'arbres ou d'arbustes et de fruits à coque | E32: Culture d'aut. fruits d'arbres ou d'arbustes et de fruits a coque | F32: Cult. d'aut. fruits & de fruits à coque | G32: SECTION A | H32: Culture et production animale, chasse et services annexes | I32: Cultures permanentes | J32: 0170Z | L32: 01 | M32: BELLIGNAT | N32: 01-BELLIGNAT | O32: 2 | P32: 3624 | Q32: 01031 | R32: 30 | S32: OC - Occitanie | T32: Med | AB32: FTDCVDL01
A33: 0125Z | B33: 32 | C33: 01.25Z | D33: Culture d'autres fruits d'arbres ou d'arbustes et de fruits à coque | E33: Culture d'aut. fruits d'arbres ou d'arbustes et de fruits a coque | F33: Cult. d'aut. fruits & de fruits à coque | G33: SECTION A | H33: Culture et production animale, chasse et services annexes | I33: Cultures permanentes | J33: 0210Z | L33: 01 | M33: BENONCES | N33: 01-BENONCES | O33: 4 | P33: 298 | Q33: 01037 | R33: 31 | S33: OC - Occitanie | T33: Sud | AB33: FTDCVDL02
B34: 33 | C34: 01.26 | D34: Culture de fruits oléagineux | E34: Culture de fruits oléagineux | F34: Culture de fruits oléagineux | G34: SECTION A | H34: Culture et production animale, chasse et services annexes | I34: Cultures permanentes | J34: 0220Z | L34: 01 | M34: BENY | N34: 01-BENY | O34: 3 | P34: 756 | Q34: 01038 | R34: 32 | S34: OC - Occitanie | T34: Sud | AB34: FTDCVDL03
A35: 0126Z | B35: 34 | C35: 01.26Z | D35: Culture de fruits oléagineux | E35: Culture de fruits oléagineux | F35: Culture de fruits oléagineux | G35: SECTION A | H35: Culture et production animale, chasse et services annexes | I35: Cultures permanentes | J35: 0230Z | L35: 01 | M35: BEON | N35: 01-BEON | O35: 3 | P35: 454 | Q35: 01039 | R35: 33 | S35: NA - Nouvelle aquitaine | T35: Sud | AB35: FTDCVDL04
B36: 35 | C36: 01.27 | D36: Culture de plantes à boissons | E36: Culture de plantes à boissons | F36: Culture de plantes à boissons | G36: SECTION A | H36: Culture et production animale, chasse et services annexes | I36: Cultures permanentes | J36: 0240Z | L36: 01 | M36: BEREZIAT | N36: 01-BEREZIAT | O36: 3 | P36: 496 | Q36: 01040 | R36: 34 | S36: OC - Occitanie | T36: Med | AB36: FTDCVDL05
A37: 0127Z | B37: 36 | C37: 01.27Z | D37: Culture de plantes à boissons | E37: Culture de plantes à boissons | F37: Culture de plantes à boissons | G37: SECTION A | H37: Culture et production animale, chasse et services annexes | I37: Cultures permanentes | J37: 0311Z | L37: 01 | M37: BETTANT | N37: 01-BETTANT | O37: 2 | P37: 748 | Q37: 01041 | R37: 35 | S37: BR - Bretagne | T37: Nord | AB37: FTDCVDL06
B38: 37 | C38: 01.28 | D38: Culture de plantes à épices, aromatiques, médicinales et pharmaceutiques | E38: Culture plantes à épices aromatiques médicinales pharmaceutiques | F38: Cult. plante aromatiq. médicin. pharma. | G38: SECTION A | H38: Culture et production animale, chasse et services annexes | I38: Cultures permanentes | J38: 0312Z | L38: 01 | M38: BEY | N38: 01-BEY | O38: 3 | P38: 279 | Q38: 01042 | R38: 36 | S38: CE - Centre Val de Loire | T38: Nord | AB38: FTDGE01
A39: 0128Z | B39: 38 | C39: 01.28Z | D39: Culture de plantes à épices, aromatiques, médicinales et pharmaceutiques | E39: Culture plantes à épices aromatiques médicinales pharmaceutiques | F39: Cult. plante aromatiq. médicin. pharma. | G39: SECTION A | H39: Culture et production animale, chasse et services annexes | I39: Cultures permanentes | J39: 0321Z | L39: 01 | M39: BEYNOST | N39: 01-BEYNOST | O39: 2 | P39: 4613 | Q39: Non | R39: 37 | S39: CE - Centre Val de Loire | T39: Nord | AB39: FTDGE02
B40: 39 | C40: 01.29 | D40: Autres cultures permanentes | E40: Autres cultures permanentes | F40: Autres cultures permanentes | G40: SECTION A | H40: Culture et production animale, chasse et services annexes | I40: Cultures permanentes | J40: 0322Z | L40: 01 | M40: BILLIAT | N40: 01-BILLIAT | O40: 3 | P40: 622 | Q40: 01044 | R40: 38 | S40: RA - Auvergne Rhône Alpes | T40: Sud | AB40: FTDGE03
A41: 0129Z | B41: 40 | C41: 01.29Z | D41: Autres cultures permanentes | E41: Autres cultures permanentes | F41: Autres cultures permanentes | G41: SECTION A | H41: Culture et production animale, chasse et services annexes | I41: Cultures permanentes | J41: 0510Z | L41: 01 | M41: BIRIEUX | N41: 01-BIRIEUX | O41: 4 | P41: 283 | Q41: 01045 | R41: 39 | S41: BF - Bourgogne Franche Comté | T41: Nord | AB41: FTDGE04
B42: 41 | G42: SECTION A | H42: Culture et production animale, chasse et services annexes | I42: Cultures permanentes | J42: 0520Z | L42: 01 | M42: BIZIAT | N42: 01-BIZIAT | O42: 3 | P42: 876 | Q42: 01046 | R42: 40 | S42: NA - Nouvelle aquitaine | T42: Sud | AB42: FTDGE05
B43: 42 | C43: 01.3 | D43: Reproduction de plantes | E43: Reproduction de plantes | F43: Reproduction de plantes | G43: SECTION A | H43: Culture et production animale, chasse et services annexes | I43: Reproduction de plantes | J43: 0610Z | L43: 01 | M43: BLYES | N43: 01-BLYES | O43: 3 | P43: 1007 | Q43: 01047 | R43: 41 | S43: CE - Centre Val de Loire | T43: Nord | AB43: FTDGE06
B44: 43 | C44: 01.30 | D44: Reproduction de plantes | E44: Reproduction de plantes | F44: Reproduction de plantes | G44: SECTION A | H44: Culture et production animale, chasse et services annexes | I44: Reproduction de plantes | J44: 0620Z | L44: 01 | M44: BOHAS MEYRIAT RIGNAT | N44: 01-BOHAS MEYRIAT RIGNAT | O44: 3 | P44: 913 | Q44: 01245 | R44: 42 | S44: RA - Auvergne Rhône Alpes | T44: Sud | AB44: FTDHDF01
A45: 0130Z | B45: 44 | C45: 01.30Z | D45: Reproduction de plantes | E45: Reproduction de plantes | F45: Reproduction de plantes | G45: SECTION A | H45: Culture et production animale, chasse et services annexes | I45: Reproduction de plantes | J45: 0710Z | L45: 01 | M45: BOISSEY | N45: 01-BOISSEY | O45: 3 | P45: 336 | Q45: 01050 | R45: 43 | S45: RA - Auvergne Rhône Alpes | T45: Sud | AB45: FTDHDF02
B46: 45 | G46: SECTION A | H46: Culture et production animale, chasse et services annexes | I46: Reproduction de plantes | J46: 0721Z | L46: 01 | M46: BOLOZON | N46: 01-BOLOZON | O46: 4 | P46: 89 | Q46: 01051 | R46: 44 | S46: PL - Pays de la Loire | T46: Nord | AB46: FTDHDF03
B47: 46 | C47: 01.4 | D47: Production animale | E47: Production animale | F47: Production animale | G47: SECTION A | H47: Culture et production animale, chasse et services annexes | I47: Production animale | J47: 0729Z | L47: 01 | M47: BOULIGNEUX | N47: 01-BOULIGNEUX | O47: 4 | P47: 328 | Q47: 01052 | R47: 45 | S47: CE - Centre Val de Loire | T47: Nord | AB47: FTDHDF04
B48: 47 | C48: 01.41 | D48: Élevage de vaches laitières | E48: Élevage de vaches laitières | F48: Élevage de vaches laitières | G48: SECTION A | H48: Culture et production animale, chasse et services annexes | I48: Production animale | J48: 0811Z | L48: 01 | M48: BOURG EN BRESSE | N48: 01-BOURG EN BRESSE | O48: 2 | P48: 41527 | Q48: Non | R48: 46 | S48: OC - Occitanie | T48: Sud | AB48: FTDHDF05
A49: 0141Z | B49: 48 | C49: 01.41Z | D49: Élevage de vaches laitières | E49: Élevage de vaches laitières | F49: Élevage de vaches laitières | G49: SECTION A | H49: Culture et production animale, chasse et services annexes | I49: Production animale | J49: 0812Z | L49: 01 | M49: BOURG ST CHRISTOPHE | N49: 01-BOURG ST CHRISTOPHE | O49: 3 | P49: 1366 | Q49: 01054 | R49: 47 | S49: NA - Nouvelle aquitaine | T49: Sud | AB49: FTDHDF06
B50: 49 | C50: 01.42 | D50: Élevage d'autres bovins et de buffles | E50: Élevage d'autres bovins et de buffles | F50: Élevage d'autres bovins et de buffles | G50: SECTION A | H50: Culture et production animale, chasse et services annexes | I50: Production animale | J50: 0891Z | L50: 01 | M50: BOYEUX ST JEROME | N50: 01-BOYEUX ST JEROME | O50: 4 | P50: 346 | Q50: 01056 | R50: 48 | S50: OC - Occitanie | T50: Sud | AB50: FTDIDF01
A51: 0142Z | B51: 50 | C51: 01.42Z | D51: Élevage d'autres bovins et de buffles | E51: Élevage d'autres bovins et de buffles | F51: Élevage d'autres bovins et de buffles | G51: SECTION A | H51: Culture et production animale, chasse et services annexes | I51: Production animale | J51: 0892Z | L51: 01 | M51: BOZ | N51: 01-BOZ | O51: 3 | P51: 512 | Q51: 01057 | R51: 49 | S51: PL - Pays de la Loire | T51: Nord | AB51: FTDIDF02
B52: 51 | C52: 01.43 | D52: Élevage de chevaux et d'autres équidés | E52: Élevage de chevaux et d'autres équidés | F52: Élevage de chevaux et d'autres équidés | G52: SECTION A | H52: Culture et production animale, chasse et services annexes | I52: Production animale | J52: 0893Z | L52: 01 | M52: BREGNIER CORDON | N52: 01-BREGNIER CORDON | O52: 3 | P52: 839 | Q52: 01058 | R52: 50 | S52: NO - Normandie | T52: Nord | AB52: FTDIDF03
A53: 0143Z | B53: 52 | C53: 01.43Z | D53: Élevage de chevaux et d'autres équidés | E53: Élevage de chevaux et d'autres équidés | F53: Élevage de chevaux et d'autres équidés | G53: SECTION A | H53: Culture et production animale, chasse et services annexes | I53: Production animale | J53: 0899Z | L53: 01 | M53: BRENOD | N53: 01-BRENOD | O53: 3 | P53: 509 | Q53: 01060 | R53: 51 | S53: GE - Grand Est | T53: Nord | AB53: FTDIDF04
B54: 53 | C54: 01.44 | D54: Élevage de chameaux et d'autres camélidés | E54: Élevage de chameaux et d'autres camélidés | F54: Élevage de chameaux & d'autres camélidés | G54: SECTION A | H54: Culture et production animale, chasse et services annexes | I54: Production animale | J54: 0910Z | L54: 01 | M54: BRENS | N54: 01-BRENS | O54: 3 | P54: 1166 | Q54: 01061 | R54: 52 | S54: GE - Grand Est | T54: Nord | AB54: FTDIDF05
A55: 0144Z | B55: 54 | C55: 01.44Z | D55: Élevage de chameaux et d'autres camélidés | E55: Élevage de chameaux et d'autres camélidés | F55: Élevage de chameaux & d'autres camélidés | G55: SECTION A | H55: Culture et production animale, chasse et services annexes | I55: Production animale | J55: 0990Z | L55: 01 | M55: BRESSE VALLONS | N55: 01-BRESSE VALLONS | O55: 3 | P55: 2282 | Q55: 01130 | R55: 53 | S55: PL - Pays de la Loire | T55: Nord | AB55: FTDIDF06
B56: 55 | C56: 01.45 | D56: Élevage d'ovins et de caprins | E56: Élevage d'ovins et de caprins | F56: Élevage d'ovins et de caprins | G56: SECTION A | H56: Culture et production animale, chasse et services annexes | I56: Production animale | J56: 1011Z | L56: 01 | M56: BRESSOLLES | N56: 01-BRESSOLLES | O56: 2 | P56: 911 | Q56: Non | R56: 54 | S56: GE - Grand Est | T56: Nord | AB56: FTDNA01
A57: 0145Z | B57: 56 | C57: 01.45Z | D57: Élevage d'ovins et de caprins | E57: Élevage d'ovins et de caprins | F57: Élevage d'ovins et de caprins | G57: SECTION A | H57: Culture et production animale, chasse et services annexes | I57: Production animale | J57: 1012Z | L57: 01 | M57: BRION | N57: 01-BRION | O57: 2 | P57: 521 | Q57: 01063 | R57: 55 | S57: GE - Grand Est | T57: Nord | AB57: FTDNA02
B58: 57 | C58: 01.46 | D58: Élevage de porcins | E58: Élevage de porcins | F58: Élevage de porcins | G58: SECTION A | H58: Culture et production animale, chasse et services annexes | I58: Production animale | J58: 1013A | L58: 01 | M58: BRIORD | N58: 01-BRIORD | O58: 3 | P58: 1016 | Q58: 01064 | R58: 56 | S58: BR - Bretagne | T58: Nord | AB58: FTDNA03
A59: 0146Z | B59: 58 | C59: 01.46Z | D59: Élevage de porcins | E59: Élevage de porcins | F59: Élevage de porcins | G59: SECTION A | H59: Culture et production animale, chasse et services annexes | I59: Production animale | J59: 1013B | L59: 01 | M59: BUELLAS | N59: 01-BUELLAS | O59: 3 | P59: 1782 | Q59: 01065 | R59: 57 | S59: GE - Grand Est | T59: Nord | AB59: FTDNA04
B60: 59 | C60: 01.47 | D60: Élevage de volailles | E60: Élevage de volailles | F60: Élevage de volailles | G60: SECTION A | H60: Culture et production animale, chasse et services annexes | I60: Production animale | J60: 1020Z | L60: 01 | M60: CEIGNES | N60: 01-CEIGNES | O60: 4 | P60: 254 | Q60: 01067 | R60: 58 | S60: BF - Bourgogne Franche Comté | T60: Nord | AB60: FTDNA05
A61: 0147Z | B61: 60 | C61: 01.47Z | D61: Élevage de volailles | E61: Élevage de volailles | F61: Élevage de volailles | G61: SECTION A | H61: Culture et production animale, chasse et services annexes | I61: Production animale | J61: 1031Z | L61: 01 | M61: CERDON | N61: 01-CERDON | O61: 3 | P61: 783 | Q61: 01068 | R61: 59 | S61: HF - Hauts de France | T61: Nord | AB61: FTDNA06
B62: 61 | C62: 01.49 | D62: Élevage d'autres animaux | E62: Élevage d'autres animaux | F62: Élevage d'autres animaux | G62: SECTION A | H62: Culture et production animale, chasse et services annexes | I62: Production animale | J62: 1032Z | L62: 01 | M62: CERTINES | N62: 01-CERTINES | O62: 3 | P62: 1517 | Q62: 01069 | R62: 60 | S62: HF - Hauts de France | T62: Nord | AB62: FTDNOR01
A63: 0149Z | B63: 62 | C63: 01.49Z | D63: Élevage d'autres animaux | E63: Élevage d'autres animaux | F63: Élevage d'autres animaux | G63: SECTION A | H63: Culture et production animale, chasse et services annexes | I63: Production animale | J63: 1039A | L63: 01 | M63: CESSY | N63: 01-CESSY | O63: 2 | P63: 4856 | Q63: Non | R63: 61 | S63: NO - Normandie | T63: Nord | AB63: FTDNOR02
B64: 63 | G64: SECTION A | H64: Culture et production animale, chasse et services annexes | I64: Production animale | J64: 1039B | L64: 01 | M64: CEYZERIAT | N64: 01-CEYZERIAT | O64: 3 | P64: 3157 | Q64: 01072 | R64: 62 | S64: HF - Hauts de France | T64: Nord | AB64: FTDNOR03
B65: 64 | C65: 01.5 | D65: Culture et élevage associés | E65: Culture et élevage associés | F65: Culture et élevage associés | G65: SECTION A | H65: Culture et production animale, chasse et services annexes | I65: Culture et élevage associés | J65: 1041A | L65: 01 | M65: CEYZERIEU | N65: 01-CEYZERIEU | O65: 3 | P65: 1007 | Q65: 01073 | R65: 63 | S65: RA - Auvergne Rhône Alpes | T65: Sud | AB65: FTDNOR04
B66: 65 | C66: 01.50 | D66: Culture et élevage associés | E66: Culture et élevage associés | F66: Culture et élevage associés | G66: SECTION A | H66: Culture et production animale, chasse et services annexes | I66: Culture et élevage associés | J66: 1041B | L66: 01 | M66: CHALAMONT | N66: 01-CHALAMONT | O66: 3 | P66: 2451 | Q66: 01074 | R66: 64 | S66: NA - Nouvelle aquitaine | T66: Sud | AB66: FTDNOR05
A67: 0150Z | B67: 66 | C67: 01.50Z | D67: Culture et élevage associés | E67: Culture et élevage associés | F67: Culture et élevage associés | G67: SECTION A | H67: Culture et production animale, chasse et services annexes | I67: Culture et élevage associés | J67: 1042Z | L67: 01 | M67: CHALEINS | N67: 01-CHALEINS | O67: 3 | P67: 1342 | Q67: 01075 | R67: 65 | S67: OC - Occitanie | T67: Sud | AB67: FTDNOR06
B68: 67 | G68: =IF(LEFT(C68,7)="SECTION",C68,G67) -> SECTION A | H68: Culture et production animale, chasse et services annexes | I68: Culture et élevage associés | J68: 1051A | L68: 01 | M68: CHALEY | N68: 01-CHALEY | O68: 4 | P68: 130 | Q68: 01076 | R68: 66 | S68: OC - Occitanie | T68: Med | AB68: FTDOCC01
B69: 68 | C69: 01.6 | D69: Activités de soutien à l'agriculture et traitement primaire des récoltes | E69: Activ. soutien à l'agriculture & trt primaire des récoltes | F69: Act. soutien agr. & trait. prim. récolt. | G69: SECTION A | H69: Culture et production animale, chasse et services annexes | I69: Activités de soutien à l'agriculture et traitement primaire des récoltes | J69: 1051B | L69: 01 | M69: CHALLES LA MONTAGNE | N69: 01-CHALLES LA MONTAGNE | O69: 4 | P69: 194 | Q69: 01077 | R69: 67 | S69: GE - Grand Est | T69: Nord | AB69: FTDOCC02
B70: 69 | C70: 01.61 | D70: Activités de soutien aux cultures | E70: Activités de soutien aux cultures | F70: Activités de soutien aux cultures | G70: SECTION A | H70: =IF(LEN(C70)=2,D70,H69) -> Culture et production animale, chasse et services annexes | I70: Activités de soutien à l'agriculture et traitement primaire des récoltes | J70: 1051C | L70: 01 | M70: CHALLEX | N70: 01-CHALLEX | O70: 2 | P70: 1481 | Q70: Non | R70: 68 | S70: GE - Grand Est | T70: Nord | AB70: FTDOCC03
A71: 0161Z | B71: 70 | C71: 01.61Z | D71: Activités de soutien aux cultures | E71: Activités de soutien aux cultures | F71: Activités de soutien aux cultures | G71: SECTION A | H71: Culture et production animale, chasse et services annexes | I71: Activités de soutien à l'agriculture et traitement primaire des récoltes | J71: 1051D | L71: 01 | M71: CHAMPAGNE EN VALROMEY | N71: 01-CHAMPAGNE EN VALROMEY | O71: 3 | P71: 820 | Q71: 01079 | R71: 69 | S71: RA - Auvergne Rhône Alpes | T71: Sud | AB71: FTDOCC04
B72: 71 | C72: 01.62 | D72: Activités de soutien à la production animale | E72: Activités de soutien à la production animale | F72: Activités de soutien à la prod. animale | G72: SECTION A | H72: Culture et production animale, chasse et services annexes | I72: =IF(LEN(C72)=4,D72,I71) -> Activités de soutien à l'agriculture et traitement primaire des récoltes | J72: 1052Z | L72: 01 | M72: CHAMPDOR CORCELLES | N72: 01-CHAMPDOR CORCELLES | O72: 3 | P72: 651 | Q72: 01080 | R72: 70 | S72: BF - Bourgogne Franche Comté | T72: Nord | AB72: FTDOCC05
A73: 0162Z | B73: 72 | C73: 01.62Z | D73: Activités de soutien à la production animale | E73: Activités de soutien à la production animale | F73: Activités de soutien à la prod. animale | G73: SECTION A | H73: Culture et production animale, chasse et services annexes | I73: Activités de soutien à l'agriculture et traitement primaire des récoltes | J73: 1061A | L73: 01 | M73: CHAMPFROMIER | N73: 01-CHAMPFROMIER | O73: 3 | P73: 729 | Q73: 01081 | R73: 71 | S73: BF - Bourgogne Franche Comté | T73: Nord | AB73: FTDOCC06
B74: 73 | C74: 01.63 | D74: Traitement primaire des récoltes | E74: Traitement primaire des récoltes | F74: Traitement primaire des récoltes | G74: SECTION A | H74: Culture et production animale, chasse et services annexes | I74: Activités de soutien à l'agriculture et traitement primaire des récoltes | J74: 1061B | L74: 01 | M74: CHANAY | N74: 01-CHANAY | O74: 3 | P74: 625 | Q74: 01082 | R74: 72 | S74: PL - Pays de la Loire | T74: Nord | AB74: FTDPACA01
A75: 0163Z | B75: 74 | C75: 01.63Z | D75: Traitement primaire des récoltes | E75: Traitement primaire des récoltes | F75: Traitement primaire des récoltes | G75: SECTION A | H75: Culture et production animale, chasse et services annexes | I75: Activités de soutien à l'agriculture et traitement primaire des récoltes | J75: 1062Z | L75: 01 | M75: CHANCIA | N75: 01-CHANCIA | O75: 3 | P75: 226 | Q75: Non | R75: 73 | S75: RA - Auvergne Rhône Alpes | T75: Sud | AB75: FTDPACA02
B76: 75 | C76: 01.64 | D76: Traitement des semences | E76: Traitement des semences | F76: Traitement des semences | G76: SECTION A | H76: Culture et production animale, chasse et services annexes | I76: Activités de soutien à l'agriculture et traitement primaire des récoltes | J76: 1071A | L76: 01 | M76: CHANEINS | N76: 01-CHANEINS | O76: 3 | P76: 910 | Q76: 01083 | R76: 74 | S76: RA - Auvergne Rhône Alpes | T76: Sud | AB76: FTDPACA03
A77: 0164Z | B77: 76 | C77: 01.64Z | D77: Traitement des semences | E77: Traitement des semences | F77: Traitement des semences | G77: SECTION A | H77: Culture et production animale, chasse et services annexes | I77: Activités de soutien à l'agriculture et traitement primaire des récoltes | J77: 1071B | L77: 01 | M77: CHANOZ CHATENAY | N77: 01-CHANOZ CHATENAY | O77: 3 | P77: 844 | Q77: 01084 | R77: 75 | S77: IF - Ile de France | T77: Nord | AB77: FTDPACA04
B78: 77 | G78: SECTION A | H78: Culture et production animale, chasse et services annexes | I78: Activités de soutien à l'agriculture et traitement primaire des récoltes | J78: 1071C | L78: 01 | M78: CHARIX | N78: 01-CHARIX | O78: 4 | P78: 285 | Q78: 01087 | R78: 76 | S78: NO - Normandie | T78: Nord | AB78: FTDPACA05
B79: 78 | C79: 01.7 | D79: Chasse, piégeage et services annexes | E79: Chasse, piégeage et services annexes | F79: Chasse, piégeage et services annexes | G79: SECTION A | H79: Culture et production animale, chasse et services annexes | I79: Chasse, piégeage et services annexes | J79: 1071D | L79: 01 | M79: CHARNOZ SUR AIN | N79: 01-CHARNOZ SUR AIN | O79: 3 | P79: 913 | Q79: 01088 | R79: 77 | S79: IF - Ile de France | T79: Nord | AB79: FTDPACA06
B80: 79 | C80: 01.70 | D80: Chasse, piégeage et services annexes | E80: Chasse, piégeage et services annexes | F80: Chasse, piégeage et services annexes | G80: SECTION A | H80: Culture et production animale, chasse et services annexes | I80: Chasse, piégeage et services annexes | J80: 1072Z | L80: 01 | M80: CHATEAU GAILLARD | N80: 01-CHATEAU GAILLARD | O80: 3 | P80: 2138 | Q80: 01089 | R80: 78 | S80: IF - Ile de France | T80: Nord | AB80: FTDPDL01
A81: 0170Z | B81: 80 | C81: 01.70Z | D81: Chasse, piégeage et services annexes | E81: Chasse, piégeage et services annexes | F81: Chasse, piégeage et services annexes | G81: SECTION A | H81: Culture et production animale, chasse et services annexes | I81: Chasse, piégeage et services annexes | J81: 1073Z | L81: 01 | M81: CHATENAY | N81: 01-CHATENAY | O81: 4 | P81: 341 | Q81: 01090 | R81: 79 | S81: NA - Nouvelle aquitaine | T81: Sud | AB81: FTDPDL02
B82: 81 | G82: SECTION A | H82: Culture et production animale, chasse et services annexes | I82: Chasse, piégeage et services annexes | J82: 1081Z | L82: 01 | M82: CHATILLON LA PALUD | N82: 01-CHATILLON LA PALUD | O82: 3 | P82: 1584 | Q82: 01092 | R82: 80 | S82: HF - Hauts de France | T82: Nord | AB82: FTDPDL03
B83: 82 | C83: 02 | D83: Sylviculture et exploitation forestière | E83: Sylviculture et exploitation forestière | F83: Sylviculture et exploitation forestière | G83: SECTION A | H83: Sylviculture et exploitation forestière | I83: Chasse, piégeage et services annexes | J83: 1082Z | L83: 01 | M83: CHATILLON SUR CHALARONNE | N83: 01-CHATILLON SUR CHALARONNE | O83: 3 | P83: 4859 | Q83: 01093 | R83: 81 | S83: OC - Occitanie | T83: Sud | AB83: FTDPDL04
B84: 83 | G84: SECTION A | H84: Sylviculture et exploitation forestière | I84: Chasse, piégeage et services annexes | J84: 1083Z | L84: 01 | M84: CHAVANNES SUR REYSSOUZE | N84: 01-CHAVANNES SUR REYSSOUZE | O84: 3 | P84: 753 | Q84: 01094 | R84: 82 | S84: OC - Occitanie | T84: Sud | AB84: FTDPDL05
B85: 84 | C85: 02.1 | D85: Sylviculture et autres activités forestières | E85: Sylviculture et autres activités forestières | F85: Sylviculture & autres act. forestières | G85: SECTION A | H85: Sylviculture et exploitation forestière | I85: Sylviculture et autres activités forestières | J85: 1084Z | L85: 01 | M85: CHAVEYRIAT | N85: 01-CHAVEYRIAT | O85: 3 | P85: 1008 | Q85: 01096 | R85: 83 | S85: PA - P.A.C.A. | T85: Med | AB85: FTDPDL06
B86: 85 | C86: 02.10 | D86: Sylviculture et autres activités forestières | E86: Sylviculture et autres activités forestières | F86: Sylviculture & autres act. forestières | G86: SECTION A | H86: Sylviculture et exploitation forestière | I86: Sylviculture et autres activités forestières | J86: 1085Z | L86: 01 | M86: CHAZEY BONS | N86: 01-CHAZEY BONS | O86: 3 | P86: 1112 | Q86: 01098 | R86: 84 | S86: PA - P.A.C.A. | T86: Sud | AB86: FTDGUA01
A87: 0210Z | B87: 86 | C87: 02.10Z | D87: Sylviculture et autres activités forestières | E87: Sylviculture et autres activités forestières | F87: Sylviculture & autres act. forestières | G87: SECTION A | H87: Sylviculture et exploitation forestière | I87: Sylviculture et autres activités forestières | J87: 1086Z | L87: 01 | M87: CHAZEY SUR AIN | N87: 01-CHAZEY SUR AIN | O87: 3 | P87: 1514 | Q87: 01099 | R87: 85 | S87: PL - Pays de la Loire | T87: Nord | AB87: FTDGUA02
B88: 87 | G88: SECTION A | H88: Sylviculture et exploitation forestière | I88: Sylviculture et autres activités forestières | J88: 1089Z | L88: 01 | M88: CHEIGNIEU LA BALME | N88: 01-CHEIGNIEU LA BALME | O88: 4 | P88: 134 | Q88: 01100 | R88: 86 | S88: NA - Nouvelle aquitaine | T88: Sud | AB88: FTDGUA03
B89: 88 | C89: 02.2 | D89: Exploitation forestière | E89: Exploitation forestière | F89: Exploitation forestière | G89: SECTION A | H89: Sylviculture et exploitation forestière | I89: Exploitation forestière | J89: 1091Z | L89: 01 | M89: CHEVILLARD | N89: 01-CHEVILLARD | O89: 4 | P89: 151 | Q89: 01101 | R89: 87 | S89: NA - Nouvelle aquitaine | T89: Sud | AB89: FTDGUA04
B90: 89 | C90: 02.20 | D90: Exploitation forestière | E90: Exploitation forestière | F90: Exploitation forestière | G90: SECTION A | H90: Sylviculture et exploitation forestière | I90: Exploitation forestière | J90: 1092Z | L90: 01 | M90: CHEVROUX | N90: 01-CHEVROUX | O90: 3 | P90: 952 | Q90: 01102 | R90: 88 | S90: GE - Grand Est | T90: Nord | AB90: FTDGUA05
A91: 0220Z | B91: 90 | C91: 02.20Z | D91: Exploitation forestière | E91: Exploitation forestière | F91: Exploitation forestière | G91: SECTION A | H91: Sylviculture et exploitation forestière | I91: Exploitation forestière | J91: 1101Z | L91: 01 | M91: CHEVRY | N91: 01-CHEVRY | O91: 2 | P91: 1812 | Q91: Non | R91: 89 | S91: BF - Bourgogne Franche Comté | T91: Nord | AB91: FTDGUA06
B92: 91 | G92: SECTION A | H92: Sylviculture et exploitation forestière | I92: Exploitation forestière | J92: 1102A | L92: 01 | M92: CHEZERY FORENS | N92: 01-CHEZERY FORENS | O92: 3 | P92: 467 | Q92: 01104 | R92: 90 | S92: BF - Bourgogne Franche Comté | T92: Nord | AB92: FTDGUY01
B93: 92 | C93: 02.3 | D93: Récolte de produits forestiers non ligneux poussant à l'état sauvage | E93: Récolte produits forestiers non ligneux poussant à l'état sauvage | F93: Récolte prodts forestiers non ligneux | G93: SECTION A | H93: Sylviculture et exploitation forestière | I93: Récolte de produits forestiers non ligneux poussant à l'état sauvage | J93: 1102B | L93: 01 | M93: CIVRIEUX | N93: 01-CIVRIEUX | O93: 3 | P93: 1680 | Q93: 01105 | R93: 91 | S93: IF - Ile de France | T93: Nord | AB93: FTDGUY02
B94: 93 | C94: 02.30 | D94: Récolte de produits forestiers non ligneux poussant à l'état sauvage | E94: Récolte prod. forestiers non ligneux poussant à l'état sauvage | F94: Récolte prodts forestiers non ligneux | G94: SECTION A | H94: Sylviculture et exploitation forestière | I94: Récolte de produits forestiers non ligneux poussant à l'état sauvage | J94: 1103Z | L94: 01 | M94: CIZE | N94: 01-CIZE | O94: 4 | P94: 173 | Q94: 01106 | R94: 92 | S94: IF - Ile de France | T94: Nord | AB94: FTDGUY03
A95: 0230Z | B95: 94 | C95: 02.30Z | D95: Récolte de produits forestiers non ligneux poussant à l'état sauvage | E95: Récolte prod. forestiers non ligneux poussant à l'état sauvage | F95: Récolte prodts forestiers non ligneux | G95: SECTION A | H95: Sylviculture et exploitation forestière | I95: Récolte de produits forestiers non ligneux poussant à l'état sauvage | J95: 1104Z | L95: 01 | M95: CLEYZIEU | N95: 01-CLEYZIEU | O95: 4 | P95: 136 | Q95: 01107 | R95: 93 | S95: IF - Ile de France | T95: Nord | AB95: FTDGUY04
B96: 95 | G96: SECTION A | H96: Sylviculture et exploitation forestière | I96: Récolte de produits forestiers non ligneux poussant à l'état sauvage | J96: 1105Z | L96: 01 | M96: COLIGNY | N96: 01-COLIGNY | O96: 3 | P96: 1181 | Q96: 01108 | R96: 94 | S96: IF - Ile de France | T96: Nord | AB96: FTDGUY05
B97: 96 | C97: 02.4 | D97: Services de soutien à l'exploitation forestière | E97: Services de soutien à l'exploitation forestière | F97: Services de soutien à l'expl. forestière | G97: SECTION A | H97: Sylviculture et exploitation forestière | I97: Services de soutien à l'exploitation forestière | J97: 1106Z | L97: 01 | M97: COLLONGES | N97: 01-COLLONGES | O97: 3 | P97: 2219 | Q97: 01109 | R97: 95 | S97: IF - Ile de France | T97: Nord | AB97: FTDGUY06
B98: 97 | C98: 02.40 | D98: Services de soutien à l'exploitation forestière | E98: Services de soutien à l'exploitation forestière | F98: Services de soutien à l'expl. forestière | G98: SECTION A | H98: Sylviculture et exploitation forestière | I98: Services de soutien à l'exploitation forestière | J98: 1107A | L98: 01 | M98: COLOMIEU | N98: 01-COLOMIEU | O98: 4 | P98: 140 | Q98: 01110 | R98: 971 | S98: GA - Guadeloupe | AB98: FTDMAR01
A99: 0240Z | B99: 98 | C99: 02.40Z | D99: Services de soutien à l'exploitation forestière | E99: Services de soutien à l'exploitation forestière | F99: Services de soutien à l'expl. forestière | G99: SECTION A | H99: Sylviculture et exploitation forestière | I99: Services de soutien à l'exploitation forestière | J99: 1107B | L99: 01 | M99: CONAND | N99: 01-CONAND | O99: 4 | P99: 124 | Q99: 01111 | R99: 972 | S99: MA - Martinique | AB99: FTDMAR02
B100: 99 | G100: SECTION A | H100: Sylviculture et exploitation forestière | I100: Services de soutien à l'exploitation forestière | J100: 1200Z | L100: 01 | M100: CONDAMINE | N100: 01-CONDAMINE | O100: 3 | P100: 411 | Q100: 01112 | R100: 973 | S100: GY - Guyane | AB100: FTDMAR03
B101: 100 | C101: 03 | D101: Pêche et aquaculture | E101: Pêche et aquaculture | F101: Pêche et aquaculture | G101: SECTION A | H101: Pêche et aquaculture | I101: Services de soutien à l'exploitation forestière | J101: 1310Z | L101: 01 | M101: CONDEISSIAT | N101: 01-CONDEISSIAT | O101: 3 | P101: 822 | Q101: 01113 | R101: 974 | S101: RE - Réunion | AB101: FTDMAR04
B102: 101 | G102: SECTION A | H102: Pêche et aquaculture | I102: Services de soutien à l'exploitation forestière | J102: 1320Z | L102: 01 | M102: CONFORT | N102: 01-CONFORT | O102: 3 | P102: 648 | Q102: 01114 | R102: 975 | S102: PM - St Pierre et Miquelon | AB102: FTDMAR05
B103: 102 | C103: 03.1 | D103: Pêche | E103: Pêche | F103: Pêche | G103: SECTION A | H103: Pêche et aquaculture | I103: Pêche | J103: 1330Z | L103: 01 | M103: CONFRANCON | N103: 01-CONFRANCON | O103: 3 | P103: 1336 | Q103: 01115 | R103: 976 | S103: MY - Mayotte | AB103: FTDMAR06
B104: 103 | C104: 03.11 | D104: Pêche en mer | E104: Pêche en mer | F104: Pêche en mer | G104: SECTION A | H104: Pêche et aquaculture | I104: Pêche | J104: 1391Z | L104: 01 | M104: CONTREVOZ | N104: 01-CONTREVOZ | O104: 3 | P104: 499 | Q104: 01116 | R104: 977 | S104: R3 - Outre-Mer | AB104: FTDREUMAY01
A105: 0311Z | B105: 104 | C105: 03.11Z | D105: Pêche en mer | E105: Pêche en mer | F105: Pêche en mer | G105: SECTION A | H105: Pêche et aquaculture | I105: Pêche | J105: 1392Z | L105: 01 | M105: CONZIEU | N105: 01-CONZIEU | O105: 4 | P105: 148 | Q105: 01117 | R105: 978 | S105: R3 - Outre-Mer | AB105: FTDREUMAY02
B106: 105 | C106: 03.12 | D106: Pêche en eau douce | E106: Pêche en eau douce | F106: Pêche en eau douce | G106: SECTION A | H106: Pêche et aquaculture | I106: Pêche | J106: 1393Z | L106: 01 | M106: CORBONOD | N106: 01-CORBONOD | O106: 3 | P106: 1264 | Q106: 01118 | R106: 987 | S106: PF - Polynésie Française | AB106: FTDREUMAY03
A107: 0312Z | B107: 106 | C107: 03.12Z | D107: Pêche en eau douce | E107: Pêche en eau douce | F107: Pêche en eau douce | G107: SECTION A | H107: Pêche et aquaculture | I107: Pêche | J107: 1394Z | L107: 01 | M107: CORLIER | N107: 01-CORLIER | O107: 4 | P107: 114 | Q107: 01121 | R107: 988 | S107: NC - Nouvelle Calédonie | AB107: FTDREUMAY04
B108: 107 | G108: SECTION A | H108: Pêche et aquaculture | I108: Pêche | J108: 1395Z | L108: 01 | M108: CORMORANCHE SUR SAONE | N108: 01-CORMORANCHE SUR SAONE | O108: 3 | P108: 1138 | Q108: 01123 | R108: 98 | S108: R3 - Outre-Mer | AB108: FTDREUMAY05
B109: 108 | C109: 03.2 | D109: Aquaculture | E109: Aquaculture | F109: Aquaculture | G109: SECTION A | H109: Pêche et aquaculture | I109: Aquaculture | J109: 1396Z | L109: 01 | M109: CORMOZ | N109: 01-CORMOZ | O109: 3 | P109: 664 | Q109: 01124 | AB109: FTDREUMAY06
B110: 109 | C110: 03.21 | D110: Aquaculture en mer | E110: Aquaculture en mer | F110: Aquaculture en mer | G110: SECTION A | H110: Pêche et aquaculture | I110: Aquaculture | J110: 1399Z | L110: 01 | M110: CORVEISSIAT | N110: 01-CORVEISSIAT | O110: 3 | P110: 621 | Q110: 01125
A111: 0321Z | B111: 110 | C111: 03.21Z | D111: Aquaculture en mer | E111: Aquaculture en mer | F111: Aquaculture en mer | G111: SECTION A | H111: Pêche et aquaculture | I111: Aquaculture | J111: 1411Z | L111: 01 | M111: COURMANGOUX | N111: 01-COURMANGOUX | O111: 3 | P111: 507 | Q111: 01127
B112: 111 | C112: 03.22 | D112: Aquaculture en eau douce | E112: Aquaculture en eau douce | F112: Aquaculture en eau douce | G112: SECTION A | H112: Pêche et aquaculture | I112: Aquaculture | J112: 1412Z | L112: 01 | M112: COURTES | N112: 01-COURTES | O112: 3 | P112: 313 | Q112: 01128
A113: 0322Z | B113: 112 | C113: 03.22Z | D113: Aquaculture en eau douce | E113: Aquaculture en eau douce | F113: Aquaculture en eau douce | G113: SECTION A | H113: Pêche et aquaculture | I113: Aquaculture | J113: 1413Z | L113: 01 | M113: CRANS | N113: 01-CRANS | O113: 4 | P113: 266 | Q113: 01129
B114: 113 | G114: SECTION A | H114: Pêche et aquaculture | I114: Aquaculture | J114: 1414Z | L114: 01 | M114: CRESSIN ROCHEFORT | N114: 01-CRESSIN ROCHEFORT | O114: 3 | P114: 392 | Q114: 01133
B115: 114 | C115: SECTION B | D115: INDUSTRIES EXTRACTIVES | E115: INDUSTRIES EXTRACTIVES | F115: INDUSTRIES EXTRACTIVES | G115: SECTION B | H115: Pêche et aquaculture | I115: Aquaculture | J115: 1419Z | L115: 01 | M115: CROTTET | N115: 01-CROTTET | O115: 3 | P115: 1734 | Q115: 01134
B116: 115 | G116: SECTION B | H116: Pêche et aquaculture | I116: Aquaculture | J116: 1420Z | L116: 01 | M116: CROZET | N116: 01-CROZET | O116: 2 | P116: 2138 | Q116: Non
B117: 116 | C117: 05 | D117: Extraction de houille et de lignite | E117: Extraction de houille et de lignite | F117: Extraction de houille et de lignite | G117: SECTION B | H117: Extraction de houille et de lignite | I117: Aquaculture | J117: 1431Z | L117: 01 | M117: CRUZILLES LES MEPILLAT | N117: 01-CRUZILLES LES MEPILLAT | O117: 3 | P117: 868 | Q117: 01136
B118: 117 | G118: SECTION B | H118: Extraction de houille et de lignite | I118: Aquaculture | J118: 1439Z | L118: 01 | M118: CULOZ | N118: 01-CULOZ | O118: 3 | P118: 3035 | Q118: 01138
B119: 118 | C119: 05.1 | D119: Extraction de houille | E119: Extraction de houille | F119: Extraction de houille | G119: SECTION B | H119: Extraction de houille et de lignite | I119: Extraction de houille | J119: 1511Z | L119: 01 | M119: CURCIAT DONGALON | N119: 01-CURCIAT DONGALON | O119: 3 | P119: 440 | Q119: 01139
B120: 119 | C120: 05.10 | D120: Extraction de houille | E120: Extraction de houille | F120: Extraction de houille | G120: SECTION B | H120: Extraction de houille et de lignite | I120: Extraction de houille | J120: 1512Z | L120: 01 | M120: CURTAFOND | N120: 01-CURTAFOND | O120: 3 | P120: 770 | Q120: 01140
A121: 0510Z | B121: 120 | C121: 05.10Z | D121: Extraction de houille | E121: Extraction de houille | F121: Extraction de houille | G121: SECTION B | H121: Extraction de houille et de lignite | I121: Extraction de houille | J121: 1520Z | L121: 01 | M121: CUZIEU | N121: 01-CUZIEU | O121: 3 | P121: 448 | Q121: 01141
B122: 121 | G122: SECTION B | H122: Extraction de houille et de lignite | I122: Extraction de houille | J122: 1610A | L122: 01 | M122: DAGNEUX | N122: 01-DAGNEUX | O122: 2 | P122: 4717 | Q122: Non
B123: 122 | C123: 05.2 | D123: Extraction de lignite | E123: Extraction de lignite | F123: Extraction de lignite | G123: SECTION B | H123: Extraction de houille et de lignite | I123: Extraction de lignite | J123: 1610B | L123: 01 | M123: DIVONNE LES BAINS | N123: 01-DIVONNE LES BAINS | O123: 2 | P123: 9644 | Q123: Non
B124: 123 | C124: 05.20 | D124: Extraction de lignite | E124: Extraction de lignite | F124: Extraction de lignite | G124: SECTION B | H124: Extraction de houille et de lignite | I124: Extraction de lignite | J124: 1621Z | L124: 01 | M124: DOMPIERRE SUR CHALARONNE | N124: 01-DOMPIERRE SUR CHALARONNE | O124: 3 | P124: 435 | Q124: 01146
A125: 0520Z | B125: 124 | C125: 05.20Z | D125: Extraction de lignite | E125: Extraction de lignite | F125: Extraction de lignite | G125: SECTION B | H125: Extraction de houille et de lignite | I125: Extraction de lignite | J125: 1622Z | L125: 01 | M125: DOMPIERRE SUR VEYLE | N125: 01-DOMPIERRE SUR VEYLE | O125: 3 | P125: 1166 | Q125: 01145
B126: 125 | G126: SECTION B | H126: Extraction de houille et de lignite | I126: Extraction de lignite | J126: 1623Z | L126: 01 | M126: DOMSURE | N126: 01-DOMSURE | O126: 4 | P126: 486 | Q126: 01147
B127: 126 | C127: 06 | D127: Extraction d'hydrocarbures | E127: Extraction d'hydrocarbures | F127: Extraction d'hydrocarbures | G127: SECTION B | H127: Extraction d'hydrocarbures | I127: Extraction de lignite | J127: 1624Z | L127: 01 | M127: DORTAN | N127: 01-DORTAN | O127: 3 | P127: 1846 | Q127: 01148
B128: 127 | G128: SECTION B | H128: Extraction d'hydrocarbures | I128: Extraction de lignite | J128: 1629Z | L128: 01 | M128: DOUVRES | N128: 01-DOUVRES | O128: 3 | P128: 1041 | Q128: 01149
B129: 128 | C129: 06.1 | D129: Extraction de pétrole brut | E129: Extraction de pétrole brut | F129: Extraction de pétrole brut | G129: SECTION B | H129: Extraction d'hydrocarbures | I129: Extraction de pétrole brut | J129: 1711Z | L129: 01 | M129: DROM | N129: 01-DROM | O129: 4 | P129: 216 | Q129: 01150
B130: 129 | C130: 06.10 | D130: Extraction de pétrole brut | E130: Extraction de pétrole brut | F130: Extraction de pétrole brut | G130: SECTION B | H130: Extraction d'hydrocarbures | I130: Extraction de pétrole brut | J130: 1712Z | L130: 01 | M130: DRUILLAT | N130: 01-DRUILLAT | O130: 3 | P130: 1159 | Q130: 01151
A131: 0610Z | B131: 130 | C131: 06.10Z | D131: Extraction de pétrole brut | E131: Extraction de pétrole brut | F131: Extraction de pétrole brut | G131: SECTION B | H131: Extraction d'hydrocarbures | I131: Extraction de pétrole brut | J131: 1721A | L131: 01 | M131: ECHALLON | N131: 01-ECHALLON | O131: 3 | P131: 757 | Q131: 01152
B132: 131 | G132: =IF(LEFT(C132,7)="SECTION",C132,G131) -> SECTION B | H132: Extraction d'hydrocarbures | I132: Extraction de pétrole brut | J132: 1721B | L132: 01 | M132: ECHENEVEX | N132: 01-ECHENEVEX | O132: 2 | P132: 2132 | Q132: Non
B133: 132 | C133: 06.2 | D133: Extraction de gaz naturel | E133: Extraction de gaz naturel | F133: Extraction de gaz naturel | G133: SECTION B | H133: Extraction d'hydrocarbures | I133: Extraction de gaz naturel | J133: 1721C | L133: 01 | M133: ELOISE | N133: 01-ELOISE | O133: 3 | P133: 864 | Q133: 74109
B134: 133 | C134: 06.20 | D134: Extraction de gaz naturel | E134: Extraction de gaz naturel | F134: Extraction de gaz naturel | G134: SECTION B | H134: =IF(LEN(C134)=2,D134,H133) -> Extraction d'hydrocarbures | I134: Extraction de gaz naturel | J134: 1722Z | L134: 01 | M134: EVOSGES | N134: 01-EVOSGES | O134: 4 | P134: 145 | Q134: 01155
A135: 0620Z | B135: 134 | C135: 06.20Z | D135: Extraction de gaz naturel | E135: Extraction de gaz naturel | F135: Extraction de gaz naturel | G135: SECTION B | H135: Extraction d'hydrocarbures | I135: Extraction de gaz naturel | J135: 1723Z | L135: 01 | M135: FARAMANS | N135: 01-FARAMANS | O135: 3 | P135: 806 | Q135: 01156
B136: 135 | G136: SECTION B | H136: Extraction d'hydrocarbures | I136: =IF(LEN(C136)=4,D136,I135) -> Extraction de gaz naturel | J136: 1724Z | L136: 01 | M136: FAREINS | N136: 01-FAREINS | O136: 3 | P136: 2204 | Q136: 01157
B137: 136 | C137: 07 | D137: Extraction de minerais métalliques | E137: Extraction de minerais métalliques | F137: Extraction de minerais métalliques | G137: SECTION B | H137: Extraction de minerais métalliques | I137: Extraction de gaz naturel | J137: 1729Z | L137: 01 | M137: FARGES | N137: 01-FARGES | O137: 3 | P137: 1038 | Q137: 01158
B138: 137 | G138: SECTION B | H138: Extraction de minerais métalliques | I138: Extraction de gaz naturel | J138: 1811Z | L138: 01 | M138: FEILLENS | N138: 01-FEILLENS | O138: 3 | P138: 3291 | Q138: 01159
B139: 138 | C139: 07.1 | D139: Extraction de minerais de fer | E139: Extraction de minerais de fer | F139: Extraction de minerais de fer | G139: SECTION B | H139: Extraction de minerais métalliques | I139: Extraction de minerais de fer | J139: 1812Z | L139: 01 | M139: FERNEY VOLTAIRE | N139: 01-FERNEY VOLTAIRE | O139: 2 | P139: 9766 | Q139: Non
B140: 139 | C140: 07.10 | D140: Extraction de minerais de fer | E140: Extraction de minerais de fer | F140: Extraction de minerais de fer | G140: SECTION B | H140: Extraction de minerais métalliques | I140: Extraction de minerais de fer | J140: 1813Z | L140: 01 | M140: FLAXIEU | N140: 01-FLAXIEU | O140: 3 | P140: 68 | Q140: 01162
A141: 0710Z | B141: 140 | C141: 07.10Z | D141: Extraction de minerais de fer | E141: Extraction de minerais de fer | F141: Extraction de minerais de fer | G141: SECTION B | H141: Extraction de minerais métalliques | I141: Extraction de minerais de fer | J141: 1814Z | L141: 01 | M141: FOISSIAT | N141: 01-FOISSIAT | O141: 3 | P141: 2085 | Q141: 01163
B142: 141 | G142: SECTION B | H142: Extraction de minerais métalliques | I142: Extraction de minerais de fer | J142: 1820Z | L142: 01 | M142: FRANCHELEINS | N142: 01-FRANCHELEINS | O142: 3 | P142: 1611 | Q142: 01165
B143: 142 | C143: 07.2 | D143: Extraction de minerais de métaux non ferreux | E143: Extraction de minerais de métaux non ferreux | F143: Extr. de minerais de métaux non ferreux | G143: SECTION B | H143: Extraction de minerais métalliques | I143: Extraction de minerais de métaux non ferreux | J143: 1910Z | L143: 01 | M143: FRANS | N143: 01-FRANS | O143: 2 | P143: 2351 | Q143: Non
B144: 143 | C144: 07.21 | D144: Extraction de minerais d'uranium et de thorium | E144: Extraction de minerais d'uranium et de thorium | F144: Extr. de minerais d'uranium & de thorium | G144: SECTION B | H144: Extraction de minerais métalliques | I144: Extraction de minerais de métaux non ferreux | J144: 1920Z | L144: 01 | M144: GARNERANS | N144: 01-GARNERANS | O144: 3 | P144: 647 | Q144: 01167
A145: 0721Z | B145: 144 | C145: 07.21Z | D145: Extraction de minerais d'uranium et de thorium | E145: Extraction de minerais d'uranium et de thorium | F145: Extr. de minerais d'uranium & de thorium | G145: SECTION B | H145: Extraction de minerais métalliques | I145: Extraction de minerais de métaux non ferreux | J145: 2011Z | L145: 01 | M145: GENOUILLEUX | N145: 01-GENOUILLEUX | O145: 2 | P145: 612 | Q145: 01169
B146: 145 | C146: 07.29 | D146: Extraction d'autres minerais de métaux non ferreux | E146: Extraction d'autres minerais de métaux non ferreux | F146: Extr. aut. minerai de métaux non ferreux | G146: SECTION B | H146: Extraction de minerais métalliques | I146: Extraction de minerais de métaux non ferreux | J146: 2012Z | L146: 01 | M146: GEOVREISSET | N146: 01-GEOVREISSET | O146: 2 | P146: 874 | Q146: 01171
A147: 0729Z | B147: 146 | C147: 07.29Z | D147: Extraction d'autres minerais de métaux non ferreux | E147: Extraction d'autres minerais de métaux non ferreux | F147: Extr. aut. minerai de métaux non ferreux | G147: SECTION B | H147: Extraction de minerais métalliques | I147: Extraction de minerais de métaux non ferreux | J147: 2013A | L147: 01 | M147: GEX | N147: 01-GEX | O147: 2 | P147: 13118 | Q147: Non
B148: 147 | G148: SECTION B | H148: Extraction de minerais métalliques | I148: Extraction de minerais de métaux non ferreux | J148: 2013B | L148: 01 | M148: GIRON | N148: 01-GIRON | O148: 4 | P148: 183 | Q148: 01174
B149: 148 | C149: 08 | D149: Autres industries extractives | E149: Autres industries extractives | F149: Autres industries extractives | G149: SECTION B | H149: Autres industries extractives | I149: Extraction de minerais de métaux non ferreux | J149: 2014Z | L149: 01 | M149: GORREVOD | N149: 01-GORREVOD | O149: 3 | P149: 835 | Q149: 01175
B150: 149 | G150: SECTION B | H150: Autres industries extractives | I150: Extraction de minerais de métaux non ferreux | J150: 2015Z | L150: 01 | M150: GRAND CORENT | N150: 01-GRAND CORENT | O150: 4 | P150: 177 | Q150: 01177
B151: 150 | C151: 08.1 | D151: Extraction de pierres, de sables et d'argiles | E151: Extraction de pierres, de sables et d'argiles | F151: Extr. de pierres, de sables et d'argiles | G151: SECTION B | H151: Autres industries extractives | I151: Extraction de pierres, de sables et d'argiles | J151: 2016Z | L151: 01 | M151: GRIEGES | N151: 01-GRIEGES | O151: 3 | P151: 1876 | Q151: 01179
B152: 151 | C152: 08.11 | D152: Extraction de pierres ornementales et de construction, de calcaire industriel, de gypse, de craie et d'ardoise | E152: Extraction pierres ornement. construc. calcaire industriel, gypse | F152: Extr. pierre ornement. & construct. etc. | G152: SECTION B | H152: Autres industries extractives | I152: Extraction de pierres, de sables et d'argiles | J152: 2017Z | L152: 01 | M152: GRILLY | N152: 01-GRILLY | O152: 3 | P152: 833 | Q152: 01180
A153: 0811Z | B153: 152 | C153: 08.11Z | D153: Extraction de pierres ornementales et de construction, de calcaire industriel, de gypse, de craie et d'ardoise | E153: Extraction pierres ornement. construc. calcaire industriel, gypse | F153: Extr. pierre ornement. & construct. etc. | G153: SECTION B | H153: Autres industries extractives | I153: Extraction de pierres, de sables et d'argiles | J153: 2020Z | L153: 01 | M153: GROISSIAT | N153: 01-GROISSIAT | O153: 3 | P153: 1229 | Q153: 01181
B154: 153 | C154: 08.12 | D154: Exploitation de gravières et sablières, extraction d’argiles et de kaolin | E154: Exploit gravieres & sablieres, extraction argiles & kaolin | F154: Exploit. gravière & sabl., extr. argile | G154: SECTION B | H154: Autres industries extractives | I154: Extraction de pierres, de sables et d'argiles | J154: 2030Z | L154: 01 | M154: GROSLEE ST BENOIT | N154: 01-GROSLEE ST BENOIT | O154: 3 | P154: 1193 | Q154: 01338
A155: 0812Z | B155: 154 | C155: 08.12Z | D155: Exploitation de gravières et sablières, extraction d’argiles et de kaolin | E155: Exploit gravieres & sablieres, extraction argiles & kaolin | F155: Exploit. gravière & sabl., extr. argile | G155: SECTION B | H155: Autres industries extractives | I155: Extraction de pierres, de sables et d'argiles | J155: 2041Z | L155: 01 | M155: GUEREINS | N155: 01-GUEREINS | O155: 2 | P155: 1452 | Q155: 01183
B156: 155 | G156: SECTION B | H156: Autres industries extractives | I156: Extraction de pierres, de sables et d'argiles | J156: 2042Z | L156: 01 | M156: HAUT VALROMEY | N156: 01-HAUT VALROMEY | O156: 4 | P156: 669 | Q156: 01187
B157: 156 | C157: 08.9 | D157: Activités extractives n.c.a. | E157: Activités extractives n.c.a. | F157: Activités extractives n.c.a. | G157: SECTION B | H157: Autres industries extractives | I157: Activités extractives n.c.a. | J157: 2051Z | L157: 01 | M157: HAUTECOURT ROMANECHE | N157: 01-HAUTECOURT ROMANECHE | O157: 3 | P157: 777 | Q157: 01184
B158: 157 | C158: 08.91 | D158: Extraction des minéraux chimiques et d'engrais minéraux | E158: Extraction des minéraux chimiques et d'engrais minéraux | F158: Extr. minéraux chimiq. & engrais min. | G158: SECTION B | H158: Autres industries extractives | I158: Activités extractives n.c.a. | J158: 2052Z | L158: 01 | M158: ILLIAT | N158: 01-ILLIAT | O158: 3 | P158: 627 | Q158: 01188
A159: 0891Z | B159: 158 | C159: 08.91Z | D159: Extraction des minéraux chimiques et d'engrais minéraux | E159: Extraction des minéraux chimiques et d'engrais minéraux | F159: Extr. minéraux chimiq. & engrais min. | G159: SECTION B | H159: Autres industries extractives | I159: Activités extractives n.c.a. | J159: 2053Z | L159: 01 | M159: INJOUX GENISSIAT | N159: 01-INJOUX GENISSIAT | O159: 3 | P159: 1136 | Q159: 01189
B160: 159 | C160: 08.92 | D160: Extraction de tourbe | E160: Extraction de tourbe | F160: Extraction de tourbe | G160: SECTION B | H160: Autres industries extractives | I160: Activités extractives n.c.a. | J160: 2059Z | L160: 01 | M160: INNIMOND | N160: 01-INNIMOND | O160: 4 | P160: 89 | Q160: 01190
A161: 0892Z | B161: 160 | C161: 08.92Z | D161: Extraction de tourbe | E161: Extraction de tourbe | F161: Extraction de tourbe | G161: SECTION B | H161: Autres industries extractives | I161: Activités extractives n.c.a. | J161: 2060Z | L161: 01 | M161: IZENAVE | N161: 01-IZENAVE | O161: 4 | P161: 156 | Q161: 01191
B162: 161 | C162: 08.93 | D162: Production de sel | E162: Production de sel | F162: Production de sel | G162: SECTION B | H162: Autres industries extractives | I162: Activités extractives n.c.a. | J162: 2110Z | L162: 01 | M162: IZERNORE | N162: 01-IZERNORE | O162: 3 | P162: 2247 | Q162: 01192
A163: 0893Z | B163: 162 | C163: 08.93Z | D163: Production de sel | E163: Production de sel | F163: Production de sel | G163: SECTION B | H163: Autres industries extractives | I163: Activités extractives n.c.a. | J163: 2120Z | L163: 01 | M163: IZIEU | N163: 01-IZIEU | O163: 3 | P163: 235 | Q163: 01193
B164: 163 | C164: 08.99 | D164: Autres activités extractives n.c.a. | E164: Autres activités extractives n.c.a. | F164: Autres activités extractives n.c.a. | G164: SECTION B | H164: Autres industries extractives | I164: Activités extractives n.c.a. | J164: 2211Z | L164: 01 | M164: JASSANS RIOTTIER | N164: 01-JASSANS RIOTTIER | O164: 2 | P164: 6339 | Q164: Non
A165: 0899Z | B165: 164 | C165: 08.99Z | D165: Autres activités extractives n.c.a. | E165: Autres activités extractives n.c.a. | F165: Autres activités extractives n.c.a. | G165: SECTION B | H165: Autres industries extractives | I165: Activités extractives n.c.a. | J165: 2219Z | L165: 01 | M165: JASSERON | N165: 01-JASSERON | O165: 3 | P165: 1755 | Q165: 01195
B166: 165 | G166: SECTION B | H166: Autres industries extractives | I166: Activités extractives n.c.a. | J166: 2221Z | L166: 01 | M166: JAYAT | N166: 01-JAYAT | O166: 3 | P166: 1182 | Q166: 01196
B167: 166 | C167: 09 | D167: Services de soutien aux industries extractives | E167: Services de soutien aux industries extractives | F167: Sces de soutien aux indust. extractives | G167: SECTION B | H167: Services de soutien aux industries extractives | I167: Activités extractives n.c.a. | J167: 2222Z | L167: 01 | M167: JOURNANS | N167: 01-JOURNANS | O167: 3 | P167: 355 | Q167: 01197
B168: 167 | G168: SECTION B | H168: Services de soutien aux industries extractives | I168: Activités extractives n.c.a. | J168: 2223Z | L168: 01 | M168: JOYEUX | N168: 01-JOYEUX | O168: 4 | P168: 271 | Q168: 01198
B169: 168 | C169: 09.1 | D169: Activités de soutien à l'extraction d'hydrocarbures | E169: Activités de soutien à l'extraction d'hydrocarbures | F169: Act. de soutien à l'extr. hydrocarbures | G169: SECTION B | H169: Services de soutien aux industries extractives | I169: Activités de soutien à l'extraction d'hydrocarbures | J169: 2229A | L169: 01 | M169: JUJURIEUX | N169: 01-JUJURIEUX | O169: 3 | P169: 2156 | Q169: 01199
B170: 169 | C170: 09.10 | D170: Activités de soutien à l'extraction d'hydrocarbures | E170: Activités de soutien à l'extraction d'hydrocarbures | F170: Act. de soutien à l'extr. hydrocarbures | G170: SECTION B | H170: Services de soutien aux industries extractives | I170: Activités de soutien à l'extraction d'hydrocarbures | J170: 2229B | L170: 01 | M170: L ABERGEMENT CLEMENCIAT | N170: 01-L ABERGEMENT CLEMENCIAT | O170: 3 | P170: 776 | Q170: 01001
A171: 0910Z | B171: 170 | C171: 09.10Z | D171: Activités de soutien à l'extraction d'hydrocarbures | E171: Activités de soutien à l'extraction d'hydrocarbures | F171: Act. de soutien à l'extr. hydrocarbures | G171: SECTION B | H171: Services de soutien aux industries extractives | I171: Activités de soutien à l'extraction d'hydrocarbures | J171: 2311Z | L171: 01 | M171: L ABERGEMENT DE VAREY | N171: 01-L ABERGEMENT DE VAREY | O171: 4 | P171: 248 | Q171: 01002
B172: 171 | G172: SECTION B | H172: Services de soutien aux industries extractives | I172: Activités de soutien à l'extraction d'hydrocarbures | J172: 2312Z | L172: 01 | M172: LA BOISSE | N172: 01-LA BOISSE | O172: 2 | P172: 3229 | Q172: Non
B173: 172 | C173: 09.9 | D173: Activités de soutien aux autres industries extractives | E173: Activités de soutien aux autres industries extractives | F173: Act. de soutien aut. indus. extractives | G173: SECTION B | H173: Services de soutien aux industries extractives | I173: Activités de soutien aux autres industries extractives | J173: 2313Z | L173: 01 | M173: LA BURBANCHE | N173: 01-LA BURBANCHE | O173: 4 | P173: 77 | Q173: 01066
B174: 173 | C174: 09.90 | D174: Activités de soutien aux autres industries extractives | E174: Activités de soutien aux autres industries extractives | F174: Act. de soutien aut. indus. extractives | G174: SECTION B | H174: Services de soutien aux industries extractives | I174: Activités de soutien aux autres industries extractives | J174: 2314Z | L174: 01 | M174: LA CHAPELLE DU CHATELARD | N174: 01-LA CHAPELLE DU CHATELARD | O174: 3 | P174: 388 | Q174: 01085
A175: 0990Z | B175: 174 | C175: 09.90Z | D175: Activités de soutien aux autres industries extractives | E175: Activités de soutien aux autres industries extractives | F175: Act. de soutien aut. indus. extractives | G175: SECTION B | H175: Services de soutien aux industries extractives | I175: Activités de soutien aux autres industries extractives | J175: 2319Z | L175: 01 | M175: LA TRANCLIERE | N175: 01-LA TRANCLIERE | O175: 4 | P175: 286 | Q175: 01425
B176: 175 | G176: SECTION B | H176: Services de soutien aux industries extractives | I176: Activités de soutien aux autres industries extractives | J176: 2320Z | L176: 01 | M176: LABALME | N176: 01-LABALME | O176: 4 | P176: 210 | Q176: 01200
B177: 176 | C177: SECTION C | D177: INDUSTRIE MANUFACTURIÈRE | E177: INDUSTRIE MANUFACTURIÈRE | F177: INDUSTRIE MANUFACTURIÈRE | G177: SECTION C | H177: Services de soutien aux industries extractives | I177: Activités de soutien aux autres industries extractives | J177: 2331Z | L177: 01 | M177: LAGNIEU | N177: 01-LAGNIEU | O177: 2 | P177: 7143 | Q177: 01202
B178: 177 | G178: SECTION C | H178: Services de soutien aux industries extractives | I178: Activités de soutien aux autres industries extractives | J178: 2332Z | L178: 01 | M178: LAIZ | N178: 01-LAIZ | O178: 3 | P178: 1212 | Q178: 01203
B179: 178 | C179: 10 | D179: Industries alimentaires | E179: Industries alimentaires | F179: Industries alimentaires | G179: SECTION C | H179: Industries alimentaires | I179: Activités de soutien aux autres industries extractives | J179: 2341Z | L179: 01 | M179: LAJOUX | N179: 01-LAJOUX | O179: 4 | P179: 262 | Q179: Non
B180: 179 | G180: SECTION C | H180: Industries alimentaires | I180: Activités de soutien aux autres industries extractives | J180: 2342Z | L180: 01 | M180: LANTENAY | N180: 01-LANTENAY | O180: 3 | P180: 277 | Q180: 01206
B181: 180 | C181: 10.1 | D181: Transformation et conservation de la viande et préparation de produits à base de viande | E181: Transform. & conserv. viande & préparation prod. à base de viande | F181: Transf. & conserv. viande & prép. viande | G181: SECTION C | H181: Industries alimentaires | I181: Transformation et conservation de la viande et préparation de produits à base de viande | J181: 2343Z | L181: 01 | M181: LAPEYROUSE | N181: 01-LAPEYROUSE | O181: 4 | P181: 316 | Q181: 01207
B182: 181 | C182: 10.11 | D182: Transformation et conservation de la viande de boucherie | E182: Transformation et conservation de la viande de boucherie | F182: Transf. & conserv. viande de boucherie | G182: SECTION C | H182: Industries alimentaires | I182: Transformation et conservation de la viande et préparation de produits à base de viande | J182: 2344Z | L182: 01 | M182: LAVANCIA EPERCY | N182: 01-LAVANCIA EPERCY | O182: 3 | P182: 646 | Q182: Non
A183: 1011Z | B183: 182 | C183: 10.11Z | D183: Transformation et conservation de la viande de boucherie | E183: Transformation et conservation de la viande de boucherie | F183: Transf. & conserv. viande de boucherie | G183: SECTION C | H183: Industries alimentaires | I183: Transformation et conservation de la viande et préparation de produits à base de viande | J183: 2349Z | L183: 01 | M183: LAVOURS | N183: 01-LAVOURS | O183: 4 | P183: 124 | Q183: 01208
B184: 183 | C184: 10.12 | D184: Transformation et conservation de la viande de volaille | E184: Transformation et conservation de la viande de volaille | F184: Transf. & conserv. de viande de volaille | G184: SECTION C | H184: Industries alimentaires | I184: Transformation et conservation de la viande et préparation de produits à base de viande | J184: 2351Z | L184: 01 | M184: LE MONTELLIER | N184: 01-LE MONTELLIER | O184: 4 | P184: 297 | Q184: 01260
A185: 1012Z | B185: 184 | C185: 10.12Z | D185: Transformation et conservation de la viande de volaille | E185: Transformation et conservation de la viande de volaille | F185: Transf. & conserv. de viande de volaille | G185: SECTION C | H185: Industries alimentaires | I185: Transformation et conservation de la viande et préparation de produits à base de viande | J185: 2352Z | L185: 01 | M185: LE PLANTAY | N185: 01-LE PLANTAY | O185: 3 | P185: 564 | Q185: 01299
B186: 185 | C186: 10.13 | D186: Préparation de produits à base de viande | E186: Préparation de produits à base de viande | F186: Préparation de produits à base de viande | G186: SECTION C | H186: Industries alimentaires | I186: Transformation et conservation de la viande et préparation de produits à base de viande | J186: 2361Z | L186: 01 | M186: LE POIZAT LALLEYRIAT | N186: 01-LE POIZAT LALLEYRIAT | O186: 3 | P186: 720 | Q186: 01204
A187: 1013A | B187: 186 | C187: 10.13A | D187: Préparation industrielle de produits à base de viande | E187: Préparation industrielle de produits à base de viande | F187: Prépa. indust. produits à base de viande | G187: SECTION C | H187: Industries alimentaires | I187: Transformation et conservation de la viande et préparation de produits à base de viande | J187: 2362Z | L187: 01 | M187: LEAZ | N187: 01-LEAZ | O187: 3 | P187: 739 | Q187: 01209
A188: 1013B | B188: 187 | C188: 10.13B | D188: Charcuterie | E188: Charcuterie | F188: Charcuterie | G188: SECTION C | H188: Industries alimentaires | I188: Transformation et conservation de la viande et préparation de produits à base de viande | J188: 2363Z | L188: 01 | M188: LELEX | N188: 01-LELEX | O188: 4 | P188: 227 | Q188: 01210
B189: 188 | G189: SECTION C | H189: Industries alimentaires | I189: Transformation et conservation de la viande et préparation de produits à base de viande | J189: 2364Z | L189: 01 | M189: LENT | N189: 01-LENT | O189: 3 | P189: 1405 | Q189: 01211
B190: 189 | C190: 10.2 | D190: Transformation et conservation de poisson, de crustacés et de mollusques | E190: Transform. & conserv. poisson, crustacés & mollusques | F190: Transf. & conserv. poisson, crust., etc. | G190: SECTION C | H190: Industries alimentaires | I190: Transformation et conservation de poisson, de crustacés et de mollusques | J190: 2365Z | L190: 01 | M190: LES NEYROLLES | N190: 01-LES NEYROLLES | O190: 3 | P190: 639 | Q190: 01274
B191: 190 | C191: 10.20 | D191: Transformation et conservation de poisson, de crustacés et de mollusques | E191: Transform. & conserv. poisson, crustacés & mollusques | F191: Transf. & conserv. poisson, crust., etc. | G191: SECTION C | H191: Industries alimentaires | I191: Transformation et conservation de poisson, de crustacés et de mollusques | J191: 2369Z | L191: 01 | M191: LESCHEROUX | N191: 01-LESCHEROUX | O191: 3 | P191: 735 | Q191: 01212
A192: 1020Z | B192: 191 | C192: 10.20Z | D192: Transformation et conservation de poisson, de crustacés et de mollusques | E192: Transform. & conserv. poisson, crustacés & mollusques | F192: Transf. & conserv. poisson, crust., etc. | G192: SECTION C | H192: Industries alimentaires | I192: Transformation et conservation de poisson, de crustacés et de mollusques | J192: 2370Z | L192: 01 | M192: LEYMENT | N192: 01-LEYMENT | O192: 3 | P192: 1303 | Q192: 01213
B193: 192 | G193: SECTION C | H193: Industries alimentaires | I193: Transformation et conservation de poisson, de crustacés et de mollusques | J193: 2391Z | L193: 01 | M193: LEYSSARD | N193: 01-LEYSSARD | O193: 4 | P193: 152 | Q193: 01214
B194: 193 | C194: 10.3 | D194: Transformation et conservation de fruits et légumes | E194: Transformation et conservation de fruits et légumes | F194: Transf. et conserv. de fruits et légumes | G194: SECTION C | H194: Industries alimentaires | I194: Transformation et conservation de fruits et légumes | J194: 2399Z | L194: 01 | M194: LHUIS | N194: 01-LHUIS | O194: 3 | P194: 889 | Q194: 01216
B195: 194 | C195: 10.31 | D195: Transformation et conservation de pommes de terre | E195: Transformation et conservation de pommes de terre | F195: Transf. et conserv. de pommes de terre | G195: SECTION C | H195: Industries alimentaires | I195: Transformation et conservation de fruits et légumes | J195: 2410Z | L195: 01 | M195: LOMPNAS | N195: 01-LOMPNAS | O195: 4 | P195: 168 | Q195: 01219
A196: 1031Z | B196: 195 | C196: 10.31Z | D196: Transformation et conservation de pommes de terre | E196: Transformation et conservation de pommes de terre | F196: Transf. et conserv. de pommes de terre | G196: =IF(LEFT(C196,7)="SECTION",C196,G195) -> SECTION C | H196: Industries alimentaires | I196: Transformation et conservation de fruits et légumes | J196: 2420Z | L196: 01 | M196: LOYETTES | N196: 01-LOYETTES | O196: 2 | P196: 3146 | Q196: Non
B197: 196 | C197: 10.32 | D197: Préparation de jus de fruits et légumes | E197: Préparation de jus de fruits et légumes | F197: Préparation de jus de fruits et légumes | G197: SECTION C | H197: Industries alimentaires | I197: Transformation et conservation de fruits et légumes | J197: 2431Z | L197: 01 | M197: LURCY | N197: 01-LURCY | O197: 3 | P197: 384 | Q197: 01225
A198: 1032Z | B198: 197 | C198: 10.32Z | D198: Préparation de jus de fruits et légumes | E198: Préparation de jus de fruits et légumes | F198: Préparation de jus de fruits et légumes | G198: SECTION C | H198: =IF(LEN(C198)=2,D198,H197) -> Industries alimentaires | I198: Transformation et conservation de fruits et légumes | J198: 2432Z | L198: 01 | M198: MAGNIEU | N198: 01-MAGNIEU | O198: 3 | P198: 644 | Q198: 01227
B199: 198 | C199: 10.39 | D199: Autre transformation et conservation de fruits et légumes | E199: Autre transformation et conservation de fruits et légumes | F199: Aut. transf. & cons. de fruit et légume | G199: SECTION C | H199: Industries alimentaires | I199: Transformation et conservation de fruits et légumes | J199: 2433Z | L199: 01 | M199: MAILLAT | N199: 01-MAILLAT | O199: 3 | P199: 635 | Q199: 01228
A200: 1039A | B200: 199 | C200: 10.39A | D200: Autre transformation et conservation de légumes | E200: Autre transformation et conservation de légumes | F200: Autre transf. et conserv. de légumes | G200: SECTION C | H200: Industries alimentaires | I200: =IF(LEN(C200)=4,D200,I199) -> Transformation et conservation de fruits et légumes | J200: 2434Z | L200: 01 | M200: MALAFRETAZ | N200: 01-MALAFRETAZ | O200: 3 | P200: 1216 | Q200: 01229
... 4300 more rows

Sheet AF (hidden)
A1: Paramètres
B3: Profil : | C3: porteur
B4: N° de contrat :
B5: % d'avance qui doit être versé : | C5: 0.3
A7: ANNEXE FINANCIÈRE
A8: Dispositif "Tremplin pour la transition écologique des PME"
A9: ="Contrat de financement n° "&num_contrat -> Contrat de financement n°
A11: 1. Coût total de l'opération et montant de l'aide
G12: =$G$13 -> 0
A13: 1.1 Pour les aides liées à Tremplin pour la transition écologique | G13: =IF(OPALE!$K$27=1,1,0) -> 0
G14: 1
A15: Nom de l'action | C15: Quantité ** (en nombre d'unité) | D15: Coût total prévisionnel HTR * | E15: Montant forfaitaire maximum | F15: Aide prévisionnelle | G15: 1 | H15: Thématique | I15: ='2-Je choisis mes actions'!L51 -> sous-thématique | J15: ='2-Je choisis mes actions'!M51 -> SA
A16: ='2-Je choisis mes actions'!B6 -> r1 | C16: =IF('2-Je choisis mes actions'!$I6=0,0,'2-Je choisis mes actions'!C6) -> 0 | D16: =ROUND(IF('2-Je choisis mes actions'!$I6=0,0,'2-Je choisis mes actions'!E6),0) -> 0 | E16: =IFERROR(F16/C16,0) -> 0 | F16: =IF('2-Je choisis mes actions'!$I6=0,0,'2-Je choisis mes actions'!F6) -> 0 | G16: =IF('2-Je choisis mes actions'!I6=0,0,IF(C16+D16+F16>0,1,0)) -> 0 | H16: =LEFT(I16,3) -> Tou | I16: ='2-Je choisis mes actions'!L6 -> Tourisme durable | J16: ='2-Je choisis mes actions'!M6 -> Aide à la décision + l'investissement
A17: ='2-Je choisis mes actions'!B7 -> r2 | C17: =IF('2-Je choisis mes actions'!$I7=0,0,'2-Je choisis mes actions'!C7) -> 0 | D17: =ROUND(IF('2-Je choisis mes actions'!$I7=0,0,'2-Je choisis mes actions'!E7),0) -> 0 | E17: 0 | F17: =IF('2-Je choisis mes actions'!$I7=0,0,'2-Je choisis mes actions'!F7) -> 0 | G17: =IF('2-Je choisis mes actions'!I7=0,0,IF(C17+D17+F17>0,1,0)) -> 0 | H17: 0 | I17: ='2-Je choisis mes actions'!L7 -> 0 | J17: ='2-Je choisis mes actions'!M7 -> 0
A18: ='2-Je choisis mes actions'!B8 -> r3 | C18: =IF('2-Je choisis mes actions'!$I8=0,0,'2-Je choisis mes actions'!C8) -> 0 | D18: =ROUND(IF('2-Je choisis mes actions'!$I8=0,0,'2-Je choisis mes actions'!E8),0) -> 0 | E18: 0 | F18: =IF('2-Je choisis mes actions'!$I8=0,0,'2-Je choisis mes actions'!F8) -> 0 | G18: =IF('2-Je choisis mes actions'!I8=0,0,IF(C18+D18+F18>0,1,0)) -> 0 | H18: 0 | I18: ='2-Je choisis mes actions'!L8 -> 0 | J18: ='2-Je choisis mes actions'!M8 -> 0
A19: ='2-Je choisis mes actions'!B9 -> r4 | C19: =IF('2-Je choisis mes actions'!$I9=0,0,'2-Je choisis mes actions'!C9) -> 0 | D19: =ROUND(IF('2-Je choisis mes actions'!$I9=0,0,'2-Je choisis mes actions'!E9),0) -> 0 | E19: 0 | F19: =IF('2-Je choisis mes actions'!$I9=0,0,'2-Je choisis mes actions'!F9) -> 0 | G19: =IF('2-Je choisis mes actions'!I9=0,0,IF(C19+D19+F19>0,1,0)) -> 0 | H19: 0 | I19: ='2-Je choisis mes actions'!L9 -> 0 | J19: ='2-Je choisis mes actions'!M9 -> 0
A20: ='2-Je choisis mes actions'!B10 -> r5 | C20: =IF('2-Je choisis mes actions'!$I10=0,0,'2-Je choisis mes actions'!C10) -> 0 | D20: =ROUND(IF('2-Je choisis mes actions'!$I10=0,0,'2-Je choisis mes actions'!E10),0) -> 0 | E20: 0 | F20: =IF('2-Je choisis mes actions'!$I10=0,0,'2-Je choisis mes actions'!F10) -> 0 | G20: =IF('2-Je choisis mes actions'!I10=0,0,IF(C20+D20+F20>0,1,0)) -> 0 | H20: 0 | I20: ='2-Je choisis mes actions'!L10 -> 0 | J20: ='2-Je choisis mes actions'!M10 -> 0
A21: ='2-Je choisis mes actions'!B11 -> r6 | C21: =IF('2-Je choisis mes actions'!$I11=0,0,'2-Je choisis mes actions'!C11) -> 0 | D21: =ROUND(IF('2-Je choisis mes actions'!$I11=0,0,'2-Je choisis mes actions'!E11),0) -> 0 | E21: 0 | F21: =IF('2-Je choisis mes actions'!$I11=0,0,'2-Je choisis mes actions'!F11) -> 0 | G21: =IF('2-Je choisis mes actions'!I11=0,0,IF(C21+D21+F21>0,1,0)) -> 0 | H21: 0 | I21: ='2-Je choisis mes actions'!L11 -> 0 | J21: ='2-Je choisis mes actions'!M11 -> 0
A22: ='2-Je choisis mes actions'!B12 -> r7 | C22: =IF('2-Je choisis mes actions'!$I12=0,0,'2-Je choisis mes actions'!C12) -> 0 | D22: =ROUND(IF('2-Je choisis mes actions'!$I12=0,0,'2-Je choisis mes actions'!E12),0) -> 0 | E22: 0 | F22: =IF('2-Je choisis mes actions'!$I12=0,0,'2-Je choisis mes actions'!F12) -> 0 | G22: =IF('2-Je choisis mes actions'!I12=0,0,IF(C22+D22+F22>0,1,0)) -> 0 | H22: 0 | I22: ='2-Je choisis mes actions'!L12 -> 0 | J22: ='2-Je choisis mes actions'!M12 -> 0
A23: ='2-Je choisis mes actions'!B13 -> r8 | C23: =IF('2-Je choisis mes actions'!$I13=0,0,'2-Je choisis mes actions'!C13) -> 0 | D23: =ROUND(IF('2-Je choisis mes actions'!$I13=0,0,'2-Je choisis mes actions'!E13),0) -> 0 | E23: 0 | F23: =IF('2-Je choisis mes actions'!$I13=0,0,'2-Je choisis mes actions'!F13) -> 0 | G23: =IF('2-Je choisis mes actions'!I13=0,0,IF(C23+D23+F23>0,1,0)) -> 0 | H23: 0 | I23: ='2-Je choisis mes actions'!L13 -> 0 | J23: ='2-Je choisis mes actions'!M13 -> 0
A24: ='2-Je choisis mes actions'!B14 -> r9 | C24: =IF('2-Je choisis mes actions'!$I14=0,0,'2-Je choisis mes actions'!C14) -> 0 | D24: =ROUND(IF('2-Je choisis mes actions'!$I14=0,0,'2-Je choisis mes actions'!E14),0) -> 0 | E24: =IFERROR(F24/C24,0) -> 0 | F24: =IF('2-Je choisis mes actions'!$I14=0,0,'2-Je choisis mes actions'!F14) -> 0 | G24: =IF('2-Je choisis mes actions'!I14=0,0,IF(C24+D24+F24>0,1,0)) -> 0 | H24: =LEFT(I24,3) -> 0 | I24: ='2-Je choisis mes actions'!L14 -> 0 | J24: ='2-Je choisis mes actions'!M14 -> 0
A25: ='2-Je choisis mes actions'!B15 -> r10 | C25: =IF('2-Je choisis mes actions'!$I15=0,0,'2-Je choisis mes actions'!C15) -> 0 | D25: =ROUND(IF('2-Je choisis mes actions'!$I15=0,0,'2-Je choisis mes actions'!E15),0) -> 0 | E25: 0 | F25: =IF('2-Je choisis mes actions'!$I15=0,0,'2-Je choisis mes actions'!F15) -> 0 | G25: =IF('2-Je choisis mes actions'!I15=0,0,IF(C25+D25+F25>0,1,0)) -> 0 | H25: 0 | I25: ='2-Je choisis mes actions'!L15 -> 0 | J25: ='2-Je choisis mes actions'!M15 -> 0
A26: ='2-Je choisis mes actions'!B16 -> r11 | C26: =IF('2-Je choisis mes actions'!$I16=0,0,'2-Je choisis mes actions'!C16) -> 0 | D26: =ROUND(IF('2-Je choisis mes actions'!$I16=0,0,'2-Je choisis mes actions'!E16),0) -> 0 | E26: =IFERROR(F26/C26,0) -> 0 | F26: =IF('2-Je choisis mes actions'!$I16=0,0,'2-Je choisis mes actions'!F16) -> 0 | G26: =IF('2-Je choisis mes actions'!I16=0,0,IF(C26+D26+F26>0,1,0)) -> 0 | H26: =LEFT(I26,3) -> 0 | I26: ='2-Je choisis mes actions'!L16 -> 0 | J26: ='2-Je choisis mes actions'!M16 -> 0
A27: ='2-Je choisis mes actions'!B17 -> r12 | C27: =IF('2-Je choisis mes actions'!$I17=0,0,'2-Je choisis mes actions'!C17) -> 0 | D27: =ROUND(IF('2-Je choisis mes actions'!$I17=0,0,'2-Je choisis mes actions'!E17),0) -> 0 | E27: 0 | F27: =IF('2-Je choisis mes actions'!$I17=0,0,'2-Je choisis mes actions'!F17) -> 0 | G27: =IF('2-Je choisis mes actions'!I17=0,0,IF(C27+D27+F27>0,1,0)) -> 0 | H27: 0 | I27: ='2-Je choisis mes actions'!L17 -> 0 | J27: ='2-Je choisis mes actions'!M17 -> 0
A28: ='2-Je choisis mes actions'!B18 -> r13 | C28: =IF('2-Je choisis mes actions'!$I18=0,0,'2-Je choisis mes actions'!C18) -> 0 | D28: =ROUND(IF('2-Je choisis mes actions'!$I18=0,0,'2-Je choisis mes actions'!E18),0) -> 0 | E28: =IFERROR(F28/C28,0) -> 0 | F28: =IF('2-Je choisis mes actions'!$I18=0,0,'2-Je choisis mes actions'!F18) -> 0 | G28: =IF('2-Je choisis mes actions'!I18=0,0,IF(C28+D28+F28>0,1,0)) -> 0 | H28: =LEFT(I28,3) -> 0 | I28: ='2-Je choisis mes actions'!L18 -> 0 | J28: ='2-Je choisis mes actions'!M18 -> 0
A29: ='2-Je choisis mes actions'!B19 -> r14 | C29: =IF('2-Je choisis mes actions'!$I19=0,0,'2-Je choisis mes actions'!C19) -> 0 | D29: =ROUND(IF('2-Je choisis mes actions'!$I19=0,0,'2-Je choisis mes actions'!E19),0) -> 0 | E29: 0 | F29: =IF('2-Je choisis mes actions'!$I19=0,0,'2-Je choisis mes actions'!F19) -> 0 | G29: =IF('2-Je choisis mes actions'!I19=0,0,IF(C29+D29+F29>0,1,0)) -> 0 | H29: 0 | I29: ='2-Je choisis mes actions'!L19 -> 0 | J29: ='2-Je choisis mes actions'!M19 -> 0
A30: ='2-Je choisis mes actions'!B20 -> r15 | C30: =IF('2-Je choisis mes actions'!$I20=0,0,'2-Je choisis mes actions'!C20) -> 0 | D30: =ROUND(IF('2-Je choisis mes actions'!$I20=0,0,'2-Je choisis mes actions'!E20),0) -> 0 | E30: =IFERROR(F30/C30,0) -> 0 | F30: =IF('2-Je choisis mes actions'!$I20=0,0,'2-Je choisis mes actions'!F20) -> 0 | G30: =IF('2-Je choisis mes actions'!I20=0,0,IF(C30+D30+F30>0,1,0)) -> 0 | H30: =LEFT(I30,3) -> 0 | I30: ='2-Je choisis mes actions'!L20 -> 0 | J30: ='2-Je choisis mes actions'!M20 -> 0
A31: ='2-Je choisis mes actions'!B21 -> r16 | C31: =IF('2-Je choisis mes actions'!$I21=0,0,'2-Je choisis mes actions'!C21) -> 0 | D31: =ROUND(IF('2-Je choisis mes actions'!$I21=0,0,'2-Je choisis mes actions'!E21),0) -> 0 | E31: 0 | F31: =IF('2-Je choisis mes actions'!$I21=0,0,'2-Je choisis mes actions'!F21) -> 0 | G31: =IF('2-Je choisis mes actions'!I21=0,0,IF(C31+D31+F31>0,1,0)) -> 0 | H31: 0 | I31: ='2-Je choisis mes actions'!L21 -> 0 | J31: ='2-Je choisis mes actions'!M21 -> 0
A32: ='2-Je choisis mes actions'!B22 -> r17 | C32: =IF('2-Je choisis mes actions'!$I22=0,0,'2-Je choisis mes actions'!C22) -> 0 | D32: =ROUND(IF('2-Je choisis mes actions'!$I22=0,0,'2-Je choisis mes actions'!E22),0) -> 0 | E32: =IFERROR(F32/C32,0) -> 0 | F32: =IF('2-Je choisis mes actions'!$I22=0,0,'2-Je choisis mes actions'!F22) -> 0 | G32: =IF('2-Je choisis mes actions'!I22=0,0,IF(C32+D32+F32>0,1,0)) -> 0 | H32: =LEFT(I32,3) -> 0 | I32: ='2-Je choisis mes actions'!L22 -> 0 | J32: ='2-Je choisis mes actions'!M22 -> 0
A33: ='2-Je choisis mes actions'!B23 -> r18 | C33: =IF('2-Je choisis mes actions'!$I23=0,0,'2-Je choisis mes actions'!C23) -> 0 | D33: =ROUND(IF('2-Je choisis mes actions'!$I23=0,0,'2-Je choisis mes actions'!E23),0) -> 0 | E33: 0 | F33: =IF('2-Je choisis mes actions'!$I23=0,0,'2-Je choisis mes actions'!F23) -> 0 | G33: =IF('2-Je choisis mes actions'!I23=0,0,IF(C33+D33+F33>0,1,0)) -> 0 | H33: 0 | I33: ='2-Je choisis mes actions'!L23 -> 0 | J33: ='2-Je choisis mes actions'!M23 -> 0
A34: ='2-Je choisis mes actions'!B24 -> r19 | C34: =IF('2-Je choisis mes actions'!$I24=0,0,'2-Je choisis mes actions'!C24) -> 0 | D34: =ROUND(IF('2-Je choisis mes actions'!$I24=0,0,'2-Je choisis mes actions'!E24),0) -> 0 | E34: =IFERROR(F34/C34,0) -> 0 | F34: =IF('2-Je choisis mes actions'!$I24=0,0,'2-Je choisis mes actions'!F24) -> 0 | G34: =IF('2-Je choisis mes actions'!I24=0,0,IF(C34+D34+F34>0,1,0)) -> 0 | H34: =LEFT(I34,3) -> 0 | I34: ='2-Je choisis mes actions'!L24 -> 0 | J34: ='2-Je choisis mes actions'!M24 -> 0
A35: ='2-Je choisis mes actions'!B25 -> r20 | C35: =IF('2-Je choisis mes actions'!$I25=0,0,'2-Je choisis mes actions'!C25) -> 0 | D35: =ROUND(IF('2-Je choisis mes actions'!$I25=0,0,'2-Je choisis mes actions'!E25),0) -> 0 | E35: 0 | F35: =IF('2-Je choisis mes actions'!$I25=0,0,'2-Je choisis mes actions'!F25) -> 0 | G35: =IF('2-Je choisis mes actions'!I25=0,0,IF(C35+D35+F35>0,1,0)) -> 0 | H35: 0 | I35: ='2-Je choisis mes actions'!L25 -> 0 | J35: ='2-Je choisis mes actions'!M25 -> 0
A36: ='2-Je choisis mes actions'!B29 -> Maîtriser les besoins de chauffage : thermostats radiateur, détection d'ouverture de fenêtre, programmateur horaire | C36: =IF('2-Je choisis mes actions'!$I29=0,0,'2-Je choisis mes actions'!C29) -> 0 | D36: =ROUND(IF('2-Je choisis mes actions'!$I29=0,0,'2-Je choisis mes actions'!E29),0) -> 0 | E36: 0 | F36: =IF('2-Je choisis mes actions'!$I29=0,0,'2-Je choisis mes actions'!F29) -> 0 | G36: =IF('2-Je choisis mes actions'!I29=0,0,IF(C36+D36+F36>0,1,0)) -> 0 | H36: Tou | I36: ='2-Je choisis mes actions'!L29 -> Tourisme durable | J36: ='2-Je choisis mes actions'!M29 -> Aide à la décision + l'investissement
A37: ='2-Je choisis mes actions'!B30 -> Efficacité énergétique des sèche-linge de forte capacité : poids de linge >9kg, performance A+++ ou à énergie de séchage <2,6kWh/cycle | C37: =IF('2-Je choisis mes actions'!$I30=0,0,'2-Je choisis mes actions'!C30) -> 0 | D37: =ROUND(IF('2-Je choisis mes actions'!$I30=0,0,'2-Je choisis mes actions'!E30),0) -> 0 | E37: 0 | F37: =IF('2-Je choisis mes actions'!$I30=0,0,'2-Je choisis mes actions'!F30) -> 0 | G37: =IF('2-Je choisis mes actions'!I30=0,0,IF(C37+D37+F37>0,1,0)) -> 0 | H37: 0 | I37: ='2-Je choisis mes actions'!L30 -> 0 | J37: ='2-Je choisis mes actions'!M30 -> 0
A38: ='2-Je choisis mes actions'!B31 -> Economie d'eau : limitation de débit de robinet de lavabo | C38: =IF('2-Je choisis mes actions'!$I31=0,0,'2-Je choisis mes actions'!C31) -> 0 | D38: =ROUND(IF('2-Je choisis mes actions'!$I31=0,0,'2-Je choisis mes actions'!E31),0) -> 0 | E38: 0 | F38: =IF('2-Je choisis mes actions'!$I31=0,0,'2-Je choisis mes actions'!F31) -> 0 | G38: =IF('2-Je choisis mes actions'!I31=0,0,IF(C38+D38+F38>0,1,0)) -> 0 | H38: 0 | I38: ='2-Je choisis mes actions'!L31 -> 0 | J38: ='2-Je choisis mes actions'!M31 -> 0
A39: ='2-Je choisis mes actions'!B32 -> Economie d'eau : Robinetterie douche : mitigeurs thermostatiques, pommeau à débit réduit | C39: =IF('2-Je choisis mes actions'!$I32=0,0,'2-Je choisis mes actions'!C32) -> 0 | D39: =ROUND(IF('2-Je choisis mes actions'!$I32=0,0,'2-Je choisis mes actions'!E32),0) -> 0 | E39: 0 | F39: =IF('2-Je choisis mes actions'!$I32=0,0,'2-Je choisis mes actions'!F32) -> 0 | G39: =IF('2-Je choisis mes actions'!I32=0,0,IF(C39+D39+F39>0,1,0)) -> 0 | H39: 0 | I39: ='2-Je choisis mes actions'!L32 -> 0 | J39: ='2-Je choisis mes actions'!M32 -> 0
A40: ='2-Je choisis mes actions'!B33 -> Economie d'eau : Limitation de consommation WC (plaquettes, chasse double position) | C40: =IF('2-Je choisis mes actions'!$I33=0,0,'2-Je choisis mes actions'!C33) -> 0 | D40: =ROUND(IF('2-Je choisis mes actions'!$I33=0,0,'2-Je choisis mes actions'!E33),0) -> 0 | E40: 0 | F40: =IF('2-Je choisis mes actions'!$I33=0,0,'2-Je choisis mes actions'!F33) -> 0 | G40: =IF('2-Je choisis mes actions'!I33=0,0,IF(C40+D40+F40>0,1,0)) -> 0 | H40: 0 | I40: ='2-Je choisis mes actions'!L33 -> 0 | J40: ='2-Je choisis mes actions'!M33 -> 0
A41: ='2-Je choisis mes actions'!B34 -> Toilettes sèches | C41: =IF('2-Je choisis mes actions'!$I34=0,0,'2-Je choisis mes actions'!C34) -> 0 | D41: =ROUND(IF('2-Je choisis mes actions'!$I34=0,0,'2-Je choisis mes actions'!E34),0) -> 0 | E41: 0 | F41: =IF('2-Je choisis mes actions'!$I34=0,0,'2-Je choisis mes actions'!F34) -> 0 | G41: =IF('2-Je choisis mes actions'!I34=0,0,IF(C41+D41+F41>0,1,0)) -> 0 | H41: 0 | I41: ='2-Je choisis mes actions'!L34 -> 0 | J41: ='2-Je choisis mes actions'!M34 -> 0
A42: ='2-Je choisis mes actions'!B35 -> Couverture pour piscine et bains à remous extérieurs chauffés | C42: =IF('2-Je choisis mes actions'!$I35=0,0,'2-Je choisis mes actions'!C35) -> 0 | D42: =ROUND(IF('2-Je choisis mes actions'!$I35=0,0,'2-Je choisis mes actions'!E35),0) -> 0 | E42: 0 | F42: =IF('2-Je choisis mes actions'!$I35=0,0,'2-Je choisis mes actions'!F35) -> 0 | G42: =IF('2-Je choisis mes actions'!I35=0,0,IF(C42+D42+F42>0,1,0)) -> 0 | H42: 0 | I42: ='2-Je choisis mes actions'!L35 -> 0 | J42: ='2-Je choisis mes actions'!M35 -> 0
A43: ='2-Je choisis mes actions'!B36 -> Frais d'adaptation du site internet pour valoriser le modèle d'affaire "tourisme durable", y compris la formation du personnel pour rapatrier la gestion du site internet en interne. | C43: =IF('2-Je choisis mes actions'!$I36=0,0,'2-Je choisis mes actions'!C36) -> 0 | D43: =ROUND(IF('2-Je choisis mes actions'!$I36=0,0,'2-Je choisis mes actions'!E36),0) -> 0 | E43: 0 | F43: =IF('2-Je choisis mes actions'!$I36=0,0,'2-Je choisis mes actions'!F36) -> 0 | G43: =IF('2-Je choisis mes actions'!I36=0,0,IF(C43+D43+F43>0,1,0)) -> 0 | H43: 0 | I43: ='2-Je choisis mes actions'!L36 -> 0 | J43: ='2-Je choisis mes actions'!M36 -> 0
A44: ='2-Je choisis mes actions'!B37 -> Frais d’édition de supports de communications : tableau (craie) pour menus du jour ; carte durable (mise en avant de produits bios, valorisation des menus végétariens, affichage carbone….), visuels et animations mettant en valeur les producteurs/fournisseurs locaux etc… mettant en valeur les écogestes dans l’hôtel restaurant pour les salarié.e.s et pour les client.e.s | C44: =IF('2-Je choisis mes actions'!$I37=0,0,'2-Je choisis mes actions'!C37) -> 0 | D44: =ROUND(IF('2-Je choisis mes actions'!$I37=0,0,'2-Je choisis mes actions'!E37),0) -> 0 | E44: =IFERROR(F44/C44,0) -> 0 | F44: =IF('2-Je choisis mes actions'!$I37=0,0,'2-Je choisis mes actions'!F37) -> 0 | G44: =IF('2-Je choisis mes actions'!I37=0,0,IF(C44+D44+F44>0,1,0)) -> 0 | H44: =LEFT(I44,3) -> Tou | I44: ='2-Je choisis mes actions'!L37 -> Tourisme durable | J44: ='2-Je choisis mes actions'!M37 -> Aide à la décision + l'investissement
A45: ='2-Je choisis mes actions'!B38 -> Formation aux éco-gestes, formation à la cuisine végétale/alternative/cuisson douce ; formation aux enjeux environnementaux de l'alimentation | C45: =IF('2-Je choisis mes actions'!$I38=0,0,'2-Je choisis mes actions'!C38) -> 0 | D45: =ROUND(IF('2-Je choisis mes actions'!$I38=0,0,'2-Je choisis mes actions'!E38),0) -> 0 | E45: 0 | F45: =IF('2-Je choisis mes actions'!$I38=0,0,'2-Je choisis mes actions'!F38) -> 0 | G45: =IF('2-Je choisis mes actions'!I38=0,0,IF(C45+D45+F45>0,1,0)) -> 0 | H45: 0 | I45: ='2-Je choisis mes actions'!L38 -> 0 | J45: ='2-Je choisis mes actions'!M38 -> 0
A46: ='2-Je choisis mes actions'!B39 -> AMO pour rénovation globale : complément pour établissement du plan de financement et aide à la complétion des dossiers de demande d'aide | C46: =IF('2-Je choisis mes actions'!$I39=0,0,'2-Je choisis mes actions'!C39) -> 0 | D46: =ROUND(IF('2-Je choisis mes actions'!$I39=0,0,'2-Je choisis mes actions'!E39),0) -> 0 | E46: 0 | F46: =IF('2-Je choisis mes actions'!$I39=0,0,'2-Je choisis mes actions'!F39) -> 0 | G46: =IF('2-Je choisis mes actions'!I39=0,0,IF(C46+D46+F46>0,1,0)) -> 0 | H46: 0 | I46: ='2-Je choisis mes actions'!L39 -> 0 | J46: ='2-Je choisis mes actions'!M39 -> 0
A47: ='2-Je choisis mes actions'!B40 -> Accompagnement à l’élaboration d’un modèle d’affaires tourisme durable | C47: =IF('2-Je choisis mes actions'!$I40=0,0,'2-Je choisis mes actions'!C40) -> 0 | D47: =ROUND(IF('2-Je choisis mes actions'!$I40=0,0,'2-Je choisis mes actions'!E40),0) -> 0 | E47: 0 | F47: =IF('2-Je choisis mes actions'!$I40=0,0,'2-Je choisis mes actions'!F40) -> 0 | G47: =IF('2-Je choisis mes actions'!I40=0,0,IF(C47+D47+F47>0,1,0)) -> 0 | H47: 0 | I47: ='2-Je choisis mes actions'!L40 -> 0 | J47: ='2-Je choisis mes actions'!M40 -> 0
A48: ='2-Je choisis mes actions'!B41 -> h5 | C48: =IF('2-Je choisis mes actions'!$I41=0,0,'2-Je choisis mes actions'!C41) -> 0 | D48: =ROUND(IF('2-Je choisis mes actions'!$I41=0,0,'2-Je choisis mes actions'!E41),0) -> 0 | E48: =IFERROR(F48/C48,0) -> 0 | F48: =IF('2-Je choisis mes actions'!$I41=0,0,'2-Je choisis mes actions'!F41) -> 0 | G48: =IF('2-Je choisis mes actions'!I41=0,0,IF(C48+D48+F48>0,1,0)) -> 0 | H48: =LEFT(I48,3) -> 0 | I48: ='2-Je choisis mes actions'!L41 -> 0 | J48: ='2-Je choisis mes actions'!M41 -> 0
A49: ='2-Je choisis mes actions'!B42 -> h6 | C49: =IF('2-Je choisis mes actions'!$I42=0,0,'2-Je choisis mes actions'!C42) -> 0 | D49: =ROUND(IF('2-Je choisis mes actions'!$I42=0,0,'2-Je choisis mes actions'!E42),0) -> 0 | E49: 0 | F49: =IF('2-Je choisis mes actions'!$I42=0,0,'2-Je choisis mes actions'!F42) -> 0 | G49: =IF('2-Je choisis mes actions'!I42=0,0,IF(C49+D49+F49>0,1,0)) -> 0 | H49: 0 | I49: ='2-Je choisis mes actions'!L42 -> 0 | J49: ='2-Je choisis mes actions'!M42 -> 0
A50: ='2-Je choisis mes actions'!B43 -> h7 | C50: =IF('2-Je choisis mes actions'!$I43=0,0,'2-Je choisis mes actions'!C43) -> 0 | D50: =ROUND(IF('2-Je choisis mes actions'!$I43=0,0,'2-Je choisis mes actions'!E43),0) -> 0 | E50: 0 | F50: =IF('2-Je choisis mes actions'!$I43=0,0,'2-Je choisis mes actions'!F43) -> 0 | G50: =IF('2-Je choisis mes actions'!I43=0,0,IF(C50+D50+F50>0,1,0)) -> 0 | H50: 0 | I50: ='2-Je choisis mes actions'!L43 -> 0 | J50: ='2-Je choisis mes actions'!M43 -> 0
A51: ='2-Je choisis mes actions'!B44 -> h8 | C51: =IF('2-Je choisis mes actions'!$I44=0,0,'2-Je choisis mes actions'!C44) -> 0 | D51: =ROUND(IF('2-Je choisis mes actions'!$I44=0,0,'2-Je choisis mes actions'!E44),0) -> 0 | E51: 0 | F51: =IF('2-Je choisis mes actions'!$I44=0,0,'2-Je choisis mes actions'!F44) -> 0 | G51: =IF('2-Je choisis mes actions'!I44=0,0,IF(C51+D51+F51>0,1,0)) -> 0 | H51: 0 | I51: ='2-Je choisis mes actions'!L44 -> 0 | J51: ='2-Je choisis mes actions'!M44 -> 0
A52: ='2-Je choisis mes actions'!B45 -> h5 | C52: =IF('2-Je choisis mes actions'!$I45=0,0,'2-Je choisis mes actions'!C45) -> 0 | D52: =ROUND(IF('2-Je choisis mes actions'!$I45=0,0,'2-Je choisis mes actions'!E45),0) -> 0 | E52: 0 | F52: =IF('2-Je choisis mes actions'!$I45=0,0,'2-Je choisis mes actions'!F45) -> 0 | G52: =IF('2-Je choisis mes actions'!I45=0,0,IF(C52+D52+F52>0,1,0)) -> 0 | H52: 0 | I52: ='2-Je choisis mes actions'!L45 -> 0 | J52: ='2-Je choisis mes actions'!M45 -> 0
A53: ='2-Je choisis mes actions'!B46 -> h6 | C53: =IF('2-Je choisis mes actions'!$I46=0,0,'2-Je choisis mes actions'!C46) -> 0 | D53: =ROUND(IF('2-Je choisis mes actions'!$I46=0,0,'2-Je choisis mes actions'!E46),0) -> 0 | E53: 0 | F53: =IF('2-Je choisis mes actions'!$I46=0,0,'2-Je choisis mes actions'!F46) -> 0 | G53: =IF('2-Je choisis mes actions'!I46=0,0,IF(C53+D53+F53>0,1,0)) -> 0 | H53: 0 | I53: ='2-Je choisis mes actions'!L46 -> 0 | J53: ='2-Je choisis mes actions'!M46 -> 0
A54: ='2-Je choisis mes actions'!B47 -> h7 | C54: =IF('2-Je choisis mes actions'!$I47=0,0,'2-Je choisis mes actions'!C47) -> 0 | D54: =ROUND(IF('2-Je choisis mes actions'!$I47=0,0,'2-Je choisis mes actions'!E47),0) -> 0 | E54: 0 | F54: =IF('2-Je choisis mes actions'!$I47=0,0,'2-Je choisis mes actions'!F47) -> 0 | G54: =IF('2-Je choisis mes actions'!I47=0,0,IF(C54+D54+F54>0,1,0)) -> 0 | H54: 0 | I54: ='2-Je choisis mes actions'!L47 -> 0 | J54: ='2-Je choisis mes actions'!M47 -> 0
A55: ='2-Je choisis mes actions'!B48 -> h8 | C55: =IF('2-Je choisis mes actions'!$I48=0,0,'2-Je choisis mes actions'!C48) -> 0 | D55: =ROUND(IF('2-Je choisis mes actions'!$I48=0,0,'2-Je choisis mes actions'!E48),0) -> 0 | E55: 0 | F55: =IF('2-Je choisis mes actions'!$I48=0,0,'2-Je choisis mes actions'!F48) -> 0 | G55: =IF('2-Je choisis mes actions'!I48=0,0,IF(C55+D55+F55>0,1,0)) -> 0 | H55: 0 | I55: ='2-Je choisis mes actions'!L48 -> 0 | J55: ='2-Je choisis mes actions'!M48 -> 0
A56: ='2-Je choisis mes actions'!B52 -> Bilan d’émission de gaz à effet de serre (bilan GES scope 1, 2 et 3) et plan d'actions | C56: =IF('2-Je choisis mes actions'!$I52=0,0,'2-Je choisis mes actions'!C52) -> 0 | D56: =ROUND(IF('2-Je choisis mes actions'!$I52=0,0,'2-Je choisis mes actions'!E52),0) -> 0 | E56: =IFERROR(F56/C56,0) -> 0 | F56: =IF('2-Je choisis mes actions'!$I52=0,0,'2-Je choisis mes actions'!F52) -> 0 | G56: =IF('2-Je choisis mes actions'!I52=0,0,IF(C56+D56+F56>0,1,0)) -> 0 | H56: =LEFT(I56,3) -> 1CL | I56: ='2-Je choisis mes actions'!L52 -> 1CL.04.01 | J56: ='2-Je choisis mes actions'!M52 -> SA2.04.01
A57: ='2-Je choisis mes actions'!B53 -> Vous organiser pour réduire les émissions de gaz à effet de serre : élaborer une stratégie (démarche ACT® pas à pas) | C57: =IF('2-Je choisis mes actions'!$I53=0,0,'2-Je choisis mes actions'!C53) -> 0 | D57: =ROUND(IF('2-Je choisis mes actions'!$I53=0,0,'2-Je choisis mes actions'!E53),0) -> 0 | E57: =IFERROR(F57/C57,0) -> 0 | F57: =IF('2-Je choisis mes actions'!$I53=0,0,'2-Je choisis mes actions'!F53) -> 0 | G57: =IF('2-Je choisis mes actions'!I53=0,0,IF(C57+D57+F57>0,1,0)) -> 0 | H57: =LEFT(I57,3) -> 1CL | I57: ='2-Je choisis mes actions'!L53 -> 1CL.05.01 | J57: ='2-Je choisis mes actions'!M53 -> SA2.04.01
A58: ='2-Je choisis mes actions'!B54 -> Evaluer votre stratégie de réduction des émissions de gaz à effet de serre (Evaluation ACT®) | C58: =IF('2-Je choisis mes actions'!$I54=0,0,'2-Je choisis mes actions'!C54) -> 0 | D58: =ROUND(IF('2-Je choisis mes actions'!$I54=0,0,'2-Je choisis mes actions'!E54),0) -> 0 | E58: 0 | F58: =IF('2-Je choisis mes actions'!$I54=0,0,'2-Je choisis mes actions'!F54) -> 0 | G58: =IF('2-Je choisis mes actions'!I54=0,0,IF(C58+D58+F58>0,1,0)) -> 0 | H58: 1CL | I58: ='2-Je choisis mes actions'!L54 -> 1CL.05.01 | J58: ='2-Je choisis mes actions'!M54 -> SA2.04.01
A59: ='2-Je choisis mes actions'!B58 -> Accompagnement à la baisse des consommations d’énergie des bâtiments imposée par le « décret tertiaire » : audit énergétique | C59: =IF('2-Je choisis mes actions'!$I58=0,0,'2-Je choisis mes actions'!C58) -> 0 | D59: =ROUND(IF('2-Je choisis mes actions'!$I58=0,0,'2-Je choisis mes actions'!E58),0) -> 0 | E59: 0 | F59: =IF('2-Je choisis mes actions'!$I58=0,0,'2-Je choisis mes actions'!F58) -> 0 | G59: =IF('2-Je choisis mes actions'!I58=0,0,IF(C59+D59+F59>0,1,0)) -> 0 | H59: 1BA | I59: ='2-Je choisis mes actions'!L58 -> 1BA.01 | J59: ='2-Je choisis mes actions'!M58 -> SA2.04.01
A60: ='2-Je choisis mes actions'!B59 -> Maîtrise d'œuvre (MOE) pour rénovation globale d’un ou plusieurs bâtiments pour viser un objectif de 50% d’économie d’énergie | C60: =IF('2-Je choisis mes actions'!$I59=0,0,'2-Je choisis mes actions'!C59) -> 0 | D60: =ROUND(IF('2-Je choisis mes actions'!$I59=0,0,'2-Je choisis mes actions'!E59),0) -> 0 | E60: 0 | F60: =IF('2-Je choisis mes actions'!$I59=0,0,'2-Je choisis mes actions'!F59) -> 0 | G60: =IF('2-Je choisis mes actions'!I59=0,0,IF(C60+D60+F60>0,1,0)) -> 0 | H60: 1BA | I60: ='2-Je choisis mes actions'!L59 -> 1BA.01 | J60: ='2-Je choisis mes actions'!M59 -> SA2.04.03
A61: ='2-Je choisis mes actions'!B60 -> Diagnostic sur la qualité de l'air (intérieur et extérieur) de l’entreprise | C61: =IF('2-Je choisis mes actions'!$I60=0,0,'2-Je choisis mes actions'!C60) -> 0 | D61: =ROUND(IF('2-Je choisis mes actions'!$I60=0,0,'2-Je choisis mes actions'!E60),0) -> 0 | E61: 0 | F61: =IF('2-Je choisis mes actions'!$I60=0,0,'2-Je choisis mes actions'!F60) -> 0 | G61: =IF('2-Je choisis mes actions'!I60=0,0,IF(C61+D61+F61>0,1,0)) -> 0 | H61: 1QA | I61: ='2-Je choisis mes actions'!L60 -> 1QA | J61: ='2-Je choisis mes actions'!M60 -> SA2.04.01
A62: ='2-Je choisis mes actions'!B64 -> Luminaire d’éclairage à modules LED | C62: =IF('2-Je choisis mes actions'!$I64=0,0,'2-Je choisis mes actions'!C64) -> 0 | D62: =ROUND(IF('2-Je choisis mes actions'!$I64=0,0,'2-Je choisis mes actions'!E64),0) -> 0 | E62: 0 | F62: =IF('2-Je choisis mes actions'!$I64=0,0,'2-Je choisis mes actions'!F64) -> 0 | G62: =IF('2-Je choisis mes actions'!I64=0,0,IF(C62+D62+F62>0,1,0)) -> 0 | H62: 1EE | I62: ='2-Je choisis mes actions'!L64 -> 1EE.03 | J62: ='2-Je choisis mes actions'!M64 -> SA2.01
A63: ='2-Je choisis mes actions'!B65 -> Augmenter l’éclairage naturel grâce à des lanterneaux d'éclairage zénithal | C63: =IF('2-Je choisis mes actions'!$I65=0,0,'2-Je choisis mes actions'!C65) -> 0 | D63: =ROUND(IF('2-Je choisis mes actions'!$I65=0,0,'2-Je choisis mes actions'!E65),0) -> 0 | E63: 0 | F63: =IF('2-Je choisis mes actions'!$I65=0,0,'2-Je choisis mes actions'!F65) -> 0 | G63: =IF('2-Je choisis mes actions'!I65=0,0,IF(C63+D63+F63>0,1,0)) -> 0 | H63: 1EE | I63: ='2-Je choisis mes actions'!L65 -> 1EE.03 | J63: ='2-Je choisis mes actions'!M65 -> SA2.01
A64: ='2-Je choisis mes actions'!B66 -> Augmenter l’éclairage naturel grâce à des conduits de lumière naturelle | C64: =IF('2-Je choisis mes actions'!$I66=0,0,'2-Je choisis mes actions'!C66) -> 0 | D64: =ROUND(IF('2-Je choisis mes actions'!$I66=0,0,'2-Je choisis mes actions'!E66),0) -> 0 | E64: 0 | F64: =IF('2-Je choisis mes actions'!$I66=0,0,'2-Je choisis mes actions'!F66) -> 0 | G64: =IF('2-Je choisis mes actions'!I66=0,0,IF(C64+D64+F64>0,1,0)) -> 0 | H64: 1EE | I64: ='2-Je choisis mes actions'!L66 -> 1EE.03 | J64: ='2-Je choisis mes actions'!M66 -> SA2.01
A65: ='2-Je choisis mes actions'!B67 -> Eclairage extérieur par luminaires LED | C65: =IF('2-Je choisis mes actions'!$I67=0,0,'2-Je choisis mes actions'!C67) -> 0 | D65: =ROUND(IF('2-Je choisis mes actions'!$I67=0,0,'2-Je choisis mes actions'!E67),0) -> 0 | E65: 0 | F65: =IF('2-Je choisis mes actions'!$I67=0,0,'2-Je choisis mes actions'!F67) -> 0 | G65: =IF('2-Je choisis mes actions'!I67=0,0,IF(C65+D65+F65>0,1,0)) -> 0 | H65: 1EE | I65: ='2-Je choisis mes actions'!L67 -> 1EE.03 | J65: ='2-Je choisis mes actions'!M67 -> SA2.01
A66: ='2-Je choisis mes actions'!B68 -> Etude de dimensionnement de l'éclairage | C66: =IF('2-Je choisis mes actions'!$I68=0,0,'2-Je choisis mes actions'!C68) -> 0 | D66: =ROUND(IF('2-Je choisis mes actions'!$I68=0,0,'2-Je choisis mes actions'!E68),0) -> 0 | E66: =IFERROR(F66/C66,0) -> 0 | F66: =IF('2-Je choisis mes actions'!$I68=0,0,'2-Je choisis mes actions'!F68) -> 0 | G66: =IF('2-Je choisis mes actions'!I68=0,0,IF(C66+D66+F66>0,1,0)) -> 0 | H66: =LEFT(I66,3) -> 1EE | I66: ='2-Je choisis mes actions'!L68 -> 1EE.03 | J66: ='2-Je choisis mes actions'!M68 -> SA2.04.01
A67: ='2-Je choisis mes actions'!B72 -> Isolation des meubles de vente réfrigérés et/ou des chambres froides | C67: =IF('2-Je choisis mes actions'!$I72=0,0,'2-Je choisis mes actions'!C72) -> 0 | D67: =ROUND(IF('2-Je choisis mes actions'!$I72=0,0,'2-Je choisis mes actions'!E72),0) -> 0 | E67: 0 | F67: =IF('2-Je choisis mes actions'!$I72=0,0,'2-Je choisis mes actions'!F72) -> 0 | G67: =IF('2-Je choisis mes actions'!I72=0,0,IF(C67+D67+F67>0,1,0)) -> 0 | H67: 1EE | I67: ='2-Je choisis mes actions'!L72 -> 1EE.03 | J67: ='2-Je choisis mes actions'!M72 -> SA2.01
A68: ='2-Je choisis mes actions'!B73 -> Remplacement de fluides dans les équipements frigorifiques commerciaux pour utiliser des fluides frigorigènes ayant moins d’impact sur le changement climatique | C68: =IF('2-Je choisis mes actions'!$I73=0,0,'2-Je choisis mes actions'!C73) -> 0 | D68: =ROUND(IF('2-Je choisis mes actions'!$I73=0,0,'2-Je choisis mes actions'!E73),0) -> 0 | E68: 0 | F68: =IF('2-Je choisis mes actions'!$I73=0,0,'2-Je choisis mes actions'!F73) -> 0 | G68: =IF('2-Je choisis mes actions'!I73=0,0,IF(C68+D68+F68>0,1,0)) -> 0 | H68: 1EE | I68: ='2-Je choisis mes actions'!L73 -> 1EE.03 | J68: ='2-Je choisis mes actions'!M73 -> SA2.01
A69: ='2-Je choisis mes actions'!B74 -> Remplacement d’armoires frigorifiques positives ou de tours réfrigérées par de nouveaux équipements neufs à fluides frigorigènes ayant moins d’impact sur le changement climatique | C69: =IF('2-Je choisis mes actions'!$I74=0,0,'2-Je choisis mes actions'!C74) -> 0 | D69: =ROUND(IF('2-Je choisis mes actions'!$I74=0,0,'2-Je choisis mes actions'!E74),0) -> 0 | E69: 0 | F69: =IF('2-Je choisis mes actions'!$I74=0,0,'2-Je choisis mes actions'!F74) -> 0 | G69: =IF('2-Je choisis mes actions'!I74=0,0,IF(C69+D69+F69>0,1,0)) -> 0 | H69: 1EE | I69: ='2-Je choisis mes actions'!L74 -> 1EE.03 | J69: ='2-Je choisis mes actions'!M74 -> SA2.01
A70: ='2-Je choisis mes actions'!B75 -> Remplacement d’équipements frigorifiques commerciaux peu performants par des équipements neufs à fluides frigorigènes ayant moins d’impact sur le changement climatique | C70: =IF('2-Je choisis mes actions'!$I75=0,0,'2-Je choisis mes actions'!C75) -> 0 | D70: =ROUND(IF('2-Je choisis mes actions'!$I75=0,0,'2-Je choisis mes actions'!E75),0) -> 0 | E70: 0 | F70: =IF('2-Je choisis mes actions'!$I75=0,0,'2-Je choisis mes actions'!F75) -> 0 | G70: =IF('2-Je choisis mes actions'!I75=0,0,IF(C70+D70+F70>0,1,0)) -> 0 | H70: 1EE | I70: ='2-Je choisis mes actions'!L75 -> 1EE.03 | J70: ='2-Je choisis mes actions'!M75 -> SA2.01
A71: ='2-Je choisis mes actions'!B76 -> Installation de froid commercial centralisée au CO2 avec récupération de chaleur | C71: =IF('2-Je choisis mes actions'!$I76=0,0,'2-Je choisis mes actions'!C76) -> 0 | D71: =ROUND(IF('2-Je choisis mes actions'!$I76=0,0,'2-Je choisis mes actions'!E76),0) -> 0 | E71: 0 | F71: =IF('2-Je choisis mes actions'!$I76=0,0,'2-Je choisis mes actions'!F76) -> 0 | G71: =IF('2-Je choisis mes actions'!I76=0,0,IF(C71+D71+F71>0,1,0)) -> 0 | H71: 1EE | I71: ='2-Je choisis mes actions'!L76 -> 1EE.03 | J71: ='2-Je choisis mes actions'!M76 -> SA2.01
A72: ='2-Je choisis mes actions'!B80 -> Isolation de combles perdus | C72: =IF('2-Je choisis mes actions'!$I80=0,0,'2-Je choisis mes actions'!C80) -> 0 | D72: =ROUND(IF('2-Je choisis mes actions'!$I80=0,0,'2-Je choisis mes actions'!E80),0) -> 0 | E72: 0 | F72: =IF('2-Je choisis mes actions'!$I80=0,0,'2-Je choisis mes actions'!F80) -> 0 | G72: =IF('2-Je choisis mes actions'!I80=0,0,IF(C72+D72+F72>0,1,0)) -> 0 | H72: 1BA | I72: ='2-Je choisis mes actions'!L80 -> 1BA.01 | J72: ='2-Je choisis mes actions'!M80 -> SA2.01
A73: ='2-Je choisis mes actions'!B81 -> Isolation des rampants de toiture et plafonds de combles | C73: =IF('2-Je choisis mes actions'!$I81=0,0,'2-Je choisis mes actions'!C81) -> 0 | D73: =ROUND(IF('2-Je choisis mes actions'!$I81=0,0,'2-Je choisis mes actions'!E81),0) -> 0 | E73: 0 | F73: =IF('2-Je choisis mes actions'!$I81=0,0,'2-Je choisis mes actions'!F81) -> 0 | G73: =IF('2-Je choisis mes actions'!I81=0,0,IF(C73+D73+F73>0,1,0)) -> 0 | H73: 1BA | I73: ='2-Je choisis mes actions'!L81 -> 1BA.01 | J73: ='2-Je choisis mes actions'!M81 -> SA2.01
A74: ='2-Je choisis mes actions'!B82 -> Isolation des murs par l'intérieur | C74: =IF('2-Je choisis mes actions'!$I82=0,0,'2-Je choisis mes actions'!C82) -> 0 | D74: =ROUND(IF('2-Je choisis mes actions'!$I82=0,0,'2-Je choisis mes actions'!E82),0) -> 0 | E74: 0 | F74: =IF('2-Je choisis mes actions'!$I82=0,0,'2-Je choisis mes actions'!F82) -> 0 | G74: =IF('2-Je choisis mes actions'!I82=0,0,IF(C74+D74+F74>0,1,0)) -> 0 | H74: 1BA | I74: ='2-Je choisis mes actions'!L82 -> 1BA.01 | J74: ='2-Je choisis mes actions'!M82 -> SA2.01
A75: ='2-Je choisis mes actions'!B83 -> Isolation des murs par l'extérieur | C75: =IF('2-Je choisis mes actions'!$I83=0,0,'2-Je choisis mes actions'!C83) -> 0 | D75: =ROUND(IF('2-Je choisis mes actions'!$I83=0,0,'2-Je choisis mes actions'!E83),0) -> 0 | E75: 0 | F75: =IF('2-Je choisis mes actions'!$I83=0,0,'2-Je choisis mes actions'!F83) -> 0 | G75: =IF('2-Je choisis mes actions'!I83=0,0,IF(C75+D75+F75>0,1,0)) -> 0 | H75: 1BA | I75: ='2-Je choisis mes actions'!L83 -> 1BA.01 | J75: ='2-Je choisis mes actions'!M83 -> SA2.01
A76: ='2-Je choisis mes actions'!B84 -> Isolation des toitures-terrasses | C76: =IF('2-Je choisis mes actions'!$I84=0,0,'2-Je choisis mes actions'!C84) -> 0 | D76: =ROUND(IF('2-Je choisis mes actions'!$I84=0,0,'2-Je choisis mes actions'!E84),0) -> 0 | E76: 0 | F76: =IF('2-Je choisis mes actions'!$I84=0,0,'2-Je choisis mes actions'!F84) -> 0 | G76: =IF('2-Je choisis mes actions'!I84=0,0,IF(C76+D76+F76>0,1,0)) -> 0 | H76: 1BA | I76: ='2-Je choisis mes actions'!L84 -> 1BA.01 | J76: ='2-Je choisis mes actions'!M84 -> SA2.01
A77: ='2-Je choisis mes actions'!B85 -> Ventilation mécanique double flux | C77: =IF('2-Je choisis mes actions'!$I85=0,0,'2-Je choisis mes actions'!C85) -> 0 | D77: =ROUND(IF('2-Je choisis mes actions'!$I85=0,0,'2-Je choisis mes actions'!E85),0) -> 0 | E77: 0 | F77: =IF('2-Je choisis mes actions'!$I85=0,0,'2-Je choisis mes actions'!F85) -> 0 | G77: =IF('2-Je choisis mes actions'!I85=0,0,IF(C77+D77+F77>0,1,0)) -> 0 | H77: 1BA | I77: ='2-Je choisis mes actions'!L85 -> 1BA.01 | J77: ='2-Je choisis mes actions'!M85 -> SA2.01
A78: ='2-Je choisis mes actions'!B86 -> Mise en place d’un système de gestion technique du bâtiment (GTB) de classe B ou A | C78: =IF('2-Je choisis mes actions'!$I86=0,0,'2-Je choisis mes actions'!C86) -> 0 | D78: =ROUND(IF('2-Je choisis mes actions'!$I86=0,0,'2-Je choisis mes actions'!E86),0) -> 0 | E78: 0 | F78: =IF('2-Je choisis mes actions'!$I86=0,0,'2-Je choisis mes actions'!F86) -> 0 | G78: =IF('2-Je choisis mes actions'!I86=0,0,IF(C78+D78+F78>0,1,0)) -> 0 | H78: 1BA | I78: ='2-Je choisis mes actions'!L86 -> 1BA.01 | J78: ='2-Je choisis mes actions'!M86 -> SA2.01
A79: ='2-Je choisis mes actions'!B90 -> Géothermie sur champ de sondes et géostructures énergétiques | C79: =IF(OR(List!$AI$2=1,'2-Je choisis mes actions'!$I90=0),0,1) -> 0 | D79: =ROUND(IF(OR(List!$AI$2=1,'2-Je choisis mes actions'!$I90=0),0,'2-Je choisis mes actions'!E90),0) -> 0 | E79: 0 | F79: =IF(OR(List!$AI$2=1,'2-Je choisis mes actions'!$I90=0),0,'2-Je choisis mes actions'!F90) -> 0 | G79: =IF(OR(List!$AI$2=1,'2-Je choisis mes actions'!I90=0),0,IF(F79>0,1,0)) -> 0 | H79: 1ER | I79: ='2-Je choisis mes actions'!L90 -> 1ER.15.03 | J79: ='2-Je choisis mes actions'!M90 -> SA2.01
A80: ='2-Je choisis mes actions'!B91 -> Géothermie sur eau de nappe, sur eau de mer et sur eaux usées | C80: =IF(OR(List!$AI$2=1,'2-Je choisis mes actions'!$I91=0),0,1) -> 0 | D80: =ROUND(IF(OR(List!$AI$2=1,'2-Je choisis mes actions'!$I91=0),0,'2-Je choisis mes actions'!E91),0) -> 0 | E80: =IFERROR(F80/C80,0) -> 0 | F80: =IF(OR(List!$AI$2=1,'2-Je choisis mes actions'!$I91=0),0,'2-Je choisis mes actions'!F91) -> 0 | G80: =IF(OR(List!$AI$2=1,'2-Je choisis mes actions'!I91=0),0,IF(F80>0,1,0)) -> 0 | H80: 1ER | I80: ='2-Je choisis mes actions'!L91 -> 1ER.15.03 | J80: ='2-Je choisis mes actions'!M91 -> SA2.01
A81: ='2-Je choisis mes actions'!B92 -> Géocooling | C81: =IF(OR(List!$AI$2=1,'2-Je choisis mes actions'!$I92=0),0,1) -> 0 | D81: =ROUND(IF(OR(List!$AI$2=1,'2-Je choisis mes actions'!$I92=0),0,'2-Je choisis mes actions'!E92),0) -> 0 | E81: 0 | F81: =IF(OR(List!$AI$2=1,'2-Je choisis mes actions'!$I92=0),0,'2-Je choisis mes actions'!F92) -> 0 | G81: =IF(OR(List!$AI$2=1,'2-Je choisis mes actions'!I92=0),0,IF(F81>0,1,0)) -> 0 | H81: 1ER | I81: ='2-Je choisis mes actions'!L92 -> 1ER.15.03 | J81: ='2-Je choisis mes actions'!M92 -> SA2.01
A82: ='2-Je choisis mes actions'!B93 -> Pompe à chaleur (PAC) solarothermique | C82: =IF(OR(List!$AI$2=1,'2-Je choisis mes actions'!$I93=0),0,1) -> 0 | D82: =ROUND(IF(OR(List!$AI$2=1,'2-Je choisis mes actions'!$I93=0),0,'2-Je choisis mes actions'!E93),0) -> 0 | E82: 0 | F82: =IF(OR(List!$AI$2=1,'2-Je choisis mes actions'!$I93=0),0,'2-Je choisis mes actions'!F93) -> 0 | G82: =IF(OR(List!$AI$2=1,'2-Je choisis mes actions'!I93=0),0,IF(F82>0,1,0)) -> 0 | H82: 1ER | I82: ='2-Je choisis mes actions'!L93 -> 1ER.15.03 | J82: ='2-Je choisis mes actions'!M93 -> SA2.01
A83: ='2-Je choisis mes actions'!B94 -> Solaire thermique | C83: =IF(OR(List!$AI$2=1,'2-Je choisis mes actions'!$I94=0),0,1) -> 0 | D83: =ROUND(IF(OR(List!$AI$2=1,'2-Je choisis mes actions'!$I94=0),0,'2-Je choisis mes actions'!E94),0) -> 0 | E83: 0 | F83: =IF(OR(List!$AI$2=1,'2-Je choisis mes actions'!$I94=0),0,'2-Je choisis mes actions'!F94) -> 0 | G83: =IF(OR(List!$AI$2=1,'2-Je choisis mes actions'!I94=0),0,IF(F83>0,1,0)) -> 0 | H83: 1ER | I83: ='2-Je choisis mes actions'!L94 -> 1ER.15.03 | J83: ='2-Je choisis mes actions'!M94 -> SA2.01
A84: ='2-Je choisis mes actions'!B95 -> Raccordement à un réseau de chaleur ou à un réseau de froid | C84: =IF(OR(List!$AI$2=1,'2-Je choisis mes actions'!$I95=0),'2-Je choisis mes actions'!C95,1) -> 0 | D84: =ROUND(IF(OR(List!$AI$2=1,'2-Je choisis mes actions'!$I95=0),0,'2-Je choisis mes actions'!E95),0) -> 0 | E84: 0 | F84: =IF(OR(List!$AI$2=1,'2-Je choisis mes actions'!$I95=0),0,'2-Je choisis mes actions'!F95) -> 0 | G84: =IF(OR(List!$AI$2=1,'2-Je choisis mes actions'!I95=0),0,IF(F84>0,1,0)) -> 0 | H84: 1ER | I84: ='2-Je choisis mes actions'!L95 -> 1ER.15.03 | J84: ='2-Je choisis mes actions'!M95 -> SA2.01
A85: ='2-Je choisis mes actions'!B96 -> Chaudière biomasse inférieure à 600 MWh par an | C85: =IF(OR(List!$AI$2=1,'2-Je choisis mes actions'!$I96=0),0,1) -> 0 | D85: =ROUND(IF(OR(List!$AI$2=1,'2-Je choisis mes actions'!$I96=0),0,'2-Je choisis mes actions'!E96),0) -> 0 | E85: 0 | F85: =IF(OR(List!$AI$2=1,'2-Je choisis mes actions'!$I96=0),0,'2-Je choisis mes actions'!F96) -> 0 | G85: =IF(OR(List!$AI$2=1,'2-Je choisis mes actions'!I96=0),0,IF(F85>0,1,0)) -> 0 | H85: 1ER | I85: ='2-Je choisis mes actions'!L96 -> 1ER.15.03 | J85: ='2-Je choisis mes actions'!M96 -> SA2.01
A86: ='2-Je choisis mes actions'!B100 -> Mise en place d’un Plan Déplacement Entreprise | C86: =IF('2-Je choisis mes actions'!$I100=0,0,'2-Je choisis mes actions'!C100) -> 0 | D86: =ROUND(IF('2-Je choisis mes actions'!$I100=0,0,'2-Je choisis mes actions'!E100),0) -> 0 | E86: 0 | F86: =IF('2-Je choisis mes actions'!$I100=0,0,'2-Je choisis mes actions'!F100) -> 0 | G86: =IF('2-Je choisis mes actions'!I100=0,0,IF(C86+D86+F86>0,1,0)) -> 0 | H86: 1MT | I86: ='2-Je choisis mes actions'!L100 -> 1MT | J86: ='2-Je choisis mes actions'!M100 -> SA2.04.01
A87: ='2-Je choisis mes actions'!B101 -> Diagnostic Mobilipro sur les flottes de véhicules d’entreprises | C87: =IF('2-Je choisis mes actions'!$I101=0,0,'2-Je choisis mes actions'!C101) -> 0 | D87: =ROUND(IF('2-Je choisis mes actions'!$I101=0,0,'2-Je choisis mes actions'!E101),0) -> 0 | E87: 0 | F87: =IF('2-Je choisis mes actions'!$I101=0,0,'2-Je choisis mes actions'!F101) -> 0 | G87: =IF('2-Je choisis mes actions'!I101=0,0,IF(C87+D87+F87>0,1,0)) -> 0 | H87: 1MT | I87: ='2-Je choisis mes actions'!L101 -> 1MT | J87: ='2-Je choisis mes actions'!M101 -> SA2.04.01
A88: ='2-Je choisis mes actions'!B102 -> Remplacement d'un véhicule thermique par un véhicule électrique Véhicule léger | C88: =IF('2-Je choisis mes actions'!$I102=0,0,'2-Je choisis mes actions'!C102) -> 0 | D88: =ROUND(IF('2-Je choisis mes actions'!$I102=0,0,'2-Je choisis mes actions'!E102),0) -> 0 | E88: 0 | F88: =IF('2-Je choisis mes actions'!$I102=0,0,'2-Je choisis mes actions'!F102) -> 0 | G88: =IF('2-Je choisis mes actions'!I102=0,0,IF(C88+D88+F88>0,1,0)) -> 0 | H88: 1MT | I88: ='2-Je choisis mes actions'!L102 -> 1MT | J88: ='2-Je choisis mes actions'!M102 -> SA2.01
A89: ='2-Je choisis mes actions'!B103 -> Remplacement d'un véhicule thermique par un véhicule électrique Fourgonnette | C89: =IF('2-Je choisis mes actions'!$I103=0,0,'2-Je choisis mes actions'!C103) -> 0 | D89: =ROUND(IF('2-Je choisis mes actions'!$I103=0,0,'2-Je choisis mes actions'!E103),0) -> 0 | E89: 0 | F89: =IF('2-Je choisis mes actions'!$I103=0,0,'2-Je choisis mes actions'!F103) -> 0 | G89: =IF('2-Je choisis mes actions'!I103=0,0,IF(C89+D89+F89>0,1,0)) -> 0 | H89: 1MT | I89: ='2-Je choisis mes actions'!L103 -> 1MT | J89: ='2-Je choisis mes actions'!M103 -> SA2.01
A90: ='2-Je choisis mes actions'!B104 -> Remplacement d'un véhicule thermique par un véhicule électrique Fourgon | C90: =IF('2-Je choisis mes actions'!$I104=0,0,'2-Je choisis mes actions'!C104) -> 0 | D90: =ROUND(IF('2-Je choisis mes actions'!$I104=0,0,'2-Je choisis mes actions'!E104),0) -> 0 | E90: 0 | F90: =IF('2-Je choisis mes actions'!$I104=0,0,'2-Je choisis mes actions'!F104) -> 0 | G90: =IF('2-Je choisis mes actions'!I104=0,0,IF(C90+D90+F90>0,1,0)) -> 0 | H90: 1MT | I90: ='2-Je choisis mes actions'!L104 -> 1MT | J90: ='2-Je choisis mes actions'!M104 -> SA2.01
A91: ='2-Je choisis mes actions'!B105 -> Remplacement d'un véhicule thermique par un véhicule GNV Fourgon | C91: =IF('2-Je choisis mes actions'!$I105=0,0,'2-Je choisis mes actions'!C105) -> 0 | D91: =ROUND(IF('2-Je choisis mes actions'!$I105=0,0,'2-Je choisis mes actions'!E105),0) -> 0 | E91: 0 | F91: =IF('2-Je choisis mes actions'!$I105=0,0,'2-Je choisis mes actions'!F105) -> 0 | G91: =IF('2-Je choisis mes actions'!I105=0,0,IF(C91+D91+F91>0,1,0)) -> 0 | H91: 1MT | I91: ='2-Je choisis mes actions'!L105 -> 1MT | J91: ='2-Je choisis mes actions'!M105 -> SA2.01
A92: ='2-Je choisis mes actions'!B106 -> 0 | C92: =IF('2-Je choisis mes actions'!$I106=0,0,'2-Je choisis mes actions'!C106) -> 0 | D92: =ROUND(IF('2-Je choisis mes actions'!$I106=0,0,'2-Je choisis mes actions'!E106),0) -> 0 | E92: 0 | F92: =IF('2-Je choisis mes actions'!$I106=0,0,'2-Je choisis mes actions'!F106) -> 0 | G92: =IF('2-Je choisis mes actions'!I106=0,0,IF(C92+D92+F92>0,1,0)) -> 0 | H92: 1MT | I92: ='2-Je choisis mes actions'!L106 -> 1MT | J92: ='2-Je choisis mes actions'!M106 -> SA2.01
A93: ='2-Je choisis mes actions'!B107 -> Transformation de fourgonnette à motorisation thermique en motorisation électrique (retrofit) | C93: =IF('2-Je choisis mes actions'!$I107=0,0,'2-Je choisis mes actions'!C107) -> 0 | D93: =ROUND(IF('2-Je choisis mes actions'!$I107=0,0,'2-Je choisis mes actions'!E107),0) -> 0 | E93: 0 | F93: =IF('2-Je choisis mes actions'!$I107=0,0,'2-Je choisis mes actions'!F107) -> 0 | G93: =IF('2-Je choisis mes actions'!I107=0,0,IF(C93+D93+F93>0,1,0)) -> 0 | H93: 1MT | I93: ='2-Je choisis mes actions'!L107 -> 1MT | J93: ='2-Je choisis mes actions'!M107 -> SA2.01
A94: ='2-Je choisis mes actions'!B108 -> Transformation des fourgon à motorisation thermique en motorisation électrique (retrofit) | C94: =IF('2-Je choisis mes actions'!$I108=0,0,'2-Je choisis mes actions'!C108) -> 0 | D94: =ROUND(IF('2-Je choisis mes actions'!$I108=0,0,'2-Je choisis mes actions'!E108),0) -> 0 | E94: 0 | F94: =IF('2-Je choisis mes actions'!$I108=0,0,'2-Je choisis mes actions'!F108) -> 0 | G94: =IF('2-Je choisis mes actions'!I108=0,0,IF(C94+D94+F94>0,1,0)) -> 0 | H94: 1MT | I94: ='2-Je choisis mes actions'!L108 -> 1MT | J94: ='2-Je choisis mes actions'!M108 -> SA2.01
A95: ='2-Je choisis mes actions'!B109 -> Transformation des poids lourds à motorisation thermique en motorisation électrique (retrofit) | C95: =IF('2-Je choisis mes actions'!$I109=0,0,'2-Je choisis mes actions'!C109) -> 0 | D95: =ROUND(IF('2-Je choisis mes actions'!$I109=0,0,'2-Je choisis mes actions'!E109),0) -> 0 | E95: 0 | F95: =IF('2-Je choisis mes actions'!$I109=0,0,'2-Je choisis mes actions'!F109) -> 0 | G95: =IF('2-Je choisis mes actions'!I109=0,0,IF(C95+D95+F95>0,1,0)) -> 0 | H95: 1MT | I95: ='2-Je choisis mes actions'!L109 -> 1MT | J95: ='2-Je choisis mes actions'!M109 -> SA2.01
A96: ='2-Je choisis mes actions'!B110 -> Véhicule utilitaire léger frigorifique neuf : achat d’un groupe frigorifique électrique | C96: =IF('2-Je choisis mes actions'!$I110=0,0,'2-Je choisis mes actions'!C110) -> 0 | D96: =ROUND(IF('2-Je choisis mes actions'!$I110=0,0,'2-Je choisis mes actions'!E110),0) -> 0 | E96: 0 | F96: =IF('2-Je choisis mes actions'!$I110=0,0,'2-Je choisis mes actions'!F110) -> 0 | G96: =IF('2-Je choisis mes actions'!I110=0,0,IF(C96+D96+F96>0,1,0)) -> 0 | H96: 1MT | I96: ='2-Je choisis mes actions'!L110 -> 1MT | J96: ='2-Je choisis mes actions'!M110 -> SA2.01
A97: ='2-Je choisis mes actions'!B111 -> Porteur ou semi-remorque frigorifique neuf : achat d’un groupe frigorifique complet (hors groupes frigorifiques autonomes Diesel) | C97: =IF('2-Je choisis mes actions'!$I111=0,0,'2-Je choisis mes actions'!C111) -> 0 | D97: =ROUND(IF('2-Je choisis mes actions'!$I111=0,0,'2-Je choisis mes actions'!E111),0) -> 0 | E97: 0 | F97: =IF('2-Je choisis mes actions'!$I111=0,0,'2-Je choisis mes actions'!F111) -> 0 | G97: =IF('2-Je choisis mes actions'!I111=0,0,IF(C97+D97+F97>0,1,0)) -> 0 | H97: 1MT | I97: ='2-Je choisis mes actions'!L111 -> 1MT | J97: ='2-Je choisis mes actions'!M111 -> SA2.01
A98: ='2-Je choisis mes actions'!B112 -> Amélioration d’un système frigorifique sur un véhicule neuf ou existant | C98: =IF('2-Je choisis mes actions'!$I112=0,0,'2-Je choisis mes actions'!C112) -> 0 | D98: =ROUND(IF('2-Je choisis mes actions'!$I112=0,0,'2-Je choisis mes actions'!E112),0) -> 0 | E98: 0 | F98: =IF('2-Je choisis mes actions'!$I112=0,0,'2-Je choisis mes actions'!F112) -> 0 | G98: =IF('2-Je choisis mes actions'!I112=0,0,IF(C98+D98+F98>0,1,0)) -> 0 | H98: 1MT | I98: ='2-Je choisis mes actions'!L112 -> 1MT | J98: ='2-Je choisis mes actions'!M112 -> SA2.01
A99: ='2-Je choisis mes actions'!B113 -> Vélo de service à assistance électrique : vélo de service ou flotte de vélo | C99: =IF('2-Je choisis mes actions'!$I113=0,0,'2-Je choisis mes actions'!C113) -> 0 | D99: =ROUND(IF('2-Je choisis mes actions'!$I113=0,0,'2-Je choisis mes actions'!E113),0) -> 0 | E99: 0 | F99: =IF('2-Je choisis mes actions'!$I113=0,0,'2-Je choisis mes actions'!F113) -> 0 | G99: =IF('2-Je choisis mes actions'!I113=0,0,IF(C99+D99+F99>0,1,0)) -> 0 | H99: 1MT | I99: ='2-Je choisis mes actions'!L113 -> 1MT | J99: ='2-Je choisis mes actions'!M113 -> SA2.01
A100: ='2-Je choisis mes actions'!B114 -> Vélo cargo électrique pour un usage professionnel | C100: =IF('2-Je choisis mes actions'!$I114=0,0,'2-Je choisis mes actions'!C114) -> 0 | D100: =ROUND(IF('2-Je choisis mes actions'!$I114=0,0,'2-Je choisis mes actions'!E114),0) -> 0 | E100: 0 | F100: =IF('2-Je choisis mes actions'!$I114=0,0,'2-Je choisis mes actions'!F114) -> 0 | G100: =IF('2-Je choisis mes actions'!I114=0,0,IF(C100+D100+F100>0,1,0)) -> 0 | H100: 1MT | I100: ='2-Je choisis mes actions'!L114 -> 1MT | J100: ='2-Je choisis mes actions'!M114 -> SA2.01
A101: ='2-Je choisis mes actions'!B115 -> Abris à vélo avec toit | C101: =IF('2-Je choisis mes actions'!$I115=0,0,'2-Je choisis mes actions'!C115) -> 0 | D101: =ROUND(IF('2-Je choisis mes actions'!$I115=0,0,'2-Je choisis mes actions'!E115),0) -> 0 | E101: 0 | F101: =IF('2-Je choisis mes actions'!$I115=0,0,'2-Je choisis mes actions'!F115) -> 0 | G101: =IF('2-Je choisis mes actions'!I115=0,0,IF(C101+D101+F101>0,1,0)) -> 0 | H101: 1MT | I101: ='2-Je choisis mes actions'!L115 -> 1MT | J101: ='2-Je choisis mes actions'!M115 -> SA2.01
A102: ='2-Je choisis mes actions'!B116 -> Etude de dimensionnement transport durable | C102: =IF('2-Je choisis mes actions'!$I116=0,0,'2-Je choisis mes actions'!C116) -> 0 | D102: =ROUND(IF('2-Je choisis mes actions'!$I116=0,0,'2-Je choisis mes actions'!E116),0) -> 0 | E102: =IFERROR(F102/C102,0) -> 0 | F102: =IF('2-Je choisis mes actions'!$I116=0,0,'2-Je choisis mes actions'!F116) -> 0 | G102: =IF('2-Je choisis mes actions'!I116=0,0,IF(C102+D102+F102>0,1,0)) -> 0 | H102: =LEFT(I102,3) -> 1MT | I102: ='2-Je choisis mes actions'!L116 -> 1MT | J102: ='2-Je choisis mes actions'!M116 -> SA2.04.01
A103: ='2-Je choisis mes actions'!B120 -> Etat des lieux et proposition pour trier les déchets de bois, papier/carton, métaux, verre et plastiques ainsi que les fractions minérales et le plâtre | C103: =IF('2-Je choisis mes actions'!$I120=0,0,'2-Je choisis mes actions'!C120) -> 0 | D103: =ROUND(IF('2-Je choisis mes actions'!$I120=0,0,'2-Je choisis mes actions'!E120),0) -> 0 | E103: 0 | F103: =IF('2-Je choisis mes actions'!$I120=0,0,'2-Je choisis mes actions'!F120) -> 0 | G103: =IF('2-Je choisis mes actions'!I120=0,0,IF(C103+D103+F103>0,1,0)) -> 0 | H103: 2DE | I103: ='2-Je choisis mes actions'!L120 -> 2DE | J103: ='2-Je choisis mes actions'!M120 -> SA2.04.01
A104: ='2-Je choisis mes actions'!B121 -> Analyse de process pour la prévention des déchets (méthode Comptabilité des flux de matière) | C104: =IF('2-Je choisis mes actions'!$I121=0,0,'2-Je choisis mes actions'!C121) -> 0 | D104: =ROUND(IF('2-Je choisis mes actions'!$I121=0,0,'2-Je choisis mes actions'!E121),0) -> 0 | E104: 0 | F104: =IF('2-Je choisis mes actions'!$I121=0,0,'2-Je choisis mes actions'!F121) -> 0 | G104: =IF('2-Je choisis mes actions'!I121=0,0,IF(C104+D104+F104>0,1,0)) -> 0 | H104: 2DE | I104: ='2-Je choisis mes actions'!L121 -> 2DE | J104: ='2-Je choisis mes actions'!M121 -> SA2.04.01
A105: ='2-Je choisis mes actions'!B122 -> Diagnostic pour réduire les emballages ou remplacer des emballages plastiques par d’autres | C105: =IF('2-Je choisis mes actions'!$I122=0,0,'2-Je choisis mes actions'!C122) -> 0 | D105: =ROUND(IF('2-Je choisis mes actions'!$I122=0,0,'2-Je choisis mes actions'!E122),0) -> 0 | E105: 0 | F105: =IF('2-Je choisis mes actions'!$I122=0,0,'2-Je choisis mes actions'!F122) -> 0 | G105: =IF('2-Je choisis mes actions'!I122=0,0,IF(C105+D105+F105>0,1,0)) -> 0 | H105: 2DE | I105: ='2-Je choisis mes actions'!L122 -> 2DE.01.01 | J105: ='2-Je choisis mes actions'!M122 -> SA2.04.01
A106: ='2-Je choisis mes actions'!B123 -> Soutien aux réparateurs : logiciels, progiciels et outils de réparation | C106: =IF('2-Je choisis mes actions'!$I123=0,0,'2-Je choisis mes actions'!C123) -> 0 | D106: =ROUND(IF('2-Je choisis mes actions'!$I123=0,0,'2-Je choisis mes actions'!E123),0) -> 0 | E106: 0 | F106: =IF('2-Je choisis mes actions'!$I123=0,0,'2-Je choisis mes actions'!F123) -> 0 | G106: =IF('2-Je choisis mes actions'!I123=0,0,IF(C106+D106+F106>0,1,0)) -> 0 | H106: 2DE | I106: ='2-Je choisis mes actions'!L123 -> 2DE.01.01 | J106: ='2-Je choisis mes actions'!M123 -> 0
A107: ='2-Je choisis mes actions'!B124 -> Bilan des matières entrantes dans et sortantes de l’entreprise (méthode Bilan matière) | C107: =IF('2-Je choisis mes actions'!$I124=0,0,'2-Je choisis mes actions'!C124) -> 0 | D107: =ROUND(IF('2-Je choisis mes actions'!$I124=0,0,'2-Je choisis mes actions'!E124),0) -> 0 | E107: 0 | F107: =IF('2-Je choisis mes actions'!$I124=0,0,'2-Je choisis mes actions'!F124) -> 0 | G107: =IF('2-Je choisis mes actions'!I124=0,0,IF(C107+D107+F107>0,1,0)) -> 0 | H107: 2PR | I107: ='2-Je choisis mes actions'!L124 -> 2PR.05 | J107: ='2-Je choisis mes actions'!M124 -> SA2.04.01
A108: ='2-Je choisis mes actions'!B125 -> Récupération des eaux de pluie | C108: =IF('2-Je choisis mes actions'!$I125=0,0,'2-Je choisis mes actions'!C125) -> 0 | D108: =ROUND(IF('2-Je choisis mes actions'!$I125=0,0,'2-Je choisis mes actions'!E125),0) -> 0 | E108: =IFERROR(F108/C108,0) -> 0 | F108: =IF('2-Je choisis mes actions'!$I125=0,0,'2-Je choisis mes actions'!F125) -> 0 | G108: =IF('2-Je choisis mes actions'!I125=0,0,IF(C108+D108+F108>0,1,0)) -> 0 | H108: =LEFT(I108,3) -> 2DE | I108: ='2-Je choisis mes actions'!L125 -> 2DE | J108: ='2-Je choisis mes actions'!M125 -> SA2.01
A109: ='2-Je choisis mes actions'!B126 -> Compacteurs mécanique (cartons…) et/ou compacteur mécanique à balle (plastiques) et/ou broyeurs de végétaux | C109: =IF('2-Je choisis mes actions'!$I126=0,0,'2-Je choisis mes actions'!C126) -> 0 | D109: =ROUND(IF('2-Je choisis mes actions'!$I126=0,0,'2-Je choisis mes actions'!E126),0) -> 0 | E109: 0 | F109: =IF('2-Je choisis mes actions'!$I126=0,0,'2-Je choisis mes actions'!F126) -> 0 | G109: =IF('2-Je choisis mes actions'!I126=0,0,IF(C109+D109+F109>0,1,0)) -> 0 | H109: 2DE | I109: ='2-Je choisis mes actions'!L126 -> 2DE.03.03 | J109: ='2-Je choisis mes actions'!M126 -> SA2.01
A110: ='2-Je choisis mes actions'!B127 -> Concasseur mobile (déchets inertes du BTP) | C110: =IF('2-Je choisis mes actions'!$I127=0,0,'2-Je choisis mes actions'!C127) -> 0 | D110: =ROUND(IF('2-Je choisis mes actions'!$I127=0,0,'2-Je choisis mes actions'!E127),0) -> 0 | E110: 0 | F110: =IF('2-Je choisis mes actions'!$I127=0,0,'2-Je choisis mes actions'!F127) -> 0 | G110: =IF('2-Je choisis mes actions'!I127=0,0,IF(C110+D110+F110>0,1,0)) -> 0 | H110: 2DE | I110: ='2-Je choisis mes actions'!L127 -> 2DE.03.02 | J110: ='2-Je choisis mes actions'!M127 -> SA2.01
A111: ='2-Je choisis mes actions'!B128 -> Préparation des biodéchets : mise en place du tri, pré-collecte, formation du personnel, signalétique | C111: =IF('2-Je choisis mes actions'!$I128=0,0,'2-Je choisis mes actions'!C128) -> 0 | D111: =ROUND(IF('2-Je choisis mes actions'!$I128=0,0,'2-Je choisis mes actions'!E128),0) -> 0 | E111: 0 | F111: =IF('2-Je choisis mes actions'!$I128=0,0,'2-Je choisis mes actions'!F128) -> 0 | G111: =IF('2-Je choisis mes actions'!I128=0,0,IF(C111+D111+F111>0,1,0)) -> 0 | H111: 2DE | I111: ='2-Je choisis mes actions'!L128 -> 2DE.02.02 | J111: ='2-Je choisis mes actions'!M128 -> SA3.01
A112: ='2-Je choisis mes actions'!B129 -> Composteur en bac pour biodéchets | C112: =IF('2-Je choisis mes actions'!$I129=0,0,'2-Je choisis mes actions'!C129) -> 0 | D112: =ROUND(IF('2-Je choisis mes actions'!$I129=0,0,'2-Je choisis mes actions'!E129),0) -> 0 | E112: 0 | F112: =IF('2-Je choisis mes actions'!$I129=0,0,'2-Je choisis mes actions'!F129) -> 0 | G112: =IF('2-Je choisis mes actions'!I129=0,0,IF(C112+D112+F112>0,1,0)) -> 0 | H112: 2DE | I112: ='2-Je choisis mes actions'!L129 -> 2DE.02.03 | J112: ='2-Je choisis mes actions'!M129 -> SA2.01
A113: ='2-Je choisis mes actions'!B130 -> Pavillon de compostage pour biodéchets | C113: =IF('2-Je choisis mes actions'!$I130=0,0,'2-Je choisis mes actions'!C130) -> 0 | D113: =ROUND(IF('2-Je choisis mes actions'!$I130=0,0,'2-Je choisis mes actions'!E130),0) -> 0 | E113: 0 | F113: =IF('2-Je choisis mes actions'!$I130=0,0,'2-Je choisis mes actions'!F130) -> 0 | G113: =IF('2-Je choisis mes actions'!I130=0,0,IF(C113+D113+F113>0,1,0)) -> 0 | H113: 2DE | I113: ='2-Je choisis mes actions'!L130 -> 2DE.02.03 | J113: ='2-Je choisis mes actions'!M130 -> SA2.01
A114: ='2-Je choisis mes actions'!B131 -> Benne de stockage compartimentée pour le tri des déchets du bâtiment | C114: =IF('2-Je choisis mes actions'!$I131=0,0,'2-Je choisis mes actions'!C131) -> 0 | D114: =ROUND(IF('2-Je choisis mes actions'!$I131=0,0,'2-Je choisis mes actions'!E131),0) -> 0 | E114: 0 | F114: =IF('2-Je choisis mes actions'!$I131=0,0,'2-Je choisis mes actions'!F131) -> 0 | G114: =IF('2-Je choisis mes actions'!I131=0,0,IF(C114+D114+F114>0,1,0)) -> 0 | H114: 2DE | I114: ='2-Je choisis mes actions'!L131 -> 2DE.03.03 | J114: ='2-Je choisis mes actions'!M131 -> SA2.01
A115: ='2-Je choisis mes actions'!B132 -> Contenants de type caisse-palettes ou futs (par lot de 7) pour les déchets du bâtiment | C115: =IF('2-Je choisis mes actions'!$I132=0,0,'2-Je choisis mes actions'!C132) -> 0 | D115: =ROUND(IF('2-Je choisis mes actions'!$I132=0,0,'2-Je choisis mes actions'!E132),0) -> 0 | E115: 0 | F115: =IF('2-Je choisis mes actions'!$I132=0,0,'2-Je choisis mes actions'!F132) -> 0 | G115: =IF('2-Je choisis mes actions'!I132=0,0,IF(C115+D115+F115>0,1,0)) -> 0 | H115: 2DE | I115: ='2-Je choisis mes actions'!L132 -> 2DE.03.03 | J115: ='2-Je choisis mes actions'!M132 -> SA2.01
A116: ='2-Je choisis mes actions'!B133 -> Contenants de type bacs à roulettes (par lot de 7) pour les déchets du bâtiment | C116: =IF('2-Je choisis mes actions'!$I133=0,0,'2-Je choisis mes actions'!C133) -> 0 | D116: =ROUND(IF('2-Je choisis mes actions'!$I133=0,0,'2-Je choisis mes actions'!E133),0) -> 0 | E116: 0 | F116: =IF('2-Je choisis mes actions'!$I133=0,0,'2-Je choisis mes actions'!F133) -> 0 | G116: =IF('2-Je choisis mes actions'!I133=0,0,IF(C116+D116+F116>0,1,0)) -> 0 | H116: 2DE | I116: ='2-Je choisis mes actions'!L133 -> 2DE.03.03 | J116: ='2-Je choisis mes actions'!M133 -> SA2.01
A117: ='2-Je choisis mes actions'!B134 -> Contenants souples de type big-bags réutilisables (lot de 7) et portants pour maintien big-bags ouverts pour les déchets du bâtiment | C117: =IF('2-Je choisis mes actions'!$I134=0,0,'2-Je choisis mes actions'!C134) -> 0 | D117: =ROUND(IF('2-Je choisis mes actions'!$I134=0,0,'2-Je choisis mes actions'!E134),0) -> 0 | E117: 0 | F117: =IF('2-Je choisis mes actions'!$I134=0,0,'2-Je choisis mes actions'!F134) -> 0 | G117: =IF('2-Je choisis mes actions'!I134=0,0,IF(C117+D117+F117>0,1,0)) -> 0 | H117: 2DE | I117: ='2-Je choisis mes actions'!L134 -> 2DE.03.03 | J117: ='2-Je choisis mes actions'!M134 -> SA2.01
A118: ='2-Je choisis mes actions'!B135 -> Etude de dimensionnement économie circulaire | C118: =IF('2-Je choisis mes actions'!$I135=0,0,'2-Je choisis mes actions'!C135) -> 0 | D118: =ROUND(IF('2-Je choisis mes actions'!$I135=0,0,'2-Je choisis mes actions'!E135),0) -> 0 | E118: =IFERROR(F118/C118,0) -> 0 | F118: =IF('2-Je choisis mes actions'!$I135=0,0,'2-Je choisis mes actions'!F135) -> 0 | G118: =IF('2-Je choisis mes actions'!I135=0,0,IF(C118+D118+F118>0,1,0)) -> 0 | H118: =LEFT(I118,3) -> 2PR | I118: ='2-Je choisis mes actions'!L135 -> 2PR | J118: ='2-Je choisis mes actions'!M135 -> SA2.04.03
A119: ='2-Je choisis mes actions'!B139 -> Premiers pas éco-conception | C119: =IF('2-Je choisis mes actions'!$I139=0,0,'2-Je choisis mes actions'!C139) -> 0 | D119: =ROUND(IF('2-Je choisis mes actions'!$I139=0,0,'2-Je choisis mes actions'!E139),0) -> 0 | E119: 0 | F119: =IF('2-Je choisis mes actions'!$I139=0,0,'2-Je choisis mes actions'!F139) -> 0 | G119: =IF('2-Je choisis mes actions'!I139=0,0,IF(C119+D119+F119>0,1,0)) -> 0 | H119: 2PR | I119: ='2-Je choisis mes actions'!L139 -> 2PR.01 | J119: ='2-Je choisis mes actions'!M139 -> SA2.04.01
A120: ='2-Je choisis mes actions'!B140 -> Mise en œuvre d'un affichage environnemental pour les produits de l'entreprise | C120: =IF('2-Je choisis mes actions'!$I140=0,0,'2-Je choisis mes actions'!C140) -> 0 | D120: =ROUND(IF('2-Je choisis mes actions'!$I140=0,0,'2-Je choisis mes actions'!E140),0) -> 0 | E120: 0 | F120: =IF('2-Je choisis mes actions'!$I140=0,0,'2-Je choisis mes actions'!F140) -> 0 | G120: =IF('2-Je choisis mes actions'!I140=0,0,IF(C120+D120+F120>0,1,0)) -> 0 | H120: 2PR | I120: ='2-Je choisis mes actions'!L140 -> 2PR.01 | J120: ='2-Je choisis mes actions'!M140 -> SA2.04.03
A121: ='2-Je choisis mes actions'!B141 -> Dispositif de vérification externe de l'affichage environnemental | C121: =IF('2-Je choisis mes actions'!$I141=0,0,'2-Je choisis mes actions'!C141) -> 0 | D121: =ROUND(IF('2-Je choisis mes actions'!$I141=0,0,'2-Je choisis mes actions'!E141),0) -> 0 | E121: 0 | F121: =IF('2-Je choisis mes actions'!$I141=0,0,'2-Je choisis mes actions'!F141) -> 0 | G121: =IF('2-Je choisis mes actions'!I141=0,0,IF(C121+D121+F121>0,1,0)) -> 0 | H121: 2PR | I121: ='2-Je choisis mes actions'!L141 -> 2PR.01 | J121: ='2-Je choisis mes actions'!M141 -> SA2.04.03
A122: ='2-Je choisis mes actions'!B142 -> Mise en œuvre de l’Ecolabel Européen sur les produits ou les services de l'entreprise | C122: =IF('2-Je choisis mes actions'!$I142=0,0,'2-Je choisis mes actions'!C142) -> 0 | D122: =ROUND(IF('2-Je choisis mes actions'!$I142=0,0,'2-Je choisis mes actions'!E142),0) -> 0 | E122: 0 | F122: =IF('2-Je choisis mes actions'!$I142=0,0,'2-Je choisis mes actions'!F142) -> 0 | G122: =IF('2-Je choisis mes actions'!I142=0,0,IF(C122+D122+F122>0,1,0)) -> 0 | H122: 2PR | I122: ='2-Je choisis mes actions'!L142 -> 2PR.03 | J122: ='2-Je choisis mes actions'!M142 -> SA2.04.03
A123: ='2-Je choisis mes actions'!B143 -> Certification écolabel européen de produits ou service | C123: =IF('2-Je choisis mes actions'!$I143=0,0,'2-Je choisis mes actions'!C143) -> 0 | D123: =ROUND(IF('2-Je choisis mes actions'!$I143=0,0,'2-Je choisis mes actions'!E143),0) -> 0 | E123: 0 | F123: =IF('2-Je choisis mes actions'!$I143=0,0,'2-Je choisis mes actions'!F143) -> 0 | G123: =IF('2-Je choisis mes actions'!I143=0,0,IF(C123+D123+F123>0,1,0)) -> 0 | H123: 2PR | I123: ='2-Je choisis mes actions'!L143 -> 2PR.03 | J123: ='2-Je choisis mes actions'!M143 -> SA2.04.01
A124: ='2-Je choisis mes actions'!B144 -> Accompagnement à la labellisation "Numérique responsable" | C124: =IF('2-Je choisis mes actions'!$I144=0,0,'2-Je choisis mes actions'!C144) -> 0 | D124: =ROUND(IF('2-Je choisis mes actions'!$I144=0,0,'2-Je choisis mes actions'!E144),0) -> 0 | E124: 0 | F124: =IF('2-Je choisis mes actions'!$I144=0,0,'2-Je choisis mes actions'!F144) -> 0 | G124: =IF('2-Je choisis mes actions'!I144=0,0,IF(C124+D124+F124>0,1,0)) -> 0 | H124: 2PR | I124: ='2-Je choisis mes actions'!L144 -> 2PR.03 | J124: ='2-Je choisis mes actions'!M144 -> SA2.04.03
G125: 0
G126: 0
G127: 0
G128: 0
G129: 0
G130: 0
G131: 0
G132: 0
G133: 0
G134: 0
A135: TOTAL | D135: =SUMPRODUCT(D16:D134,$G16:$G134) -> 0 | F135: =SUMPRODUCT(F16:F134,$G16:$G134) -> 0 | G135: 1
A136: * La notion de HTR signifie "Hors Taxes Récupérables" auprès du Trésor Public. | G136: 1
A137: ** La ventilation est prévisionnelle et indicatrice, et peut donner lieu à une fongibilité entre les différentes actions, dans le respect du montant maximum de l'aide indiqué ci-dessous et du type d'action déclaré au préalable. | G137: 1
G138: 1
E139: ="L'aide apportée par l'ADEME est une subvention "&IF(F135>F139,"plafonnée ","")&"d'un montant maximum de :" -> L'aide apportée par l'ADEME est une subvention d'un montant maximum de : | F139: ='2-Je choisis mes actions'!F172-F154*G154 -> 0 | G139: 1
G140: 1
A141: 1.2 Pour les aides liées aux énergies renouvelables | G141: =$G$13 -> 0
G142: =$G$13 -> 0
A143: Nom de l'action | C143: Quantité (en nombre d'unité) | D143: Coût total prévisionnel HTR * | E143: Montant forfaitaire maximum | F143: Aide prévisionnelle | G143: =$G$13 -> 0 | H143: Thématique | I143: ='2-Je choisis mes actions'!L152 -> 0 | J143: ='2-Je choisis mes actions'!M152 -> 0
A144: =A79 -> Géothermie sur champ de sondes et géostructures énergétiques | C144: =IF(OR(List!$AI$2=0,'2-Je choisis mes actions'!$I90=0),0,1) -> 0 | D144: =ROUND(IF(OR(List!$AI$2=0,'2-Je choisis mes actions'!$I90=0),0,'2-Je choisis mes actions'!E90),0) -> 0 | E144: =IFERROR(F144/C144,0) -> 0 | F144: =IF(OR(List!$AI$2=0,'2-Je choisis mes actions'!$I90=0),0,'2-Je choisis mes actions'!F90) -> 0 | G144: =IF(OR(List!$AI$2=0,'2-Je choisis mes actions'!I90=0),0,IF(F144>0,1,0)) -> 0 | H144: =LEFT(I144,3) -> 0 | I144: ='2-Je choisis mes actions'!L192 -> 0 | J144: ='2-Je choisis mes actions'!M192 -> 0
A145: Géothermie sur eau de nappe, sur eau de mer et sur eaux usées | C145: =IF(OR(List!$AI$2=0,'2-Je choisis mes actions'!$I91=0),0,1) -> 0 | D145: =ROUND(IF(OR(List!$AI$2=0,'2-Je choisis mes actions'!$I91=0),0,'2-Je choisis mes actions'!E91),0) -> 0 | E145: =IFERROR(F145/C145,0) -> 0 | F145: =IF(OR(List!$AI$2=0,'2-Je choisis mes actions'!$I91=0),0,'2-Je choisis mes actions'!F91) -> 0 | G145: =IF(OR(List!$AI$2=0,'2-Je choisis mes actions'!I91=0),0,IF(F145>0,1,0)) -> 0 | H145: 0 | I145: ='2-Je choisis mes actions'!L193 -> 0 | J145: ='2-Je choisis mes actions'!M193 -> 0
A146: Géocooling | C146: =IF(OR(List!$AI$2=0,'2-Je choisis mes actions'!$I92=0),0,1) -> 0 | D146: =ROUND(IF(OR(List!$AI$2=0,'2-Je choisis mes actions'!$I92=0),0,'2-Je choisis mes actions'!E92),0) -> 0 | E146: 0 | F146: =IF(OR(List!$AI$2=0,'2-Je choisis mes actions'!$I92=0),0,'2-Je choisis mes actions'!F92) -> 0 | G146: =IF(OR(List!$AI$2=0,'2-Je choisis mes actions'!I92=0),0,IF(F146>0,1,0)) -> 0 | H146: 0 | I146: ='2-Je choisis mes actions'!L194 -> 0 | J146: ='2-Je choisis mes actions'!M194 -> 0
A147: Pompe à chaleur (PAC) solarothermique | C147: =IF(OR(List!$AI$2=0,'2-Je choisis mes actions'!$I93=0),0,1) -> 0 | D147: =ROUND(IF(OR(List!$AI$2=0,'2-Je choisis mes actions'!$I93=0),0,'2-Je choisis mes actions'!E93),0) -> 0 | E147: 0 | F147: =IF(OR(List!$AI$2=0,'2-Je choisis mes actions'!$I93=0),0,'2-Je choisis mes actions'!F93) -> 0 | G147: =IF(OR(List!$AI$2=0,'2-Je choisis mes actions'!I93=0),0,IF(F147>0,1,0)) -> 0 | H147: 0 | I147: ='2-Je choisis mes actions'!L195 -> 0 | J147: ='2-Je choisis mes actions'!M195 -> 0
A148: Solaire thermique | C148: =IF(OR(List!$AI$2=0,'2-Je choisis mes actions'!$I94=0),0,1) -> 0 | D148: =ROUND(IF(OR(List!$AI$2=0,'2-Je choisis mes actions'!$I94=0),0,'2-Je choisis mes actions'!E94),0) -> 0 | E148: 0 | F148: =IF(OR(List!$AI$2=0,'2-Je choisis mes actions'!$I94=0),0,'2-Je choisis mes actions'!F94) -> 0 | G148: =IF(OR(List!$AI$2=0,'2-Je choisis mes actions'!I94=0),0,IF(F148>0,1,0)) -> 0 | H148: 0 | I148: ='2-Je choisis mes actions'!L196 -> 0 | J148: ='2-Je choisis mes actions'!M196 -> 0
A149: Raccordement à un réseau de chaleur ou à un réseau de froid | C149: =IF(OR(List!$AI$2=0,'2-Je choisis mes actions'!$I95=0),'2-Je choisis mes actions'!C95,1) -> 0 | D149: =ROUND(IF(OR(List!$AI$2=0,'2-Je choisis mes actions'!$I95=0),0,'2-Je choisis mes actions'!E95),0) -> 0 | E149: 0 | F149: =IF(OR(List!$AI$2=0,'2-Je choisis mes actions'!$I95=0),0,'2-Je choisis mes actions'!F95) -> 0 | G149: =IF(OR(List!$AI$2=0,'2-Je choisis mes actions'!I95=0),0,IF(F149>0,1,0)) -> 0 | H149: 0 | I149: ='2-Je choisis mes actions'!L197 -> 0 | J149: ='2-Je choisis mes actions'!M197 -> 0
A150: Chaudière biomasse inférieure à 600 MWh par an | C150: =IF(OR(List!$AI$2=0,'2-Je choisis mes actions'!$I96=0),0,1) -> 0 | D150: =ROUND(IF(OR(List!$AI$2=0,'2-Je choisis mes actions'!$I96=0),0,'2-Je choisis mes actions'!E96),0) -> 0 | E150: 0 | F150: =IF(OR(List!$AI$2=0,'2-Je choisis mes actions'!$I96=0),0,'2-Je choisis mes actions'!F96) -> 0 | G150: =IF(OR(List!$AI$2=0,'2-Je choisis mes actions'!I96=0),0,IF(F150>0,1,0)) -> 0 | H150: 0 | I150: ='2-Je choisis mes actions'!L198 -> 0 | J150: ='2-Je choisis mes actions'!M198 -> 0
A151: TOTAL | D151: =SUMPRODUCT(D144:D150,$G144:$G150) -> 0 | F151: =SUMPRODUCT(F144:F150,$G144:$G150) -> 0 | G151: =$G$13 -> 0
A152: * La notion de HTR signifie "Hors Taxes Récupérables" auprès du Trésor Public. | G152: =$G$13 -> 0
G153: =$G$13 -> 0
E154: ="L'aide apportée par l'ADEME est une subvention "&IF(F151>F154,"plafonnée ","")&"d'un montant maximum de :" -> L'aide apportée par l'ADEME est une subvention d'un montant maximum de : | F154: =ROUNDDOWN(F151*'2-Je choisis mes actions'!S172,0) -> 0 | G154: =$G$13 -> 0
G155: =$G$13 -> 0
A156: 2. Vérification du cumul des aides publiques et engagements du bénéficiaire
A158: Au regard des informations portées à la connaissance de l’ADEME à la date de notification par le bénéficiaire, le cumul des aides publiques autorisé par la règlementation en vigueur est respecté.
A160: Il est rappelé que le bénéficiaire s’engage à communiquer à l’ADEME toute aide publique qu’il aurait sollicitée ou reçue, solliciterait ou recevrait pour la réalisation de l’opération postérieurement à la date de notification (art.2-1-1 des règles générales).
A162: 3. Modalités de versement
A164: ="En application de l’article « modalités de versement » du contrat et conformément à l’article 12-1-"&IF(OR(D5=0,D5=""),IF(OR(C5=0,C5=""),"1","2"),"3")&" des règles générales d’attribution des aides financières de l’ADEME, les versements seront effectués de la façon suivante :" -> En application de l’article « modalités de versement » du contrat et conformément à l’article 12-1-2 des règles générales d’attribution des aides financières de l’ADEME, les versements seront effectués de la façon suivante :
A166: Taux | B166: Fait générateur | F166: Montant maximum
A167: =C5 -> 0.3 | B167: ="Une avance à la notification du présent contrat sur fourniture d'un RIB"&IF(OPALE!K272=1," et des devis demandés","")&"." -> Une avance à la notification du présent contrat sur fourniture d'un RIB. | F167: =ROUND(A167*F139,2) -> 0 | G167: =IF(pourc_avance>0,1,0) -> 1
B168: =IF(OR(C5=0,C5=""),"Un versement unique","Le solde versé")&" sur fourniture d'un RIB et du rapport final." -> Le solde versé sur fourniture d'un RIB et du rapport final. | F168: =F139-F167 -> 0
B169: L'aide finale accordée sera calculée en fonction des quantités réellement achetées et justifiées par action, en y appliquant les montants forfaitaires indiqués au point 1 de la présente annexe. L'aide finale ne pourra néanmoins pas dépasser l'aide maximum notifiée par le présent contrat.
A171: Les versements seront effectués conformément aux conditions prévues à l'article 12.2 des Règles Générales d'attribution des aides de l'ADEME.

Sheet Attestation de realisation (hidden)
A1: ATTESTATION DE RÉALISATION DE L'OPÉRATION
A2: =AF!A9 -> Contrat de financement n°
A4: Actions réalisées pour Tremplin pour la transition écologique
C6: Prévisionnel (extrait de l'annexe financière) | E6: Réalisé (à compléter par le bénéficiaire)
A7: Nom de l'action | C7: Quantités prévisionnelles ** (en nombre d'unité) | D7: Montant forfaitaire maximum | E7: Quantités réalisées (en nombre d'unité) | F7: Aide maximum recalculée
A8: =AF!A16 -> r1 | C8: =AF!C16 -> 0 | D8: =ROUND(AF!E16,0) -> 0 | F8: =ROUND(E8*D8,0) -> 0 | G8: =AF!G16 -> 0
A9: =AF!A17 -> r2 | C9: =AF!C17 -> 0 | D9: =ROUND(AF!E17,0) -> 0 | F9: 0 | G9: =AF!G17 -> 0
A10: =AF!A18 -> r3 | C10: =AF!C18 -> 0 | D10: =ROUND(AF!E18,0) -> 0 | F10: 0 | G10: =AF!G18 -> 0
A11: =AF!A19 -> r4 | C11: =AF!C19 -> 0 | D11: =ROUND(AF!E19,0) -> 0 | F11: 0 | G11: =AF!G19 -> 0
A12: =AF!A20 -> r5 | C12: =AF!C20 -> 0 | D12: =ROUND(AF!E20,0) -> 0 | F12: 0 | G12: =AF!G20 -> 0
A13: =AF!A21 -> r6 | C13: =AF!C21 -> 0 | D13: =ROUND(AF!E21,0) -> 0 | F13: 0 | G13: =AF!G21 -> 0
A14: =AF!A22 -> r7 | C14: =AF!C22 -> 0 | D14: =ROUND(AF!E22,0) -> 0 | F14: 0 | G14: =AF!G22 -> 0
A15: =AF!A23 -> r8 | C15: =AF!C23 -> 0 | D15: =ROUND(AF!E23,0) -> 0 | F15: =ROUND(E15*D15,0) -> 0 | G15: =AF!G23 -> 0
A16: =AF!A24 -> r9 | C16: =AF!C24 -> 0 | D16: =ROUND(AF!E24,0) -> 0 | F16: 0 | G16: =AF!G24 -> 0
A17: =AF!A25 -> r10 | C17: =AF!C25 -> 0 | D17: =ROUND(AF!E25,0) -> 0 | F17: 0 | G17: =AF!G25 -> 0
A18: =AF!A26 -> r11 | C18: =AF!C26 -> 0 | D18: =ROUND(AF!E26,0) -> 0 | F18: 0 | G18: =AF!G26 -> 0
A19: =AF!A27 -> r12 | C19: =AF!C27 -> 0 | D19: =ROUND(AF!E27,0) -> 0 | F19: 0 | G19: =AF!G27 -> 0
A20: =AF!A28 -> r13 | C20: =AF!C28 -> 0 | D20: =ROUND(AF!E28,0) -> 0 | F20: =ROUND(E20*D20,0) -> 0 | G20: =AF!G28 -> 0
A21: =AF!A29 -> r14 | C21: =AF!C29 -> 0 | D21: =ROUND(AF!E29,0) -> 0 | F21: 0 | G21: =AF!G29 -> 0
A22: =AF!A30 -> r15 | C22: =AF!C30 -> 0 | D22: =ROUND(AF!E30,0) -> 0 | F22: 0 | G22: =AF!G30 -> 0
A23: =AF!A31 -> r16 | C23: =AF!C31 -> 0 | D23: =ROUND(AF!E31,0) -> 0 | F23: 0 | G23: =AF!G31 -> 0
A24: =AF!A32 -> r17 | C24: =AF!C32 -> 0 | D24: =ROUND(AF!E32,0) -> 0 | F24: 0 | G24: =AF!G32 -> 0
A25: =AF!A33 -> r18 | C25: =AF!C33 -> 0 | D25: =ROUND(AF!E33,0) -> 0 | F25: =ROUND(E25*D25,0) -> 0 | G25: =AF!G33 -> 0
A26: =AF!A34 -> r19 | C26: =AF!C34 -> 0 | D26: =ROUND(AF!E34,0) -> 0 | F26: =ROUND(E26*D26,0) -> 0 | G26: =AF!G34 -> 0
A27: =AF!A35 -> r20 | C27: =AF!C35 -> 0 | D27: =ROUND(AF!E35,0) -> 0 | F27: 0 | G27: =AF!G35 -> 0
A28: =AF!A36 -> Maîtriser les besoins de chauffage : thermostats radiateur, détection d'ouverture de fenêtre, programmateur horaire | C28: =AF!C36 -> 0 | D28: =ROUND(AF!E36,0) -> 0 | F28: 0 | G28: =AF!G36 -> 0
A29: =AF!A37 -> Efficacité énergétique des sèche-linge de forte capacité : poids de linge >9kg, performance A+++ ou à énergie de séchage <2,6kWh/cycle | C29: =AF!C37 -> 0 | D29: =ROUND(AF!E37,0) -> 0 | F29: 0 | G29: =AF!G37 -> 0
A30: =AF!A38 -> Economie d'eau : limitation de débit de robinet de lavabo | C30: =AF!C38 -> 0 | D30: =ROUND(AF!E38,0) -> 0 | F30: 0 | G30: =AF!G38 -> 0
A31: =AF!A39 -> Economie d'eau : Robinetterie douche : mitigeurs thermostatiques, pommeau à débit réduit | C31: =AF!C39 -> 0 | D31: =ROUND(AF!E39,0) -> 0 | F31: 0 | G31: =AF!G39 -> 0
A32: =AF!A40 -> Economie d'eau : Limitation de consommation WC (plaquettes, chasse double position) | C32: =AF!C40 -> 0 | D32: =ROUND(AF!E40,0) -> 0 | F32: 0 | G32: =AF!G40 -> 0
A33: =AF!A41 -> Toilettes sèches | C33: =AF!C41 -> 0 | D33: =ROUND(AF!E41,0) -> 0 | F33: 0 | G33: =AF!G41 -> 0
A34: =AF!A42 -> Couverture pour piscine et bains à remous extérieurs chauffés | C34: =AF!C42 -> 0 | D34: =ROUND(AF!E42,0) -> 0 | F34: 0 | G34: =AF!G42 -> 0
A35: =AF!A43 -> Frais d'adaptation du site internet pour valoriser le modèle d'affaire "tourisme durable", y compris la formation du personnel pour rapatrier la gestion du site internet en interne. | C35: =AF!C43 -> 0 | D35: =ROUND(AF!E43,0) -> 0 | F35: 0 | G35: =AF!G43 -> 0
A36: =AF!A44 -> Frais d’édition de supports de communications : tableau (craie) pour menus du jour ; carte durable (mise en avant de produits bios, valorisation des menus végétariens, affichage carbone….), visuels et animations mettant en valeur les producteurs/fournisseurs locaux etc… mettant en valeur les écogestes dans l’hôtel restaurant pour les salarié.e.s et pour les client.e.s | C36: =AF!C44 -> 0 | D36: =ROUND(AF!E44,0) -> 0 | F36: 0 | G36: =AF!G44 -> 0
A37: =AF!A45 -> Formation aux éco-gestes, formation à la cuisine végétale/alternative/cuisson douce ; formation aux enjeux environnementaux de l'alimentation | C37: =AF!C45 -> 0 | D37: =ROUND(AF!E45,0) -> 0 | F37: 0 | G37: =AF!G45 -> 0
A38: =AF!A46 -> AMO pour rénovation globale : complément pour établissement du plan de financement et aide à la complétion des dossiers de demande d'aide | C38: =AF!C46 -> 0 | D38: =ROUND(AF!E46,0) -> 0 | F38: 0 | G38: =AF!G46 -> 0
A39: =AF!A47 -> Accompagnement à l’élaboration d’un modèle d’affaires tourisme durable | C39: =AF!C47 -> 0 | D39: =ROUND(AF!E47,0) -> 0 | F39: 0 | G39: =AF!G47 -> 0
A40: =AF!A48 -> h5 | C40: =AF!C48 -> 0 | D40: =ROUND(AF!E48,0) -> 0 | F40: =ROUND(E40*D40,0) -> 0 | G40: =AF!G48 -> 0
A41: =AF!A49 -> h6 | C41: =AF!C49 -> 0 | D41: =ROUND(AF!E49,0) -> 0 | F41: 0 | G41: =AF!G49 -> 0
A42: =AF!A50 -> h7 | C42: =AF!C50 -> 0 | D42: =ROUND(AF!E50,0) -> 0 | F42: 0 | G42: =AF!G50 -> 0
A43: =AF!A51 -> h8 | C43: =AF!C51 -> 0 | D43: =ROUND(AF!E51,0) -> 0 | F43: 0 | G43: =AF!G51 -> 0
A44: =AF!A52 -> h5 | C44: =AF!C52 -> 0 | D44: =ROUND(AF!E52,0) -> 0 | F44: 0 | G44: =AF!G52 -> 0
A45: =AF!A53 -> h6 | C45: =AF!C53 -> 0 | D45: =ROUND(AF!E53,0) -> 0 | F45: 0 | G45: =AF!G53 -> 0
A46: =AF!A54 -> h7 | C46: =AF!C54 -> 0 | D46: =ROUND(AF!E54,0) -> 0 | F46: 0 | G46: =AF!G54 -> 0
A47: =AF!A55 -> h8 | C47: =AF!C55 -> 0 | D47: =ROUND(AF!E55,0) -> 0 | F47: 0 | G47: =AF!G55 -> 0
A48: =AF!A56 -> Bilan d’émission de gaz à effet de serre (bilan GES scope 1, 2 et 3) et plan d'actions | C48: =AF!C56 -> 0 | D48: =ROUND(AF!E56,0) -> 0 | F48: 0 | G48: =AF!G56 -> 0
A49: =AF!A57 -> Vous organiser pour réduire les émissions de gaz à effet de serre : élaborer une stratégie (démarche ACT® pas à pas) | C49: =AF!C57 -> 0 | D49: =ROUND(AF!E57,0) -> 0 | F49: =ROUND(E49*D49,0) -> 0 | G49: =AF!G57 -> 0
A50: =AF!A58 -> Evaluer votre stratégie de réduction des émissions de gaz à effet de serre (Evaluation ACT®) | C50: =AF!C58 -> 0 | D50: =ROUND(AF!E58,0) -> 0 | F50: 0 | G50: =AF!G58 -> 0
A51: =AF!A59 -> Accompagnement à la baisse des consommations d’énergie des bâtiments imposée par le « décret tertiaire » : audit énergétique | C51: =AF!C59 -> 0 | D51: =ROUND(AF!E59,0) -> 0 | F51: 0 | G51: =AF!G59 -> 0
A52: =AF!A60 -> Maîtrise d'œuvre (MOE) pour rénovation globale d’un ou plusieurs bâtiments pour viser un objectif de 50% d’économie d’énergie | C52: =AF!C60 -> 0 | D52: =ROUND(AF!E60,0) -> 0 | F52: 0 | G52: =AF!G60 -> 0
A53: =AF!A61 -> Diagnostic sur la qualité de l'air (intérieur et extérieur) de l’entreprise | C53: =AF!C61 -> 0 | D53: =ROUND(AF!E61,0) -> 0 | F53: 0 | G53: =AF!G61 -> 0
A54: =AF!A62 -> Luminaire d’éclairage à modules LED | C54: =AF!C62 -> 0 | D54: =ROUND(AF!E62,0) -> 0 | F54: 0 | G54: =AF!G62 -> 0
A55: =AF!A63 -> Augmenter l’éclairage naturel grâce à des lanterneaux d'éclairage zénithal | C55: =AF!C63 -> 0 | D55: =ROUND(AF!E63,0) -> 0 | F55: 0 | G55: =AF!G63 -> 0
A56: =AF!A64 -> Augmenter l’éclairage naturel grâce à des conduits de lumière naturelle | C56: =AF!C64 -> 0 | D56: =ROUND(AF!E64,0) -> 0 | F56: 0 | G56: =AF!G64 -> 0
A57: =AF!A65 -> Eclairage extérieur par luminaires LED | C57: =AF!C65 -> 0 | D57: =ROUND(AF!E65,0) -> 0 | F57: 0 | G57: =AF!G65 -> 0
A58: =AF!A66 -> Etude de dimensionnement de l'éclairage | C58: =AF!C66 -> 0 | D58: =ROUND(AF!E66,0) -> 0 | F58: 0 | G58: =AF!G66 -> 0
A59: =AF!A67 -> Isolation des meubles de vente réfrigérés et/ou des chambres froides | C59: =AF!C67 -> 0 | D59: =ROUND(AF!E67,0) -> 0 | F59: 0 | G59: =AF!G67 -> 0
A60: =AF!A68 -> Remplacement de fluides dans les équipements frigorifiques commerciaux pour utiliser des fluides frigorigènes ayant moins d’impact sur le changement climatique | C60: =AF!C68 -> 0 | D60: =ROUND(AF!E68,0) -> 0 | F60: 0 | G60: =AF!G68 -> 0
A61: =AF!A69 -> Remplacement d’armoires frigorifiques positives ou de tours réfrigérées par de nouveaux équipements neufs à fluides frigorigènes ayant moins d’impact sur le changement climatique | C61: =AF!C69 -> 0 | D61: =ROUND(AF!E69,0) -> 0 | F61: 0 | G61: =AF!G69 -> 0
A62: =AF!A70 -> Remplacement d’équipements frigorifiques commerciaux peu performants par des équipements neufs à fluides frigorigènes ayant moins d’impact sur le changement climatique | C62: =AF!C70 -> 0 | D62: =ROUND(AF!E70,0) -> 0 | F62: 0 | G62: =AF!G70 -> 0
A63: =AF!A71 -> Installation de froid commercial centralisée au CO2 avec récupération de chaleur | C63: =AF!C71 -> 0 | D63: =ROUND(AF!E71,0) -> 0 | F63: 0 | G63: =AF!G71 -> 0
A64: =AF!A72 -> Isolation de combles perdus | C64: =AF!C72 -> 0 | D64: =ROUND(AF!E72,0) -> 0 | F64: 0 | G64: =AF!G72 -> 0
A65: =AF!A73 -> Isolation des rampants de toiture et plafonds de combles | C65: =AF!C73 -> 0 | D65: =ROUND(AF!E73,0) -> 0 | F65: 0 | G65: =AF!G73 -> 0
A66: =AF!A74 -> Isolation des murs par l'intérieur | C66: =AF!C74 -> 0 | D66: =ROUND(AF!E74,0) -> 0 | F66: 0 | G66: =AF!G74 -> 0
A67: =AF!A75 -> Isolation des murs par l'extérieur | C67: =AF!C75 -> 0 | D67: =ROUND(AF!E75,0) -> 0 | F67: 0 | G67: =AF!G75 -> 0
A68: =AF!A76 -> Isolation des toitures-terrasses | C68: =AF!C76 -> 0 | D68: =ROUND(AF!E76,0) -> 0 | F68: 0 | G68: =AF!G76 -> 0
A69: =AF!A77 -> Ventilation mécanique double flux | C69: =AF!C77 -> 0 | D69: =ROUND(AF!E77,0) -> 0 | F69: 0 | G69: =AF!G77 -> 0
A70: =AF!A78 -> Mise en place d’un système de gestion technique du bâtiment (GTB) de classe B ou A | C70: =AF!C78 -> 0 | D70: =ROUND(AF!E78,0) -> 0 | F70: 0 | G70: =AF!G78 -> 0
A71: =AF!A79 -> Géothermie sur champ de sondes et géostructures énergétiques | C71: =AF!C79 -> 0 | D71: =ROUND(AF!E79,0) -> 0 | F71: 0 | G71: =AF!G79 -> 0
A72: =AF!A80 -> Géothermie sur eau de nappe, sur eau de mer et sur eaux usées | C72: =AF!C80 -> 0 | D72: =ROUND(AF!E80,0) -> 0 | F72: 0 | G72: =AF!G80 -> 0
A73: =AF!A81 -> Géocooling | C73: =AF!C81 -> 0 | D73: =ROUND(AF!E81,0) -> 0 | F73: 0 | G73: =AF!G81 -> 0
A74: =AF!A82 -> Pompe à chaleur (PAC) solarothermique | C74: =AF!C82 -> 0 | D74: =ROUND(AF!E82,0) -> 0 | F74: 0 | G74: =AF!G82 -> 0
A75: =AF!A83 -> Solaire thermique | C75: =AF!C83 -> 0 | D75: =ROUND(AF!E83,0) -> 0 | F75: 0 | G75: =AF!G83 -> 0
A76: =AF!A84 -> Raccordement à un réseau de chaleur ou à un réseau de froid | C76: =AF!C84 -> 0 | D76: =ROUND(AF!E84,0) -> 0 | F76: 0 | G76: =AF!G84 -> 0
A77: =AF!A85 -> Chaudière biomasse inférieure à 600 MWh par an | C77: =AF!C85 -> 0 | D77: =ROUND(AF!E85,0) -> 0 | F77: 0 | G77: =AF!G85 -> 0
A78: =AF!A86 -> Mise en place d’un Plan Déplacement Entreprise | C78: =AF!C86 -> 0 | D78: =ROUND(AF!E86,0) -> 0 | E78: 1 | F78: 0 | G78: =AF!G86 -> 0
A79: =AF!A87 -> Diagnostic Mobilipro sur les flottes de véhicules d’entreprises | C79: =AF!C87 -> 0 | D79: =ROUND(AF!E87,0) -> 0 | F79: 0 | G79: =AF!G87 -> 0
A80: =AF!A88 -> Remplacement d'un véhicule thermique par un véhicule électrique Véhicule léger | C80: =AF!C88 -> 0 | D80: =ROUND(AF!E88,0) -> 0 | F80: 0 | G80: =AF!G88 -> 0
A81: =AF!A89 -> Remplacement d'un véhicule thermique par un véhicule électrique Fourgonnette | C81: =AF!C89 -> 0 | D81: =ROUND(AF!E89,0) -> 0 | E81: 2 | F81: 0 | G81: =AF!G89 -> 0
A82: =AF!A90 -> Remplacement d'un véhicule thermique par un véhicule électrique Fourgon | C82: =AF!C90 -> 0 | D82: =ROUND(AF!E90,0) -> 0 | F82: 0 | G82: =AF!G90 -> 0
A83: =AF!A91 -> Remplacement d'un véhicule thermique par un véhicule GNV Fourgon | C83: =AF!C91 -> 0 | D83: =ROUND(AF!E91,0) -> 0 | F83: 0 | G83: =AF!G91 -> 0
A84: =AF!A92 -> 0 | C84: =AF!C92 -> 0 | D84: =ROUND(AF!E92,0) -> 0 | F84: 0 | G84: =AF!G92 -> 0
A85: =AF!A93 -> Transformation de fourgonnette à motorisation thermique en motorisation électrique (retrofit) | C85: =AF!C93 -> 0 | D85: =ROUND(AF!E93,0) -> 0 | F85: 0 | G85: =AF!G93 -> 0
A86: =AF!A94 -> Transformation des fourgon à motorisation thermique en motorisation électrique (retrofit) | C86: =AF!C94 -> 0 | D86: =ROUND(AF!E94,0) -> 0 | F86: 0 | G86: =AF!G94 -> 0
A87: =AF!A95 -> Transformation des poids lourds à motorisation thermique en motorisation électrique (retrofit) | C87: =AF!C95 -> 0 | D87: =ROUND(AF!E95,0) -> 0 | F87: 0 | G87: =AF!G95 -> 0
A88: =AF!A96 -> Véhicule utilitaire léger frigorifique neuf : achat d’un groupe frigorifique électrique | C88: =AF!C96 -> 0 | D88: =ROUND(AF!E96,0) -> 0 | F88: 0 | G88: =AF!G96 -> 0
A89: =AF!A97 -> Porteur ou semi-remorque frigorifique neuf : achat d’un groupe frigorifique complet (hors groupes frigorifiques autonomes Diesel) | C89: =AF!C97 -> 0 | D89: =ROUND(AF!E97,0) -> 0 | F89: 0 | G89: =AF!G97 -> 0
A90: =AF!A98 -> Amélioration d’un système frigorifique sur un véhicule neuf ou existant | C90: =AF!C98 -> 0 | D90: =ROUND(AF!E98,0) -> 0 | F90: 0 | G90: =AF!G98 -> 0
A91: =AF!A99 -> Vélo de service à assistance électrique : vélo de service ou flotte de vélo | C91: =AF!C99 -> 0 | D91: =ROUND(AF!E99,0) -> 0 | F91: 0 | G91: =AF!G99 -> 0
A92: =AF!A100 -> Vélo cargo électrique pour un usage professionnel | C92: =AF!C100 -> 0 | D92: =ROUND(AF!E100,0) -> 0 | F92: 0 | G92: =AF!G100 -> 0
A93: =AF!A101 -> Abris à vélo avec toit | C93: =AF!C101 -> 0 | D93: =ROUND(AF!E101,0) -> 0 | F93: 0 | G93: =AF!G101 -> 0
A94: =AF!A102 -> Etude de dimensionnement transport durable | C94: =AF!C102 -> 0 | D94: =ROUND(AF!E102,0) -> 0 | F94: 0 | G94: =AF!G102 -> 0
A95: =AF!A103 -> Etat des lieux et proposition pour trier les déchets de bois, papier/carton, métaux, verre et plastiques ainsi que les fractions minérales et le plâtre | C95: =AF!C103 -> 0 | D95: =ROUND(AF!E103,0) -> 0 | F95: 0 | G95: =AF!G103 -> 0
A96: =AF!A104 -> Analyse de process pour la prévention des déchets (méthode Comptabilité des flux de matière) | C96: =AF!C104 -> 0 | D96: =ROUND(AF!E104,0) -> 0 | F96: 0 | G96: =AF!G104 -> 0
A97: =AF!A105 -> Diagnostic pour réduire les emballages ou remplacer des emballages plastiques par d’autres | C97: =AF!C105 -> 0 | D97: =ROUND(AF!E105,0) -> 0 | F97: 0 | G97: =AF!G105 -> 0
A98: =AF!A106 -> Soutien aux réparateurs : logiciels, progiciels et outils de réparation | C98: =AF!C106 -> 0 | D98: =ROUND(AF!E106,0) -> 0 | F98: 0 | G98: =AF!G106 -> 0
A99: =AF!A107 -> Bilan des matières entrantes dans et sortantes de l’entreprise (méthode Bilan matière) | C99: =AF!C107 -> 0 | D99: =ROUND(AF!E107,0) -> 0 | F99: 0 | G99: =AF!G107 -> 0
A100: =AF!A108 -> Récupération des eaux de pluie | C100: =AF!C108 -> 0 | D100: =ROUND(AF!E108,0) -> 0 | F100: 0 | G100: =AF!G108 -> 0
A101: =AF!A109 -> Compacteurs mécanique (cartons…) et/ou compacteur mécanique à balle (plastiques) et/ou broyeurs de végétaux | C101: =AF!C109 -> 0 | D101: =ROUND(AF!E109,0) -> 0 | F101: 0 | G101: =AF!G109 -> 0
A102: =AF!A110 -> Concasseur mobile (déchets inertes du BTP) | C102: =AF!C110 -> 0 | D102: =ROUND(AF!E110,0) -> 0 | F102: 0 | G102: =AF!G110 -> 0
A103: =AF!A111 -> Préparation des biodéchets : mise en place du tri, pré-collecte, formation du personnel, signalétique | C103: =AF!C111 -> 0 | D103: =ROUND(AF!E111,0) -> 0 | F103: =ROUND(E103*D103,0) -> 0 | G103: =AF!G111 -> 0
A104: =AF!A112 -> Composteur en bac pour biodéchets | C104: =AF!C112 -> 0 | D104: =ROUND(AF!E112,0) -> 0 | F104: 0 | G104: =AF!G112 -> 0
A105: =AF!A113 -> Pavillon de compostage pour biodéchets | C105: =AF!C113 -> 0 | D105: =ROUND(AF!E113,0) -> 0 | F105: 0 | G105: =AF!G113 -> 0
A106: =AF!A114 -> Benne de stockage compartimentée pour le tri des déchets du bâtiment | C106: =AF!C114 -> 0 | D106: =ROUND(AF!E114,0) -> 0 | F106: 0 | G106: =AF!G114 -> 0
A107: =AF!A115 -> Contenants de type caisse-palettes ou futs (par lot de 7) pour les déchets du bâtiment | C107: =AF!C115 -> 0 | D107: =ROUND(AF!E115,0) -> 0 | F107: 0 | G107: =AF!G115 -> 0
A108: =AF!A116 -> Contenants de type bacs à roulettes (par lot de 7) pour les déchets du bâtiment | C108: =AF!C116 -> 0 | D108: =ROUND(AF!E116,0) -> 0 | F108: 0 | G108: =AF!G116 -> 0
A109: =AF!A117 -> Contenants souples de type big-bags réutilisables (lot de 7) et portants pour maintien big-bags ouverts pour les déchets du bâtiment | C109: =AF!C117 -> 0 | D109: =ROUND(AF!E117,0) -> 0 | F109: 0 | G109: =AF!G117 -> 0
A110: =AF!A118 -> Etude de dimensionnement économie circulaire | C110: =AF!C118 -> 0 | D110: =ROUND(AF!E118,0) -> 0 | F110: 0 | G110: =AF!G118 -> 0
A111: =AF!A119 -> Premiers pas éco-conception | C111: =AF!C119 -> 0 | D111: =ROUND(AF!E119,0) -> 0 | F111: 0 | G111: =AF!G119 -> 0
A112: =AF!A120 -> Mise en œuvre d'un affichage environnemental pour les produits de l'entreprise | C112: =AF!C120 -> 0 | D112: =ROUND(AF!E120,0) -> 0 | F112: 0 | G112: =AF!G120 -> 0
A113: =AF!A121 -> Dispositif de vérification externe de l'affichage environnemental | C113: =AF!C121 -> 0 | D113: =ROUND(AF!E121,0) -> 0 | F113: 0 | G113: =AF!G121 -> 0
A114: =AF!A122 -> Mise en œuvre de l’Ecolabel Européen sur les produits ou les services de l'entreprise | C114: =AF!C122 -> 0 | D114: =ROUND(AF!E122,0) -> 0 | F114: 0 | G114: =AF!G122 -> 0
A115: =AF!A123 -> Certification écolabel européen de produits ou service | C115: =AF!C123 -> 0 | D115: =ROUND(AF!E123,0) -> 0 | F115: 0 | G115: =AF!G123 -> 0
A116: =AF!A124 -> Accompagnement à la labellisation "Numérique responsable" | C116: =AF!C124 -> 0 | D116: =ROUND(AF!E124,0) -> 0 | F116: 0 | G116: =AF!G124 -> 0
G117: 0
G118: 0
G119: 0
G120: 0
G121: 0
G122: 0
G123: 0
G124: 0
G125: 0
G126: 0
A127: TOTAL | E127: =AF!F139 -> 0 | F127: =MIN(SUM(F48:F116),E127) -> 0 | G127: 1
A128: ** La ventilation est prévisionnelle et indicatrice, et peut donner lieu à une fongibilité entre les différentes actions, dans le respect du plafond d'aide et type d'action déclaré au préalable. | G128: 1
G129: 1
A130: Actions réalisées pour les Energies renouvelables | G130: =AF!$G$141 -> 0
G131: =$G$130 -> 0
C132: Prévisionnel (extrait de l'annexe financière) | E132: Réalisé (à compléter par le bénéficiaire) | G132: =$G$130 -> 0
A133: Nom de l'action | C133: Quantités prévisionnelles (en nombre d'unité) | D133: Montant forfaitaire maximum | E133: Quantités réalisées (en nombre d'unité) | F133: Aide maximum recalculée | G133: =$G$130 -> 0
A134: =A71 -> Géothermie sur champ de sondes et géostructures énergétiques | C134: =AF!C144 -> 0 | D134: =AF!E144 -> 0 | F134: =ROUND(E134*D134,0) -> 0 | G134: =AF!G144 -> 0
A135: Géothermie sur eau de nappe, sur eau de mer et sur eaux usées | C135: =AF!C145 -> 0 | D135: =AF!E145 -> 0 | F135: 0 | G135: =AF!G145 -> 0
A136: Géocooling | C136: =AF!C146 -> 0 | D136: =AF!E146 -> 0 | F136: 0 | G136: =AF!G146 -> 0
A137: Pompe à chaleur (PAC) solarothermique | C137: =AF!C147 -> 0 | D137: =AF!E147 -> 0 | F137: 0 | G137: =AF!G147 -> 0
A138: Solaire thermique | C138: =AF!C148 -> 0 | D138: =AF!E148 -> 0 | F138: 0 | G138: =AF!G148 -> 0
A139: Raccordement à un réseau de chaleur ou à un réseau de froid | C139: =AF!C149 -> 0 | D139: =AF!E149 -> 0 | F139: 0 | G139: =AF!G149 -> 0
A140: Chaudière biomasse inférieure à 600 MWh par an | C140: =AF!C150 -> 0 | D140: =AF!E150 -> 0 | F140: 0 | G140: =AF!G150 -> 0
A141: TOTAL | E141: =AF!F154 -> 0 | F141: =MIN(SUM(F134:F140),E141) -> 0 | G141: =$G$130 -> 0
G142: =$G$130 -> 0
A143: Certification du bénéficiaire
A145: Je certifie que les actions et quantités ici exposées ont été réalisées dans les 18 mois suivants la notification du contrat et ont été payées.
A147: Par ailleurs, l’ADEME se réservant la possibilité de tous contrôles qu’elle jugera nécessaire, j’ai bien noté conformément aux règles générales d’attribution des aides de l'ADEME, l’obligation de tenir à disposition de l’ADEME tous les justificatifs concernant cette opération pendant une période de 10 ans à compter de la date de fin de l'opération et le reversement de tout montant qui aurait été perçu à tort.
A149: Certifié par :
A150: Nom, qualité, signature (ordonnateur/représentant légal ou son délégataire), date et cachet.
A151: Certificat de contrôle
A153: Je certifie que les actions et quantités ici exposées ont été réalisées dans les 18 mois suivants la notification du contrat et ont été payées.
A155: Certifié par :
A156: Nom, qualité, signature (commissaire aux compte ou expert comptable indépendant), date et cachet.

Sheet OPALE (hidden)
B1: Assistant financier d'aide au remplissage OPALE
C4: Dossier n°
C5: =num_contrat -> 0
C8: € Description | K8: 1
K9: 1
K10: 1
C11: Situation géographique | K11: 1
K12: 1
C13: Commune | K13: 1
C14: ='1-J''identifie mon entreprise'!E19&" ("&'1-J''identifie mon entreprise'!C19&")" -> () | K14: 1
K15: 1
K16: 1
C17: € Dépenses et modalité de calcul | K17: 1
K18: 1
D19: Total des dépenses | F19: Dépenses éligibles | H19: Montant de l'aide | K19: 1
D20: =SUMIFS(F34:F149,K34:K149,1) -> 0 | F20: =SUMIFS(H34:H149,K34:K149,1) -> 0 | H20: =I26+I27 -> 0 | K20: 1
K21: 1
K22: 1
K23: 1
K24: 1
C25: Titre | D25: Base juridique de l'aide | E25: Nature de l'aide | F25: Montant de la solution de référence | G25: Plafond des dépenses | H25: Taux de majoration/minoration | I25: Montant de l'aide | K25: 1
C26: • Tremplin transition écologique des PME | D26: Régime cadre temporaire COVID | E26: Forfaitaire | F26: (vide) | G26: (vide) | H26: (vide) | I26: =ROUND(AF!F139,2) -> 0 | K26: =IF(SUM(K34:K56)+SUM(K64:K149)=0,0,1) -> 0
C27: • Energie renouvelable | D27: Régime cadre temporaire COVID | E27: Forfaitaire | F27: (vide) | G27: (vide) | H27: (vide) | I27: =AF!F154 -> 0 | K27: =IF(List!$AI$2=0,0,IF(K57+K58+K59+K60+K61+K63=0,0,1)) -> 0
C28: • Restauration | D28: Régime cadre temporaire COVID | E28: Forfaitaire | F28: (vide) | G28: (vide) | H28: (vide) | K28: 0
C29: • Hébergement | D29: Régime cadre temporaire COVID | E29: Forfaitaire | F29: (vide) | G29: (vide) | H29: (vide) | K29: 0
K30: 1
K31: 1
K32: 1
C33: Poste - Catégorie de dépense | D33: Précision | F33: Dép. prévisionnelles | G33: Eligibl. | H33: Dép. éligibles | I33: Modalités de calcul | K33: 1
C34: ='2-Je choisis mes actions'!P52 -> Prestations extérieurs - Autres dépenses de sous-traitance (études, honoraires, etc.) | D34: ='2-Je choisis mes actions'!Q52 -> Bilan GES | E34: ='2-Je choisis mes actions'!S52 -> 0 | F34: =IF('2-Je choisis mes actions'!I52=0,0,'2-Je choisis mes actions'!E52) -> 0 | G34: 100 | H34: =F34 -> 0 | I34: • Tremplin transition écologique des PME | J34: 0 | K34: =AF!G56 -> 0
C35: ='2-Je choisis mes actions'!P53 -> Prestations extérieurs - Autres dépenses de sous-traitance (études, honoraires, etc.) | D35: ='2-Je choisis mes actions'!Q53 -> Etude ACT | E35: ='2-Je choisis mes actions'!S53 -> 0 | F35: =IF('2-Je choisis mes actions'!I53=0,0,'2-Je choisis mes actions'!E53) -> 0 | G35: 100 | H35: =F35 -> 0 | I35: • Tremplin transition écologique des PME | J35: 0 | K35: =AF!G57 -> 0
C36: ='2-Je choisis mes actions'!P54 -> Prestations extérieurs - Autres dépenses de sous-traitance (études, honoraires, etc.) | D36: ='2-Je choisis mes actions'!Q54 -> Evaluation ACT | E36: ='2-Je choisis mes actions'!S54 -> 0 | F36: =IF('2-Je choisis mes actions'!I54=0,0,'2-Je choisis mes actions'!E54) -> 0 | G36: 100 | H36: 0 | I36: • Tremplin transition écologique des PME | J36: 0 | K36: =AF!G58 -> 0
C37: ='2-Je choisis mes actions'!P58 -> Prestations extérieurs - Autres dépenses de sous-traitance (études, honoraires, etc.) | D37: ='2-Je choisis mes actions'!Q58 -> Audit énergétique | E37: ='2-Je choisis mes actions'!S58 -> 0 | F37: =IF('2-Je choisis mes actions'!I58=0,0,'2-Je choisis mes actions'!E58) -> 0 | G37: 100 | H37: 0 | I37: • Tremplin transition écologique des PME | J37: 0 | K37: =AF!G59 -> 0
C38: ='2-Je choisis mes actions'!P59 -> Prestations extérieurs - Autres dépenses de sous-traitance (études, honoraires, etc.) | D38: ='2-Je choisis mes actions'!Q59 -> AMO rénovation glabale | E38: ='2-Je choisis mes actions'!S59 -> 0 | F38: =IF('2-Je choisis mes actions'!I59=0,0,'2-Je choisis mes actions'!E59) -> 0 | G38: 100 | H38: 0 | I38: • Tremplin transition écologique des PME | J38: 0 | K38: =AF!G60 -> 0
C39: ='2-Je choisis mes actions'!P60 -> Prestations extérieurs - Autres dépenses de sous-traitance (études, honoraires, etc.) | D39: ='2-Je choisis mes actions'!Q60 -> Diagnostic Air | E39: ='2-Je choisis mes actions'!S60 -> 0 | F39: =IF('2-Je choisis mes actions'!I60=0,0,'2-Je choisis mes actions'!E60) -> 0 | G39: 100 | H39: 0 | I39: • Tremplin transition écologique des PME | J39: 0 | K39: =AF!G61 -> 0
C40: ='2-Je choisis mes actions'!P64 -> Autres équipements | D40: ='2-Je choisis mes actions'!Q64 -> Modules LED | E40: ='2-Je choisis mes actions'!S64 -> 0 | F40: =IF('2-Je choisis mes actions'!I64=0,0,'2-Je choisis mes actions'!E64) -> 0 | G40: 100 | H40: 0 | I40: • Tremplin transition écologique des PME | J40: 0 | K40: =AF!G62 -> 0
C41: ='2-Je choisis mes actions'!P65 -> Autres équipements | D41: ='2-Je choisis mes actions'!Q65 -> Lanterneaux zénithal | E41: ='2-Je choisis mes actions'!S65 -> 0 | F41: =IF('2-Je choisis mes actions'!I65=0,0,'2-Je choisis mes actions'!E65) -> 0 | G41: 100 | H41: 0 | I41: • Tremplin transition écologique des PME | J41: 0 | K41: =AF!G63 -> 0
C42: ='2-Je choisis mes actions'!P66 -> Aménagements et constructions | D42: ='2-Je choisis mes actions'!Q66 -> Conduits de lumière | E42: ='2-Je choisis mes actions'!S66 -> 0 | F42: =IF('2-Je choisis mes actions'!I66=0,0,'2-Je choisis mes actions'!E66) -> 0 | G42: 100 | H42: 0 | I42: • Tremplin transition écologique des PME | J42: 0 | K42: =AF!G64 -> 0
C43: ='2-Je choisis mes actions'!P67 -> Autres équipements | D43: ='2-Je choisis mes actions'!Q67 -> Luminaires LED extérieurs | E43: ='2-Je choisis mes actions'!S67 -> 0 | F43: =IF('2-Je choisis mes actions'!I67=0,0,'2-Je choisis mes actions'!E67) -> 0 | G43: 100 | H43: 0 | I43: • Tremplin transition écologique des PME | J43: 0 | K43: =AF!G65 -> 0
C44: ='2-Je choisis mes actions'!P68 -> Prestations extérieurs - Autres dépenses de sous-traitance (études, honoraires, etc.) | D44: ='2-Je choisis mes actions'!Q68 -> Etude dimensionnement éclairage | E44: ='2-Je choisis mes actions'!S68 -> 0 | F44: =IF('2-Je choisis mes actions'!I68=0,0,'2-Je choisis mes actions'!E68) -> 0 | G44: 100 | H44: =F44 -> 0 | I44: • Tremplin transition écologique des PME | J44: 0 | K44: =AF!G66 -> 0
C45: ='2-Je choisis mes actions'!P72 -> Autres équipements | D45: ='2-Je choisis mes actions'!Q72 -> Isolation frigo | E45: ='2-Je choisis mes actions'!S72 -> 0 | F45: =IF('2-Je choisis mes actions'!I72=0,0,'2-Je choisis mes actions'!E72) -> 0 | G45: 100 | H45: 0 | I45: • Tremplin transition écologique des PME | J45: 0 | K45: =AF!G67 -> 0
C46: ='2-Je choisis mes actions'!P73 -> Autres équipements | D46: ='2-Je choisis mes actions'!Q73 -> Retrofit frigo | E46: ='2-Je choisis mes actions'!S73 -> 0 | F46: =IF('2-Je choisis mes actions'!I73=0,0,'2-Je choisis mes actions'!E73) -> 0 | G46: 100 | H46: 0 | I46: • Tremplin transition écologique des PME | J46: 0 | K46: =AF!G68 -> 0
C47: ='2-Je choisis mes actions'!P74 -> Autres équipements | D47: ='2-Je choisis mes actions'!Q74 -> Remplacement petit frigo | E47: ='2-Je choisis mes actions'!S74 -> 0 | F47: =IF('2-Je choisis mes actions'!I74=0,0,'2-Je choisis mes actions'!E74) -> 0 | G47: 100 | H47: 0 | I47: • Tremplin transition écologique des PME | J47: 0 | K47: =AF!G69 -> 0
C48: ='2-Je choisis mes actions'!P75 -> Autres équipements | D48: ='2-Je choisis mes actions'!Q75 -> Remplacement présentoir frigo | E48: ='2-Je choisis mes actions'!S75 -> 0 | F48: =IF('2-Je choisis mes actions'!I75=0,0,'2-Je choisis mes actions'!E75) -> 0 | G48: 100 | H48: 0 | I48: • Tremplin transition écologique des PME | J48: 0 | K48: =AF!G70 -> 0
C49: ='2-Je choisis mes actions'!P76 -> Autres équipements | D49: ='2-Je choisis mes actions'!Q76 -> Froid centralisé | E49: ='2-Je choisis mes actions'!S76 -> 0 | F49: =IF('2-Je choisis mes actions'!I76=0,0,'2-Je choisis mes actions'!E76) -> 0 | G49: 100 | H49: 0 | I49: • Tremplin transition écologique des PME | J49: 0 | K49: =AF!G71 -> 0
C50: ='2-Je choisis mes actions'!P80 -> Aménagements et construction | D50: ='2-Je choisis mes actions'!Q80 -> Isolation combles | E50: ='2-Je choisis mes actions'!S80 -> 0 | F50: =IF('2-Je choisis mes actions'!I80=0,0,'2-Je choisis mes actions'!E80) -> 0 | G50: 100 | H50: 0 | I50: • Tremplin transition écologique des PME | J50: 0 | K50: =AF!G72 -> 0
C51: ='2-Je choisis mes actions'!P81 -> Aménagements et construction | D51: ='2-Je choisis mes actions'!Q81 -> Isolation rampants | E51: ='2-Je choisis mes actions'!S81 -> 0 | F51: =IF('2-Je choisis mes actions'!I81=0,0,'2-Je choisis mes actions'!E81) -> 0 | G51: 100 | H51: 0 | I51: • Tremplin transition écologique des PME | J51: 0 | K51: =AF!G73 -> 0
C52: ='2-Je choisis mes actions'!P82 -> Aménagements et construction | D52: ='2-Je choisis mes actions'!Q82 -> Isolation intérieure murs | E52: ='2-Je choisis mes actions'!S82 -> 0 | F52: =IF('2-Je choisis mes actions'!I82=0,0,'2-Je choisis mes actions'!E82) -> 0 | G52: 100 | H52: 0 | I52: • Tremplin transition écologique des PME | J52: 0 | K52: =AF!G74 -> 0
C53: ='2-Je choisis mes actions'!P83 -> Aménagements et construction | D53: ='2-Je choisis mes actions'!Q83 -> Isolation extérieure murs | E53: ='2-Je choisis mes actions'!S83 -> 0 | F53: =IF('2-Je choisis mes actions'!I83=0,0,'2-Je choisis mes actions'!E83) -> 0 | G53: 100 | H53: 0 | I53: • Tremplin transition écologique des PME | J53: 0 | K53: =AF!G75 -> 0
C54: ='2-Je choisis mes actions'!P84 -> Aménagements et construction | D54: ='2-Je choisis mes actions'!Q84 -> Isolation terras | E54: ='2-Je choisis mes actions'!S84 -> 0 | F54: =IF('2-Je choisis mes actions'!I84=0,0,'2-Je choisis mes actions'!E84) -> 0 | G54: 100 | H54: 0 | I54: • Tremplin transition écologique des PME | J54: 0 | K54: =AF!G76 -> 0
C55: ='2-Je choisis mes actions'!P85 -> Aménagements et construction | D55: ='2-Je choisis mes actions'!Q85 -> VMC double flux | E55: ='2-Je choisis mes actions'!S85 -> 0 | F55: =IF('2-Je choisis mes actions'!I85=0,0,'2-Je choisis mes actions'!E85) -> 0 | G55: 100 | H55: 0 | I55: • Tremplin transition écologique des PME | J55: 0 | K55: =AF!G77 -> 0
C56: ='2-Je choisis mes actions'!P86 -> Aménagements et construction | D56: ='2-Je choisis mes actions'!Q86 -> GTB | E56: ='2-Je choisis mes actions'!S86 -> 0 | F56: =IF('2-Je choisis mes actions'!I86=0,0,'2-Je choisis mes actions'!E86) -> 0 | G56: 100 | H56: 0 | I56: • Tremplin transition écologique des PME | J56: 0 | K56: =AF!G78 -> 0
C57: =C64 -> Aménagements et construction | D57: Géothermie champ de sondes | E57: 25 | F57: =IF(OR('2-Je choisis mes actions'!I90=0,List!$AI$2=0),0,'2-Je choisis mes actions'!E90) -> 0 | G57: 100 | H57: 0 | I57: • Energie renouvelable | J57: 0 | K57: =IF(List!$AI$2=0,0,AF!G144) -> 0
C58: Aménagements et construction | D58: Géothermie sur eau | E58: 25 | F58: =IF(OR('2-Je choisis mes actions'!I91=0,List!$AI$2=0),0,'2-Je choisis mes actions'!E91) -> 0 | G58: 100 | H58: 0 | I58: • Energie renouvelable | J58: 0 | K58: =IF(List!$AI$2=0,0,AF!G145) -> 0
C59: Aménagements et construction | D59: Géocooling | E59: 25 | F59: =IF(OR('2-Je choisis mes actions'!I92=0,List!$AI$2=0),0,'2-Je choisis mes actions'!E92) -> 0 | G59: 100 | H59: 0 | I59: • Energie renouvelable | J59: 0 | K59: =IF(List!$AI$2=0,0,AF!G146) -> 0
C60: Aménagements et construction | D60: PAC solarothermique | E60: 13 | F60: =IF(OR('2-Je choisis mes actions'!I93=0,List!$AI$2=0),0,'2-Je choisis mes actions'!E93) -> 0 | G60: 100 | H60: 0 | I60: • Energie renouvelable | J60: 0 | K60: =IF(List!$AI$2=0,0,AF!G147) -> 0
C61: Aménagements et construction | D61: Solaire thermique | E61: 13 | F61: =IF(OR('2-Je choisis mes actions'!I94=0,List!$AI$2=0),0,'2-Je choisis mes actions'!E94) -> 0 | G61: 100 | H61: 0 | I61: • Energie renouvelable | J61: 0 | K61: =IF(List!$AI$2=0,0,AF!G148) -> 0
C62: Aménagements et construction | D62: Raccordement réseau chaleur | E62: 0 | F62: =IF(OR('2-Je choisis mes actions'!I95=0,List!$AI$2=0),0,'2-Je choisis mes actions'!E95) -> 0 | G62: 100 | H62: 0 | I62: • Energie renouvelable | J62: 0 | K62: =IF(List!$AI$2=0,0,AF!G149) -> 0
C63: Aménagements et construction | D63: Chaudière biomasse | E63: 600 | F63: =IF(OR('2-Je choisis mes actions'!I96=0,List!$AI$2=0),0,'2-Je choisis mes actions'!E96) -> 0 | G63: 100 | H63: 0 | I63: • Energie renouvelable | J63: 0 | K63: =IF(List!$AI$2=0,0,AF!G150) -> 0
C64: ='2-Je choisis mes actions'!P90 -> Aménagements et construction | D64: ='2-Je choisis mes actions'!Q90 -> Géothermie champ de sondes | E64: ='2-Je choisis mes actions'!S90 -> 25 | F64: =IF(OR('2-Je choisis mes actions'!I90=0,List!$AI$2=1),0,'2-Je choisis mes actions'!E90) -> 0 | G64: 100 | H64: =F64 -> 0 | I64: • Tremplin transition écologique des PME | J64: 0 | K64: =IF(List!$AI$2=1,0,AF!G79) -> 0
C65: ='2-Je choisis mes actions'!P91 -> Aménagements et construction | D65: ='2-Je choisis mes actions'!Q91 -> Géothermie sur eau | E65: ='2-Je choisis mes actions'!S91 -> 25 | F65: =IF(OR('2-Je choisis mes actions'!I91=0,List!$AI$2=1),0,'2-Je choisis mes actions'!E91) -> 0 | G65: 100 | H65: 0 | I65: • Tremplin transition écologique des PME | J65: 0 | K65: =IF(List!$AI$2=1,0,AF!G80) -> 0
C66: ='2-Je choisis mes actions'!P92 -> Aménagements et construction | D66: ='2-Je choisis mes actions'!Q92 -> Géocooling | E66: ='2-Je choisis mes actions'!S92 -> 25 | F66: =IF(OR('2-Je choisis mes actions'!I92=0,List!$AI$2=1),0,'2-Je choisis mes actions'!E92) -> 0 | G66: 100 | H66: 0 | I66: • Tremplin transition écologique des PME | J66: 0 | K66: =IF(List!$AI$2=1,0,AF!G81) -> 0
C67: ='2-Je choisis mes actions'!P93 -> Aménagements et construction | D67: ='2-Je choisis mes actions'!Q93 -> PAC solarothermique | E67: ='2-Je choisis mes actions'!S93 -> 13 | F67: =IF(OR('2-Je choisis mes actions'!I93=0,List!$AI$2=1),0,'2-Je choisis mes actions'!E93) -> 0 | G67: 100 | H67: 0 | I67: • Tremplin transition écologique des PME | J67: 0 | K67: =IF(List!$AI$2=1,0,AF!G82) -> 0
C68: ='2-Je choisis mes actions'!P94 -> Aménagements et construction | D68: ='2-Je choisis mes actions'!Q94 -> Solaire thermique | E68: ='2-Je choisis mes actions'!S94 -> 13 | F68: =IF(OR('2-Je choisis mes actions'!I94=0,List!$AI$2=1),0,'2-Je choisis mes actions'!E94) -> 0 | G68: 100 | H68: 0 | I68: • Tremplin transition écologique des PME | J68: 0 | K68: =IF(List!$AI$2=1,0,AF!G83) -> 0
C69: ='2-Je choisis mes actions'!P95 -> Aménagements et construction | D69: ='2-Je choisis mes actions'!Q95 -> Raccordement réseau chaleur | E69: ='2-Je choisis mes actions'!S95 -> 0 | F69: =IF(OR('2-Je choisis mes actions'!I95=0,List!$AI$2=1),0,'2-Je choisis mes actions'!E95) -> 0 | G69: 100 | H69: 0 | I69: • Tremplin transition écologique des PME | J69: 0 | K69: =IF(List!$AI$2=1,0,AF!G84) -> 0
C70: ='2-Je choisis mes actions'!P96 -> Aménagements et construction | D70: ='2-Je choisis mes actions'!Q96 -> Chaudière biomasse | E70: ='2-Je choisis mes actions'!S96 -> 600 | F70: =IF(OR('2-Je choisis mes actions'!I96=0,List!$AI$2=1),0,'2-Je choisis mes actions'!E96) -> 0 | G70: 100 | H70: 0 | I70: • Tremplin transition écologique des PME | J70: 0 | K70: =IF(List!$AI$2=1,0,AF!G85) -> 0
C71: ='2-Je choisis mes actions'!P100 -> Prestations extérieurs - Autres dépenses de sous-traitance (études, honoraires, etc.) | D71: ='2-Je choisis mes actions'!Q100 -> Diagnostic déplacement | E71: ='2-Je choisis mes actions'!R100 -> L.EY | F71: =IF('2-Je choisis mes actions'!I100=0,0,'2-Je choisis mes actions'!E100) -> 0 | G71: 100 | H71: 0 | I71: • Tremplin transition écologique des PME | J71: 0 | K71: =AF!G86 -> 0
C72: ='2-Je choisis mes actions'!P101 -> Prestations extérieurs - Autres dépenses de sous-traitance (études, honoraires, etc.) | D72: ='2-Je choisis mes actions'!Q101 -> Diagnostic mobilité | E72: ='2-Je choisis mes actions'!R101 -> L.EY | F72: =IF('2-Je choisis mes actions'!I101=0,0,'2-Je choisis mes actions'!E101) -> 0 | G72: 100 | H72: 0 | I72: • Tremplin transition écologique des PME | J72: 0 | K72: =AF!G87 -> 0
C73: ='2-Je choisis mes actions'!P102 -> Equipements de transport | D73: ='2-Je choisis mes actions'!Q102 -> VL électrique | E73: ='2-Je choisis mes actions'!R102 -> L.EY | F73: =IF('2-Je choisis mes actions'!I102=0,0,'2-Je choisis mes actions'!E102) -> 0 | G73: 100 | H73: 0 | I73: • Tremplin transition écologique des PME | J73: 0 | K73: =AF!G88 -> 0
C74: ='2-Je choisis mes actions'!P103 -> Equipements de transport | D74: ='2-Je choisis mes actions'!Q103 -> Fourgonnette électrique | E74: ='2-Je choisis mes actions'!R103 -> L.EY | F74: =IF('2-Je choisis mes actions'!I103=0,0,'2-Je choisis mes actions'!E103) -> 0 | G74: 100 | H74: 0 | I74: • Tremplin transition écologique des PME | J74: 0 | K74: =AF!G89 -> 0
C75: ='2-Je choisis mes actions'!P104 -> Equipements de transport | D75: ='2-Je choisis mes actions'!Q104 -> Petit fourgon électrique | E75: ='2-Je choisis mes actions'!R104 -> L.EY | F75: =IF('2-Je choisis mes actions'!I104=0,0,'2-Je choisis mes actions'!E104) -> 0 | G75: 100 | H75: 0 | I75: • Tremplin transition écologique des PME | J75: 0 | K75: =AF!G90 -> 0
C76: ='2-Je choisis mes actions'!P105 -> Equipements de transport | D76: ='2-Je choisis mes actions'!Q105 -> Petit fourgon GNV | E76: ='2-Je choisis mes actions'!R105 -> L.EY | F76: =IF('2-Je choisis mes actions'!I105=0,0,'2-Je choisis mes actions'!E105) -> 0 | G76: 100 | H76: 0 | I76: • Tremplin transition écologique des PME | J76: 0 | K76: =AF!G91 -> 0
C77: ='2-Je choisis mes actions'!P106 -> Equipements de transport | D77: ='2-Je choisis mes actions'!Q106 -> Gros fourgon GNV | E77: ='2-Je choisis mes actions'!R106 -> L.EY | F77: =IF('2-Je choisis mes actions'!I106=0,0,'2-Je choisis mes actions'!E106) -> 0 | G77: 100 | H77: 0 | I77: • Tremplin transition écologique des PME | J77: 0 | K77: =AF!G92 -> 0
C78: ='2-Je choisis mes actions'!P107 -> Equipements de transport | D78: ='2-Je choisis mes actions'!Q107 -> Retrofit fourgonnette | E78: ='2-Je choisis mes actions'!R107 -> L.EY | F78: =IF('2-Je choisis mes actions'!I107=0,0,'2-Je choisis mes actions'!E107) -> 0 | G78: 100 | H78: 0 | I78: • Tremplin transition écologique des PME | J78: 0 | K78: =AF!G93 -> 0
C79: ='2-Je choisis mes actions'!P108 -> Equipements de transport | D79: ='2-Je choisis mes actions'!Q108 -> Retrofit petit fourgon | E79: ='2-Je choisis mes actions'!R108 -> L.EY | F79: =IF('2-Je choisis mes actions'!I108=0,0,'2-Je choisis mes actions'!E108) -> 0 | G79: 100 | H79: 0 | I79: • Tremplin transition écologique des PME | J79: 0 | K79: =AF!G94 -> 0
C80: ='2-Je choisis mes actions'!P109 -> Equipements de transport | D80: ='2-Je choisis mes actions'!Q109 -> Retrofit grand fourgon | E80: ='2-Je choisis mes actions'!R109 -> L.EY | F80: =IF('2-Je choisis mes actions'!I109=0,0,'2-Je choisis mes actions'!E109) -> 0 | G80: 100 | H80: 0 | I80: • Tremplin transition écologique des PME | J80: 0 | K80: =AF!G95 -> 0
C81: ='2-Je choisis mes actions'!P110 -> Equipements de transport | D81: ='2-Je choisis mes actions'!Q110 -> Groupe frigo VUL | E81: ='2-Je choisis mes actions'!R110 -> L.EY | F81: =IF('2-Je choisis mes actions'!I110=0,0,'2-Je choisis mes actions'!E110) -> 0 | G81: 100 | H81: 0 | I81: • Tremplin transition écologique des PME | J81: 0 | K81: =AF!G96 -> 0
C82: ='2-Je choisis mes actions'!P111 -> Autres équipements | D82: ='2-Je choisis mes actions'!Q111 -> Groupe frigo PL | E82: ='2-Je choisis mes actions'!R111 -> L.EY | F82: =IF('2-Je choisis mes actions'!I111=0,0,'2-Je choisis mes actions'!E111) -> 0 | G82: 100 | H82: 0 | I82: • Tremplin transition écologique des PME | J82: 0 | K82: =AF!G97 -> 0
C83: ='2-Je choisis mes actions'!P112 -> Autres équipements | D83: ='2-Je choisis mes actions'!Q112 -> Amélioration frigo véhicule | E83: ='2-Je choisis mes actions'!R112 -> L.EY | F83: =IF('2-Je choisis mes actions'!I112=0,0,'2-Je choisis mes actions'!E112) -> 0 | G83: 100 | H83: 0 | I83: • Tremplin transition écologique des PME | J83: 0 | K83: =AF!G98 -> 0
